{"text_format":"1","workbook":"xlsx","n_sheets":17,"sheets":["Erläuterung","Bewertung-2.1.1.1","Bauteilkostenübersicht","Bauteile","Bauteilreinigung","Bodenreinigung","Energieversorgung","Wasser_Abwasser","KT_Reinigung","KT_Bodenreinigung","KT_NDauern","KT_DIN276","KT_regNutzungskosten","KT Energieträger","Konfiguration","Gültigkeiten","Tabelle2"],"not_rendered":{"charts":1,"images":0,"macros":1,"external_links":1,"defined_names":54,"comments":1,"pivot_tables":0},"unopened":[],"bounds":{"document_bytes":16777216,"sheet_cells":100000,"rows_first":2000,"rows_last":500,"rows_between":2000,"halvings":0,"cell_chars":16384,"cell_head_chars":4096},"cells_cut":0,"cells_raw":0,"read":"whole","date_system":"1900"}

{"sheet":"Erläuterung","index":0,"n_rows":23,"n_cols":2,"rows_kept":23,"cut":false,"hidden":false,"merged":[]}
["Erläuterung zum Excel-Werkzeug Kriterium 2.1.1 (Version 1.2_a)"]
[]
[]
["Allgemeiner Hinweis\n","Das Excel-Werkzeug Kriterium 2.1.1 wurde entwickelt als Berechnungshilfe für die Ermittlung der Lebenszykluskosten (LCC).Maßgebend ist die Umsetzung der im Steckbrief definierten Rahmenbedingungen."]
[null,"Das Excel-Werkzeug Kriterium 2.1.1 wurde geschrieben unter MS-Excel 2010 und nutzt Makros.\nDie Ausführung von Makros muss gestattet werden."]
[]
["Allgemeine Funktionsweise","Automatisch berechnete Felder sind dunkelgrau, Eingabefelder hellgrau hinterlegt. \nIn den Tabellen \" Bauteile\", \"Bauteilreinigung\", \"Bodenreinigung\" und \"Energieversorgung\" wird jeweils über den Button + xy hinzufügen + eine neue Eingabezeile erzeugt, das Löschen der Zeile ist über den x-Button am Zeilenanfang möglich.\nIn den Tabellen \" Bauteile\", \"Bauteilreinigung\" und \"Bodenreinigung\" sind jeweils in einzelnen Spalten Sortierbutton ergänzt, so dass wahlweise nach unterschiedlichen Kriterien sortiert werden kann.\nÜber die Schalter \"+\" bzw. \"-\" oberhalb der Spaltenbezeichnungen der Tabellenbereiche können zur besseren Übersicht einzelne Tabellenbereiche ein- bzw. ausgeblendet werden."]
[]
["Tabelle „Bewertung 2.1.1“","Ist die Ergebnistabelle der Barwerte für alle eingegebenen Herstellungs- und Nutzungskosten. Der erreichte BNB-Punktwert wird ebenfalls ausgewiesen. Außerdem werden die einzelnen Herstellungs-/ Nutzungskostenanteile grafisch dargestellt. "]
[]
["Tabelle „Bauteilkostenübersicht“","Ist die Ergebnistabelle zur Kontrolle und Überprüfung der eingegebenen Bauteilkosten mit den Zwischensummen der einzelnen Kostengruppen."]
[]
["Tabelle „Bauteile“","Hier können Sie die Herstellungskosten für die KGR 300, 400 und je nach Erfordernis 500 bauteilbezogen erfassen. Für jedes Bauteil werden zunächst eine Bezeichnung, der Einbauort und optional über das Eingabefeld \"OZ\" eine beliebige Ornungszahl erfasst. \nIn dem Bereich Grunddaten (Spalte F-I) wird die Kostengruppe (über Auswahlfeld) zugeordnet. Außerdem wird die LCC-Relevanz (Standard Ja) und die Kostenzuordnung zum Bestand (Standard bzw. für Neubau immer Nein) abgefragt. Optional ist ein Kommentar pro Bauteil möglich.\nIm Bereich Herstellungskosten (Spalte J-O) erfolgt die Eingabe der tatsächlichen Netto-Herstellungskosten. Die Preisindizierung auf das Bezugsjahr des Steckbriefes wird automatisch berechnet. Voraussetzung ist die Eingabe des entsprechenden Preisindex in der Tabelle \"Konfiguration\".\nIm Bereich Nutzungsdauer (Spalte P-V) kann über ein Auswahlfeld die entsprechende Nutzungsdauer zugeordnet werden. Standardmäßig ist 1 Jahr als ND voreingestellt. Damit ist die Angabe der Nutzungsdauer unerlässlich. Die hinterlegten Nutzungsdauern der KGR 300 entsprechen den Werten der Tabelle \"Nutzungsdauern von Bauteilen\" gemäß Veröffentlichung auf dem Internetportal Nachhaltiges Bauen des BMVBS --> siehe auch http://www.nachhaltigesbauen.de/baustoff-und-gebaeudedaten/nutzungsdauern-von-bauteilen.html).\nFür die KGR 400 sind die Angaben zur mittleren Lebensdauer der VDI 2067: 2000 enthalten. Falls die in den Spalten E + F zuvor definierte Kostengruppe von der im Auswahlfeld der Spalte S benannten KGR (3.Ebene) abweicht, bleibt das Feld gelb markiert. Falls keine eindeutige Zuordnung gefunden werden kann, ist auch eine Handeingabe möglich. Handeingaben bzw. Abweichungen sind zu begründen. \nIm Bereich regelmäßige Kosten (Spalte Z-AF) werden jedem Bauteil die Inspektions- und Wartungskosten sowie die regelmäßigen Instandsetzungskosten wiederum über ein Auswahlfeld zugewiesen. Gemäß Anlage 3 des Steckbriefes werden für die KGR 300 einheitlich für die Inspektions- und Wartungskosten 0,1% der Herstellungskosten und keine laufenden Instandsetzungskosten angesetzt. Für die KGR 400 sind ebenfalls gemäß Anlage 3 die je nach Kostengruppe unterschiedlichen Inspektions- und Wartungskosten sowie die laufenden Instandsetzungskosten zuzuordnen. Je nach Relevanz ist teilweise sowohl die übergeordnete einheitliche Zuordnung für eine KGR (2.Ebene) gemäß AMEV oder die weitere Differenzierung in Anlehnung an die VDI 2067 möglich. Außerdem besteht zusätzlich die Option der Handeingabe für abweichende laufende Kosten (z.B. gemäß Wartungsvertrag).\nAlle weiteren Spalten beinhalten Ergebniswerte der Berechnung des Barwertes auf Basis der vorab beschriebenen Eingaben für den vorgegebenen Betrachtungszeitraum. Die Einzelwerte sind jahresweise ablesbar.\n"]
[]
["Tabelle „Bauteilreinigung“","In dieser Tabelle werden nachvollziehbar die zu reinigenden Bauteile über die Bauteilbezeichnung, den Einbauort und die entsprechende zu reinigende Fläche erfasst. Zu beachten ist die Anzahl der zu reinigenden Seiten (z.B. Fenster 2x). Wesentlich ist die Zuordnung über das Auswahlfeld der Spalte F gemäß Zugänglichkeit und Bauteiloberfläche für die Ermittlung des Reinigungsaufwandes. Die Berechnung der Reinigungskosten erfolgt automatisch über die hinterlegten Kostenkennwerte entsprechend Steckbrief Anlage 2.\nDie weiteren Spalten beinhalten die Ergebniswerte der Berechnung des Barwertes für den vorgegebenen Betrachtungszeitraum. Die Einzelwerte sind jahresweise ablesbar.\n"]
[]
["Tabelle „Bodenreinigung“","In dieser Tabelle werden nachvollziehbar die zu reinigenden Bodenflächen über die Raumbezeichnung, die Raumnummer und die entsprechende zu reinigende Bodenfläche erfasst. Wesentlich ist die Zuordnung über das Auswahlfeld der Spalte F gemäß Oberflächentyp/ -material und Belastung für die Ermittlung des Reinigungsaufwandes. Die Berechnung der Reinigungskosten erfolgt automatisch über die hinterlegten Kostenkennwerte entsprechend Steckbrief Anlage 2.\nDie weiteren Spalten beinhalten die Ergebniswerte der Berechnung des Barwertes für den vorgegebenen Betrachtungszeitraum. Die Einzelwerte sind jahresweise ablesbar.\n"]
[]
["Tabelle „Energieversorgung“","In dieser Tabelle wird der jährliche Endenergiebedarf pro Energieträger entsprechend EnEV-Nachweis erfasst. Die heizwertbezogene Umrechnung des Endenergiebedarfs ist zu berücksichtigen. Mit der Auswahl des Energieträgers werden die Energiekosten gemäß Anlage 4 des Steckbriefs automatisch zugeordnet.\nDie weiteren Spalten beinhalten die Ergebniswerte der Berechnung des Barwertes für den vorgegebenen Betrachtungszeitraum. Die Einzelwerte sind jahresweise ablesbar.\n"]
[]
["Tabelle „Wasser-/ Abwasser“","In dieser Tabelle werden der Gesamtfrischwasserbedarf, das Abwasseraufkommen aus Brauchwasser und die in die Kanalisation eingeleiteten Niederschlagsmengen über die Größe der versiegelten Flächen erfasst und die entsprechenden jährlichen Kosten über die Kostenkennwerte gemäß Anlage 4 des Steckbriefes automatisch berechnet. Für die Berechnung der Frischwasser- und Abwassermengen steht gesondert das Excel-Werkzeug Kriterium 1.2.3 zur Verfügung.\nDie weiteren Spalten beinhalten die Ergebniswerte der Berechnung des Barwertes für den vorgegebenen Betrachtungszeitraum. Die Einzelwerte sind jahresweise ablesbar.\n"]
[]
["Tabelle „Konfiguration“","Diese Tabelle beinhaltet mit Betrachtungszeitraum, allgemeine Preissteigerung, Preissteigerung Energie und Kalkulationszins die grundlegende Rahmenparameter der Lebenszykluskostenberechnung. Diese Werte sind mit BNB-Modul bzw. Version eindeutig definiert. Außerdem ist hier projektbezogen der entsprechende Baupreisindex einzugeben, da jede BNB-Version sich auf einen definierten Preisstand bezieht. Der jeweils relevante Baupreisindex ist der Tabelle des statistischen Bundesamteszu entnehmen --> https://www.destatis.de/DE/ZahlenFakten/Indikatoren/Konjunkturindikatoren/Preise/bpr110.html \nAls objektbezogener Wert sind die Kategorie der Lebenszykluskosten und die Bruttogeschossfläche BGF a,b,c einzugeben, damit die flächenbezogene Berechnung des Barwertes möglich ist. \nAbweichende Werte für die Rahmenparameter erhöhen die flexible Anwendung des Excel-Werkzeugs für alternative Wirtschaftlichkeitsbetrachtungen, unabhängig vom BNB-System. \n"]

{"sheet":"Bewertung-2.1.1.1","index":1,"n_rows":28,"n_cols":29,"rows_kept":28,"cut":false,"hidden":false,"merged":[[0,0,0,1],[7,8,17,8],[7,9,17,9],[1,1,1,2],[2,1,2,2],[3,1,3,2],[4,1,4,2]]}
["Berechnung LCC nach BNB BN 2.1.1 v2011\nZusammenfassung",null,null,"BBR-LCC\nVer. 15-1\nBBR A1"]
["Projekt:"]
["Projektnummer:"]
["Bearbeiter:"]
["LCC-Stand:"]
[]
[null,"Indikator","Wert",null,null,"Punkte","Maßstab Kategorie I","Maßstab Kategorie II","LCC","Punktzahl"]
[1,"Herstellungskosten KG 300 DIN 276",{"$f":"ERG_Herstell300","v":0},null,null,100,{"$f":"2000-0.01","v":1999.99},{"$f":"2400-0.01","v":2399.9899999999998},{"$f":"IF(AND(ISNUMBER(C27),C27>0),C27,LCC)","v":"Daten fehlen"},{"$f":"IF(Konfiguration!B18=1, O19, T19)","v":{"$error":"#VALUE!"}},{"$f":"IF($I$8<=G8,1,0)","v":0},{"$f":"IF($I$8>0,1,0)","v":1},{"$f":"F8*K8*L8","v":0},{"$f":"IF($I$8<=G8,1,0)","v":0},{"$f":"M8*N8","v":0},{"$f":"IF($I$8<=H8,1,0)","v":0},{"$f":"IF($I$8>0,1,0)","v":1},{"$f":"F8*P8*Q8","v":0},{"$f":"IF($I$8<=H8,1,0)","v":0},{"$f":"R8*S8","v":0},null,null,null,null,null,null,{"$f":"A8","v":1},"Herst. KG 300",{"$f":"C8/BGFabc","v":{"$error":"#DIV/0!"}}]
[2,"Herstellungskosten KG 400 + KG 500 DIN 276",{"$f":"ERG_Herstell400+ERG_Herstell500","v":0},null,null,90,{"$f":"2180-0.01","v":2179.9899999999998},{"$f":"2660-0.01","v":2659.99},null,null,0,{"$f":"IF($I$8>G8,1,0)","v":1},0,0,{"$f":"M9+L9*N9*(F8-F9)*(G9-$I$8)/(G9-G8)","v":{"$error":"#VALUE!"}},0,{"$f":"IF($I$8>H8,1,0)","v":1},0,0,{"$f":"R9+Q9*S9*(F8-F9)*(H9-$I$8)/(H9-H8)","v":{"$error":"#VALUE!"}},null,null,null,null,null,null,2,"Herst. KG 400 + KG 500",{"$f":"C9/BGFabc","v":{"$error":"#DIV/0!"}}]
[3,"Herstellungskosten\nKG 300 + KG 400 + KG 500 DIN 276",{"$f":"C8+C9","v":0},null,null,80,{"$f":"2360-0.01","v":2359.9899999999998},{"$f":"2920-0.01","v":2919.99},null,null,0,1,0,0,{"$error":"#VALUE!"},0,1,0,0,{"$error":"#VALUE!"},null,null,null,null,null,null,{"$f":"A11","v":4},"Ersatzinvestitionen KG 300",{"$f":"C11/BGFabc","v":{"$error":"#DIV/0!"}}]
[4,"Barwert unregelmäßige Zahlungen KG 300 DIN 276 (Ersatzinvestitionen)",{"$f":"ERG_BARERSATZ300","v":0},null,null,70,{"$f":"2540-0.01","v":2539.9899999999998},{"$f":"3180-0.01","v":3179.99},null,null,0,1,0,0,{"$error":"#VALUE!"},0,1,0,0,{"$error":"#VALUE!"},null,null,null,null,null,null,{"$f":"A12","v":5},"Ersatzinvestitionen KG 400+500",{"$f":"C12/BGFabc","v":{"$error":"#DIV/0!"}}]
[5,"Barwert unregelmäßige Zahlungen KG 400 + KG 500 DIN 276 (Ersatzinvestitionen)",{"$f":"ERG_BARERSATZ400+ERG_BARERSATZ500","v":0},null,null,60,{"$f":"2720-0.01","v":2719.99},{"$f":"3440-0.01","v":3439.99},null,null,0,1,0,0,{"$error":"#VALUE!"},0,1,0,0,{"$error":"#VALUE!"},null,null,null,null,null,null,{"$f":"A14","v":7},"Inspektion und Wartung KG 300",{"$f":"C14/BGFabc","v":{"$error":"#DIV/0!"}}]
[6,"Barwert unregelmäßige Zahlungen (Ersatzinvestitionen)\nKG 300 + KG 400 + KG 500 DIN 276 ",{"$f":"C11+C12","v":0},null,null,50,{"$f":"2900-0.01","v":2899.99},{"$f":"3700-0.01","v":3699.99},null,null,0,1,0,0,{"$error":"#VALUE!"},0,1,0,0,{"$error":"#VALUE!"},null,null,null,null,null,null,{"$f":"A15","v":8},"Inspektion und Wartung KG 400+500",{"$f":"C15/BGFabc","v":{"$error":"#DIV/0!"}}]
[7,"Barwert regelmäßige Inspektion und Wartung KG 300 DIN 276",{"$f":"ERG_BARWART300","v":0},null,null,40,{"$f":"3080-0.01","v":3079.99},{"$f":"3960-0.01","v":3959.99},null,null,0,1,0,0,{"$error":"#VALUE!"},0,1,0,0,{"$error":"#VALUE!"},null,null,null,null,null,null,{"$f":"A17","v":10},"Instandhaltung KG 300",{"$f":"C17/BGFabc","v":{"$error":"#DIV/0!"}}]
[8,"Barwert regelmäßige Inspektion und Wartung KG 400 + KG 500 DIN 276",{"$f":"ERG_BARWART400+ERG_BARWART500","v":0},null,null,30,{"$f":"3260-0.01","v":3259.99},{"$f":"4220-0.01","v":4219.99},null,null,0,1,0,0,{"$error":"#VALUE!"},0,1,0,0,{"$error":"#VALUE!"},null,null,null,null,null,null,{"$f":"A18","v":11},"Instandhaltung KG 400+500",{"$f":"C18/BGFabc","v":{"$error":"#DIV/0!"}}]
[9,"Barwert regelmäßige Inspektion und Wartung KG 300 + KG 400 + KG 500 DIN 276",{"$f":"C14+C15","v":0},null,null,20,{"$f":"3440-0.01","v":3439.99},{"$f":"4480-0.01","v":4479.99},null,null,0,1,0,0,{"$error":"#VALUE!"},0,1,0,0,{"$error":"#VALUE!"},null,null,null,null,null,null,{"$f":"A22","v":15},"Reinigung",{"$f":"C22/BGFabc","v":{"$error":"#DIV/0!"}}]
[10,"Barwert regelmäßige Instandsetzungskosten KG 300 DIN 276",{"$f":"ERG_BARINST300","v":0},null,null,10,{"$f":"3620","v":3620},{"$f":"4740","v":4740},null,null,{"$f":"IF($I$8>G16,1,0)","v":1},1,10,{"$f":"IF($I$8<G17,1,0)","v":0},{"$error":"#VALUE!"},{"$f":"IF($I$8>H16,1,0)","v":1},1,10,{"$f":"IF($I$8<H17,1,0)","v":0},{"$error":"#VALUE!"},null,null,null,null,null,null,{"$f":"A23","v":16},"Energie",{"$f":"C23/BGFabc","v":{"$error":"#DIV/0!"}}]
[11,"Barwert regelmäßige Instandsetzungskosten KG 400 + KG 500 DIN 276",{"$f":"ERG_BARINST400+ERG_BARINST500","v":0},null,null,0,"Kein Nachweis","Kein Nachweis",null,null,null,null,null,null,0,null,null,null,null,0,null,null,null,null,null,null,{"$f":"A24","v":17},"Wasserver- und Entsorgung",{"$f":"C24/BGFabc","v":{"$error":"#DIV/0!"}}]
[12,"Barwert regelmäßige Instandsetzungskosten KG 300 + KG 400 + KG 500 DIN 276",{"$f":"C17+C18","v":0},null,null,null,null,null,null,null,null,null,null,null,{"$f":"SUM(O8:O18)","v":{"$error":"#VALUE!"}},null,null,null,null,{"$f":"SUM(T8:T18)","v":{"$error":"#VALUE!"}}]
[13,"Barwert regelmäßige Kosten Bauteilreinigung",{"$f":"ERG_Reinigung","v":0}]
[14,"Barwert regelmäßige Kosten Bodenreinigung",{"$f":"ERG_Bodenreinigung","v":0}]
[15,"Barwert regelmäßige Kosten Reinigung",{"$f":"C20+C21","v":0}]
[16,"Barwert regelmäßige Kosten Energie",{"$f":"ERG_Energie","v":0}]
[17,"Barwert der regelmäßigen Kosten für Wasserver- und Entsorgung",{"$f":"ERG_Wasser","v":0}]
[null,"Barwert Gesamt",{"$f":"C10+C13+C16+C19+C22+C23+C24","v":0}]
[null,"Lebenszykluskosten je m² BGFabc",{"$f":"IF(ISNUMBER(C25/Konfiguration!B19),C25/Konfiguration!B19,\"Daten fehlen\")","v":"Daten fehlen"}]
["18","Alternativ: Handeingabe Lebenszykluskosten je m² BGFabc"]
[null,"Punktzahl 2.1.1\nModul BNB_BN v2011_1",{"$f":"IF(ISNUMBER(J8),J8,\"Daten fehlen\")","v":"Daten fehlen"}]

{"sheet":"Bauteilkostenübersicht","index":2,"n_rows":224,"n_cols":5,"rows_kept":224,"cut":false,"hidden":false,"merged":[[1,2,1,4],[2,2,2,4]]}
[]
[null,"Projekt:",{"$f":"IF(ISTEXT(Projekt),Projekt,\"\")","v":""}]
[null,"Stand:",{"$f":"IF(ISNUMBER(LCC_Stand),LCC_Stand,\"\")","v":""}]
[null,"Bauwerkskosten (Summe KG 300 und 400)",null,{"$f":"D7+D76","v":0},{"$f":"E7+E76","v":0}]
[]
[null,"Kostengruppen (KG)  nach DIN 276",null,"in EURO netto","in EURO brutto"]
[null,300,"Bauwerk - Baukonstruktionen",{"$f":"D8+D9+D15+D25+D36+D45+D51+D58+D63","v":0},{"$f":"E8+E9+E15+E25+E36+E45+E51+E58+E63","v":0}]
[null,300,"Bauwerk - Baukonstruktionen - Eingaben 1. Ebene",{"$f":"SUMIF(Bauteile!$E$11:$J$13,$B8,Bauteile!$J$11:$J$13)","v":0},{"$f":"ROUND(D8*1.19,2)","v":0}]
[null,310,"Baugrube",{"$f":"SUM(D10:D14)","v":0},{"$f":"SUM(E10:E14)","v":0}]
[null,310,"Baugrube - Eingaben 2. Ebene",{"$f":"SUMIF(Bauteile!$E$11:$J$13,$B10,Bauteile!$J$11:$J$13)","v":0},{"$f":"ROUND(D10*1.19,2)","v":0}]
[null,311,"Baugrubenherstellung",{"$f":"SUMIF(Bauteile!$E$11:$J$13,$B11,Bauteile!$J$11:$J$13)","v":0},{"$f":"ROUND(D11*1.19,2)","v":0}]
[null,312,"Baugrubenumschließung",{"$f":"SUMIF(Bauteile!$E$11:$J$13,$B12,Bauteile!$J$11:$J$13)","v":0},{"$f":"ROUND(D12*1.19,2)","v":0}]
[null,313,"Wasserhaltung",{"$f":"SUMIF(Bauteile!$E$11:$J$13,$B13,Bauteile!$J$11:$J$13)","v":0},0]
[null,319,"Baugrube, Sonstiges",{"$f":"SUMIF(Bauteile!$E$11:$J$13,$B14,Bauteile!$J$11:$J$13)","v":0},0]
[null,320,"Gründung",{"$f":"SUM(D16:D24)","v":0},{"$f":"SUM(E16:E24)","v":0}]
[null,320,"Gründung - Eingaben 2. Ebene",{"$f":"SUMIF(Bauteile!$E$11:$J$13,$B16,Bauteile!$J$11:$J$13)","v":0},{"$f":"ROUND(D16*1.19,2)","v":0}]
[null,321,"Baugrundverbesserung",{"$f":"SUMIF(Bauteile!$E$11:$J$13,$B17,Bauteile!$J$11:$J$13)","v":0},{"$f":"ROUND(D17*1.19,2)","v":0}]
[null,322,"Flachgründungen",{"$f":"SUMIF(Bauteile!$E$11:$J$13,$B18,Bauteile!$J$11:$J$13)","v":0},{"$f":"ROUND(D18*1.19,2)","v":0}]
[null,323,"Tiefgründungen",{"$f":"SUMIF(Bauteile!$E$11:$J$13,$B19,Bauteile!$J$11:$J$13)","v":0},0]
[null,324,"Unterböden und Bodenplatten",{"$f":"SUMIF(Bauteile!$E$11:$J$13,$B20,Bauteile!$J$11:$J$13)","v":0},0]
[null,325,"Bodenbeläge",{"$f":"SUMIF(Bauteile!$E$11:$J$13,$B21,Bauteile!$J$11:$J$13)","v":0},0]
[null,326,"Bauwerksabdichtungen",{"$f":"SUMIF(Bauteile!$E$11:$J$13,$B22,Bauteile!$J$11:$J$13)","v":0},0]
[null,327,"Drainagen",{"$f":"SUMIF(Bauteile!$E$11:$J$13,$B23,Bauteile!$J$11:$J$13)","v":0},0]
[null,329,"Gründungen, Sonstiges",{"$f":"SUMIF(Bauteile!$E$11:$J$13,$B24,Bauteile!$J$11:$J$13)","v":0},0]
[null,330,"Außenwände",{"$f":"SUM(D26:D35)","v":0},{"$f":"SUM(E26:E35)","v":0}]
[null,330,"Außenwände - Eingaben 2. Ebene",{"$f":"SUMIF(Bauteile!$E$11:$J$13,$B26,Bauteile!$J$11:$J$13)","v":0},{"$f":"ROUND(D26*1.19,2)","v":0}]
[null,331,"Tragende Außenwände",{"$f":"SUMIF(Bauteile!$E$11:$J$13,$B27,Bauteile!$J$11:$J$13)","v":0},{"$f":"ROUND(D27*1.19,2)","v":0}]
[null,332,"Nichttragende Außenwände",{"$f":"SUMIF(Bauteile!$E$11:$J$13,$B28,Bauteile!$J$11:$J$13)","v":0},{"$f":"ROUND(D28*1.19,2)","v":0}]
[null,333,"Außenstützen",{"$f":"SUMIF(Bauteile!$E$11:$J$13,$B29,Bauteile!$J$11:$J$13)","v":0},0]
[null,334,"Außentüren und -fenster",{"$f":"SUMIF(Bauteile!$E$11:$J$13,$B30,Bauteile!$J$11:$J$13)","v":0},0]
[null,335,"Außenwandbekleidungen außen",{"$f":"SUMIF(Bauteile!$E$11:$J$13,$B31,Bauteile!$J$11:$J$13)","v":0},0]
[null,336,"Außenwandbekleidungen innen",{"$f":"SUMIF(Bauteile!$E$11:$J$13,$B32,Bauteile!$J$11:$J$13)","v":0},0]
[null,337,"Elementierte Außenwände",{"$f":"SUMIF(Bauteile!$E$11:$J$13,$B33,Bauteile!$J$11:$J$13)","v":0},0]
[null,338,"Sonnenschutz",{"$f":"SUMIF(Bauteile!$E$11:$J$13,$B34,Bauteile!$J$11:$J$13)","v":0},0]
[null,339,"Außenwände, Sonstiges",{"$f":"SUMIF(Bauteile!$E$11:$J$13,$B35,Bauteile!$J$11:$J$13)","v":0},0]
[null,340,"Innenwände",{"$f":"SUM(D37:D44)","v":0},{"$f":"SUM(E37:E44)","v":0}]
[null,340,"Innenwände - Eingaben 2. Ebene",{"$f":"SUMIF(Bauteile!$E$11:$J$13,$B37,Bauteile!$J$11:$J$13)","v":0},{"$f":"ROUND(D37*1.19,2)","v":0}]
[null,341,"Tragende Innenwände",{"$f":"SUMIF(Bauteile!$E$11:$J$13,$B38,Bauteile!$J$11:$J$13)","v":0},{"$f":"ROUND(D38*1.19,2)","v":0}]
[null,342,"Nichttragende Innenwände",{"$f":"SUMIF(Bauteile!$E$11:$J$13,$B39,Bauteile!$J$11:$J$13)","v":0},{"$f":"ROUND(D39*1.19,2)","v":0}]
[null,343,"Innenstützen",{"$f":"SUMIF(Bauteile!$E$11:$J$13,$B40,Bauteile!$J$11:$J$13)","v":0},0]
[null,344,"Innentüren und -fenster",{"$f":"SUMIF(Bauteile!$E$11:$J$13,$B41,Bauteile!$J$11:$J$13)","v":0},0]
[null,345,"Innenwandbekleidungen",{"$f":"SUMIF(Bauteile!$E$11:$J$13,$B42,Bauteile!$J$11:$J$13)","v":0},0]
[null,346,"Elementierte Innenwände",{"$f":"SUMIF(Bauteile!$E$11:$J$13,$B43,Bauteile!$J$11:$J$13)","v":0},0]
[null,349,"Innenwände, Sonstiges",{"$f":"SUMIF(Bauteile!$E$11:$J$13,$B44,Bauteile!$J$11:$J$13)","v":0},0]
[null,350,"Decken",{"$f":"SUM(D46:D50)","v":0},{"$f":"SUM(E46:E50)","v":0}]
[null,350,"Decken - Eingaben 2. Ebene",{"$f":"SUMIF(Bauteile!$E$11:$J$13,$B46,Bauteile!$J$11:$J$13)","v":0},{"$f":"ROUND(D46*1.19,2)","v":0}]
[null,351,"Deckenkonstruktion",{"$f":"SUMIF(Bauteile!$E$11:$J$13,$B47,Bauteile!$J$11:$J$13)","v":0},{"$f":"ROUND(D47*1.19,2)","v":0}]
[null,352,"Deckenbeläge",{"$f":"SUMIF(Bauteile!$E$11:$J$13,$B48,Bauteile!$J$11:$J$13)","v":0},{"$f":"ROUND(D48*1.19,2)","v":0}]
[null,353,"Deckenbekleidungen",{"$f":"SUMIF(Bauteile!$E$11:$J$13,$B49,Bauteile!$J$11:$J$13)","v":0},0]
[null,359,"Decken, Sonstiges",{"$f":"SUMIF(Bauteile!$E$11:$J$13,$B50,Bauteile!$J$11:$J$13)","v":0},0]
[null,360,"Dächer",{"$f":"SUM(D52:D57)","v":0},{"$f":"SUM(E52:E57)","v":0}]
[null,360,"Dächer - Eingaben 2. Ebene",{"$f":"SUMIF(Bauteile!$E$11:$J$13,$B52,Bauteile!$J$11:$J$13)","v":0},{"$f":"ROUND(D52*1.19,2)","v":0}]
[null,361,"Dachkonstruktionen",{"$f":"SUMIF(Bauteile!$E$11:$J$13,$B53,Bauteile!$J$11:$J$13)","v":0},{"$f":"ROUND(D53*1.19,2)","v":0}]
[null,362,"Dachfenster, Dachöffnungen",{"$f":"SUMIF(Bauteile!$E$11:$J$13,$B54,Bauteile!$J$11:$J$13)","v":0},{"$f":"ROUND(D54*1.19,2)","v":0}]
[null,363,"Dachbeläge",{"$f":"SUMIF(Bauteile!$E$11:$J$13,$B55,Bauteile!$J$11:$J$13)","v":0},0]
[null,364,"Dachbekleidungen - Putz und Bekleidungen",{"$f":"SUMIF(Bauteile!$E$11:$J$13,$B56,Bauteile!$J$11:$J$13)","v":0},0]
[null,369,"Dächer, Sonstiges",{"$f":"SUMIF(Bauteile!$E$11:$J$13,$B57,Bauteile!$J$11:$J$13)","v":0},0]
[null,370,"Baukonstruktive Einbauten",{"$f":"SUM(D59:D62)","v":0},{"$f":"SUM(E59:E62)","v":0}]
[null,370,"Baukonstruktive Einbauten - Eingaben 2. Ebene",{"$f":"SUMIF(Bauteile!$E$11:$J$13,$B59,Bauteile!$J$11:$J$13)","v":0},{"$f":"ROUND(D59*1.19,2)","v":0}]
[null,371,"Allgemeine Einbauten",{"$f":"SUMIF(Bauteile!$E$11:$J$13,$B60,Bauteile!$J$11:$J$13)","v":0},{"$f":"ROUND(D60*1.19,2)","v":0}]
[null,372,"Besondere Einbauten",{"$f":"SUMIF(Bauteile!$E$11:$J$13,$B61,Bauteile!$J$11:$J$13)","v":0},{"$f":"ROUND(D61*1.19,2)","v":0}]
[null,379,"Baukonstruktive Einbauten, Sonstiges",{"$f":"SUMIF(Bauteile!$E$11:$J$13,$B62,Bauteile!$J$11:$J$13)","v":0},0]
[null,390,"Sonstige Maßnahmen für Baukonstruktionen",{"$f":"SUM(D64:D73)","v":0},{"$f":"SUM(E64:E73)","v":0}]
[null,390,"Sonstige Maßnahmen für Baukonstruktionen - Eingaben 2. Ebene",{"$f":"SUMIF(Bauteile!$E$11:$J$13,$B64,Bauteile!$J$11:$J$13)","v":0},{"$f":"ROUND(D64*1.19,2)","v":0}]
[null,391,"Baustelleneinrichtung",{"$f":"SUMIF(Bauteile!$E$11:$J$13,$B65,Bauteile!$J$11:$J$13)","v":0},{"$f":"ROUND(D65*1.19,2)","v":0}]
[null,392,"Gerüste",{"$f":"SUMIF(Bauteile!$E$11:$J$13,$B66,Bauteile!$J$11:$J$13)","v":0},{"$f":"ROUND(D66*1.19,2)","v":0}]
[null,393,"Sicherungsmaßnahmen",{"$f":"SUMIF(Bauteile!$E$11:$J$13,$B67,Bauteile!$J$11:$J$13)","v":0},0]
[null,394,"Abbruchmaßnahmen",{"$f":"SUMIF(Bauteile!$E$11:$J$13,$B68,Bauteile!$J$11:$J$13)","v":0},0]
[null,395,"Instandsetzungen",{"$f":"SUMIF(Bauteile!$E$11:$J$13,$B69,Bauteile!$J$11:$J$13)","v":0},0]
[null,396,"Materialentsorgung",{"$f":"SUMIF(Bauteile!$E$11:$J$13,$B70,Bauteile!$J$11:$J$13)","v":0},0]
[null,397,"Zusätzliche Maßnahmen",{"$f":"SUMIF(Bauteile!$E$11:$J$13,$B71,Bauteile!$J$11:$J$13)","v":0},0]
[null,398,"Provisorische Baukonstruktionen",{"$f":"SUMIF(Bauteile!$E$11:$J$13,$B72,Bauteile!$J$11:$J$13)","v":0},0]
[null,399,"Sonstige Maßnahmen für Baukonstruktionen, Sonstiges",{"$f":"SUMIF(Bauteile!$E$11:$J$13,$B73,Bauteile!$J$11:$J$13)","v":0},0]
[]
[null,"Kostengruppen (KG)  nach DIN 276",null,"in EURO netto","in EURO brutto"]
[null,400,"Bauwerk - Technische Anlagen",{"$f":"D77+D78+D84+D90+D97+D106+D116+D124+D135+D143","v":0},{"$f":"E77+E78+E84+E90+E97+E106+E116+E124+E135+E143","v":0}]
[null,400,"Bauwerk - Technische Anlagen - Eingaben 1. Ebene",{"$f":"SUMIF(Bauteile!$E$11:$J$13,$B77,Bauteile!$J$11:$J$13)","v":0},{"$f":"ROUND(D77*1.19,2)","v":0}]
[null,410,"Abwasser-, Wasser-, Gasanlagen",{"$f":"SUM(D79:D83)","v":0},{"$f":"SUM(E79:E83)","v":0}]
[null,410,"Abwasser-, Wasser-, Gasanlagen - Eingaben 2. Ebene",{"$f":"SUMIF(Bauteile!$E$11:$J$13,$B79,Bauteile!$J$11:$J$13)","v":0},{"$f":"ROUND(D79*1.19,2)","v":0}]
[null,411,"Abwasseranlagen",{"$f":"SUMIF(Bauteile!$E$11:$J$13,$B80,Bauteile!$J$11:$J$13)","v":0},{"$f":"ROUND(D80*1.19,2)","v":0}]
[null,412,"Wasseranlagen",{"$f":"SUMIF(Bauteile!$E$11:$J$13,$B81,Bauteile!$J$11:$J$13)","v":0},{"$f":"ROUND(D81*1.19,2)","v":0}]
[null,413,"Gasanlagen",{"$f":"SUMIF(Bauteile!$E$11:$J$13,$B82,Bauteile!$J$11:$J$13)","v":0},0]
[null,419,"Abwasser-, Wasser-, Gasanlagen, Sonstiges",{"$f":"SUMIF(Bauteile!$E$11:$J$13,$B83,Bauteile!$J$11:$J$13)","v":0},0]
[null,420,"Wärmeversorgungsanlagen",{"$f":"SUM(D85:D89)","v":0},{"$f":"SUM(E85:E89)","v":0}]
[null,420,"Wärmeversorgungsanlagen - Eingaben 2. Ebene",{"$f":"SUMIF(Bauteile!$E$11:$J$13,$B85,Bauteile!$J$11:$J$13)","v":0},{"$f":"ROUND(D85*1.19,2)","v":0}]
[null,421,"Wärmeerzeugungsanlagen",{"$f":"SUMIF(Bauteile!$E$11:$J$13,$B86,Bauteile!$J$11:$J$13)","v":0},{"$f":"ROUND(D86*1.19,2)","v":0}]
[null,422,"Wärmeverteilnetze",{"$f":"SUMIF(Bauteile!$E$11:$J$13,$B87,Bauteile!$J$11:$J$13)","v":0},{"$f":"ROUND(D87*1.19,2)","v":0}]
[null,423,"Raumheizflächen",{"$f":"SUMIF(Bauteile!$E$11:$J$13,$B88,Bauteile!$J$11:$J$13)","v":0},0]
[null,429,"Wärmeversorgungsanlagen, Sonstiges",{"$f":"SUMIF(Bauteile!$E$11:$J$13,$B89,Bauteile!$J$11:$J$13)","v":0},0]
[null,430,"Lufttechnische Anlagen",{"$f":"SUM(D91:D96)","v":0},{"$f":"SUM(E91:E96)","v":0}]
[null,430,"Lufttechnische Anlagen - Eingaben 2. Ebene",{"$f":"SUMIF(Bauteile!$E$11:$J$13,$B91,Bauteile!$J$11:$J$13)","v":0},{"$f":"ROUND(D91*1.19,2)","v":0}]
[null,431,"Lüftungsanlagen",{"$f":"SUMIF(Bauteile!$E$11:$J$13,$B92,Bauteile!$J$11:$J$13)","v":0},{"$f":"ROUND(D92*1.19,2)","v":0}]
[null,432,"Teilklimaanlagen",{"$f":"SUMIF(Bauteile!$E$11:$J$13,$B93,Bauteile!$J$11:$J$13)","v":0},{"$f":"ROUND(D93*1.19,2)","v":0}]
[null,433,"Klimaanlagen",{"$f":"SUMIF(Bauteile!$E$11:$J$13,$B94,Bauteile!$J$11:$J$13)","v":0},0]
[null,434,"Kälteanlagen",{"$f":"SUMIF(Bauteile!$E$11:$J$13,$B95,Bauteile!$J$11:$J$13)","v":0},0]
[null,439,"Lufttechnische Anlagen, Sonstiges",{"$f":"SUMIF(Bauteile!$E$11:$J$13,$B96,Bauteile!$J$11:$J$13)","v":0},0]
[null,440,"Starkstromanlagen",{"$f":"SUM(D98:D105)","v":0},{"$f":"SUM(E98:E105)","v":0}]
[null,440,"Starkstromanlagen - Eingaben 2. Ebene",{"$f":"SUMIF(Bauteile!$E$11:$J$13,$B98,Bauteile!$J$11:$J$13)","v":0},{"$f":"ROUND(D98*1.19,2)","v":0}]
[null,441,"Hoch- und Mittelspannungsanlagen",{"$f":"SUMIF(Bauteile!$E$11:$J$13,$B99,Bauteile!$J$11:$J$13)","v":0},{"$f":"ROUND(D99*1.19,2)","v":0}]
[null,442,"Eigenstromversorgungsanlagen",{"$f":"SUMIF(Bauteile!$E$11:$J$13,$B100,Bauteile!$J$11:$J$13)","v":0},{"$f":"ROUND(D100*1.19,2)","v":0}]
[null,443,"Niederspannungsschaltanlagen",{"$f":"SUMIF(Bauteile!$E$11:$J$13,$B101,Bauteile!$J$11:$J$13)","v":0},0]
[null,444,"Niederspannungsinstallationsanlagen",{"$f":"SUMIF(Bauteile!$E$11:$J$13,$B102,Bauteile!$J$11:$J$13)","v":0},0]
[null,445,"Beleuchtungsanlagen",{"$f":"SUMIF(Bauteile!$E$11:$J$13,$B103,Bauteile!$J$11:$J$13)","v":0},0]
[null,446,"Blitzschutz- und Erdungsanlagen",{"$f":"SUMIF(Bauteile!$E$11:$J$13,$B104,Bauteile!$J$11:$J$13)","v":0},0]
[null,449,"Starkstromanlagen, Sonstiges",{"$f":"SUMIF(Bauteile!$E$11:$J$13,$B105,Bauteile!$J$11:$J$13)","v":0},0]
[null,450,"Fernmelde- und informationstechnische Anlagen",{"$f":"SUM(D107:D115)","v":0},{"$f":"SUM(E107:E115)","v":0}]
[null,450,"Telekommunikationsanlagen - Eingaben 2. Ebene",{"$f":"SUMIF(Bauteile!$E$11:$J$13,$B107,Bauteile!$J$11:$J$13)","v":0},{"$f":"ROUND(D107*1.19,2)","v":0}]
[null,451,"Telekommunikationsanlagen",{"$f":"SUMIF(Bauteile!$E$11:$J$13,$B108,Bauteile!$J$11:$J$13)","v":0},{"$f":"ROUND(D108*1.19,2)","v":0}]
[null,452,"Such- und Signalanlagen",{"$f":"SUMIF(Bauteile!$E$11:$J$13,$B109,Bauteile!$J$11:$J$13)","v":0},{"$f":"ROUND(D109*1.19,2)","v":0}]
[null,453,"Zeitdienstanlagen",{"$f":"SUMIF(Bauteile!$E$11:$J$13,$B110,Bauteile!$J$11:$J$13)","v":0},0]
[null,454,"Elektroakustische Anlagen",{"$f":"SUMIF(Bauteile!$E$11:$J$13,$B111,Bauteile!$J$11:$J$13)","v":0},0]
[null,455,"Fernseh- und Antennenanlagen",{"$f":"SUMIF(Bauteile!$E$11:$J$13,$B112,Bauteile!$J$11:$J$13)","v":0},0]
[null,456,"Gefahrenmelde- und Alarmanlagen",{"$f":"SUMIF(Bauteile!$E$11:$J$13,$B113,Bauteile!$J$11:$J$13)","v":0},0]
[null,457,"Übertragungsnetze",{"$f":"SUMIF(Bauteile!$E$11:$J$13,$B114,Bauteile!$J$11:$J$13)","v":0},0]
[null,459,"Fernmelde- und informationstechnische Anlagen, Sonst.",{"$f":"SUMIF(Bauteile!$E$11:$J$13,$B115,Bauteile!$J$11:$J$13)","v":0},0]
[null,460,"Förderanlagen",{"$f":"SUM(D117:D123)","v":0},{"$f":"SUM(E117:E123)","v":0}]
[null,460,"Förderanlagen - Eingaben 2. Ebene",{"$f":"SUMIF(Bauteile!$E$11:$J$13,$B117,Bauteile!$J$11:$J$13)","v":0},{"$f":"ROUND(D117*1.19,2)","v":0}]
[null,461,"Aufzugsanlagen",{"$f":"SUMIF(Bauteile!$E$11:$J$13,$B118,Bauteile!$J$11:$J$13)","v":0},{"$f":"ROUND(D118*1.19,2)","v":0}]
[null,462,"Fahrtreppen, Fahrsteige",{"$f":"SUMIF(Bauteile!$E$11:$J$13,$B119,Bauteile!$J$11:$J$13)","v":0},{"$f":"ROUND(D119*1.19,2)","v":0}]
[null,463,"Befahranlagen",{"$f":"SUMIF(Bauteile!$E$11:$J$13,$B120,Bauteile!$J$11:$J$13)","v":0},0]
[null,464,"Transportanlagen",{"$f":"SUMIF(Bauteile!$E$11:$J$13,$B121,Bauteile!$J$11:$J$13)","v":0},0]
[null,465,"Krananlagen",{"$f":"SUMIF(Bauteile!$E$11:$J$13,$B122,Bauteile!$J$11:$J$13)","v":0},0]
[null,469,"Förderanlagen, Sonstiges",{"$f":"SUMIF(Bauteile!$E$11:$J$13,$B123,Bauteile!$J$11:$J$13)","v":0},0]
[null,470,"Nutzungsspezifische Anlagen",{"$f":"SUM(D125:D134)","v":0},{"$f":"SUM(E125:E134)","v":0}]
[null,470,"Nutzungsspezifische Anlagen - Eingaben 2. Ebene",{"$f":"SUMIF(Bauteile!$E$11:$J$13,$B125,Bauteile!$J$11:$J$13)","v":0},{"$f":"ROUND(D125*1.19,2)","v":0}]
[null,471,"Küchentechnische Anlagen",{"$f":"SUMIF(Bauteile!$E$11:$J$13,$B126,Bauteile!$J$11:$J$13)","v":0},{"$f":"ROUND(D126*1.19,2)","v":0}]
[null,472,"Wäscherei- und Reinigungsanlagen",{"$f":"SUMIF(Bauteile!$E$11:$J$13,$B127,Bauteile!$J$11:$J$13)","v":0},{"$f":"ROUND(D127*1.19,2)","v":0}]
[null,473,"Medienversorgungsanlagen",{"$f":"SUMIF(Bauteile!$E$11:$J$13,$B128,Bauteile!$J$11:$J$13)","v":0},0]
[null,474,"Medizin- und labortechnische Anlagen",{"$f":"SUMIF(Bauteile!$E$11:$J$13,$B129,Bauteile!$J$11:$J$13)","v":0},0]
[null,475,"Feuerlöschanlagen",{"$f":"SUMIF(Bauteile!$E$11:$J$13,$B130,Bauteile!$J$11:$J$13)","v":0},0]
[null,476,"Badetechnische Anlagen",{"$f":"SUMIF(Bauteile!$E$11:$J$13,$B131,Bauteile!$J$11:$J$13)","v":0},0]
[null,477,"Prozesswärme-, kälte-, und luftanlagen",{"$f":"SUMIF(Bauteile!$E$11:$J$13,$B132,Bauteile!$J$11:$J$13)","v":0},0]
[null,478,"Entsorgungsanlagen",{"$f":"SUMIF(Bauteile!$E$11:$J$13,$B133,Bauteile!$J$11:$J$13)","v":0},0]
[null,479,"Nutzungsspezifische Anlagen, Sonstiges",{"$f":"SUMIF(Bauteile!$E$11:$J$13,$B134,Bauteile!$J$11:$J$13)","v":0},0]
[null,480,"Gebäudeautomation",{"$f":"SUM(D136:D142)","v":0},{"$f":"SUM(E136:E142)","v":0}]
[null,480,"Gebäudeautomation - Eingaben 2. Ebene",{"$f":"SUMIF(Bauteile!$E$11:$J$13,$B136,Bauteile!$J$11:$J$13)","v":0},{"$f":"ROUND(D136*1.19,2)","v":0}]
[null,481,"Automationssysteme",{"$f":"SUMIF(Bauteile!$E$11:$J$13,$B137,Bauteile!$J$11:$J$13)","v":0},{"$f":"ROUND(D137*1.19,2)","v":0}]
[null,482,"Schaltschränke",{"$f":"SUMIF(Bauteile!$E$11:$J$13,$B138,Bauteile!$J$11:$J$13)","v":0},{"$f":"ROUND(D138*1.19,2)","v":0}]
[null,483,"Management- und Bedieneinrichtungen",{"$f":"SUMIF(Bauteile!$E$11:$J$13,$B139,Bauteile!$J$11:$J$13)","v":0},0]
[null,484,"Raumautomationssysteme",{"$f":"SUMIF(Bauteile!$E$11:$J$13,$B140,Bauteile!$J$11:$J$13)","v":0},0]
[null,485,"Übertragungsnetze",{"$f":"SUMIF(Bauteile!$E$11:$J$13,$B141,Bauteile!$J$11:$J$13)","v":0},0]
[null,489,"Gebäudeautomation, Sonstiges",{"$f":"SUMIF(Bauteile!$E$11:$J$13,$B142,Bauteile!$J$11:$J$13)","v":0},0]
[null,490,"Sonstige Maßnahmen für technische Anlagen",{"$f":"SUM(D144:D153)","v":0},{"$f":"SUM(E144:E153)","v":0}]
[null,490,"Sonstige Maßnahmen für technische Anlagen - Eingaben 2. Ebene",{"$f":"SUMIF(Bauteile!$E$11:$J$13,$B144,Bauteile!$J$11:$J$13)","v":0},{"$f":"ROUND(D144*1.19,2)","v":0}]
[null,491,"Baustelleneinrichtung",{"$f":"SUMIF(Bauteile!$E$11:$J$13,$B145,Bauteile!$J$11:$J$13)","v":0},{"$f":"ROUND(D145*1.19,2)","v":0}]
[null,492,"Gerüste",{"$f":"SUMIF(Bauteile!$E$11:$J$13,$B146,Bauteile!$J$11:$J$13)","v":0},{"$f":"ROUND(D146*1.19,2)","v":0}]
[null,493,"Sicherungsmaßnahmen",{"$f":"SUMIF(Bauteile!$E$11:$J$13,$B147,Bauteile!$J$11:$J$13)","v":0},0]
[null,494,"Abbruchmaßnahmen",{"$f":"SUMIF(Bauteile!$E$11:$J$13,$B148,Bauteile!$J$11:$J$13)","v":0},0]
[null,495,"Instandsetzungen",{"$f":"SUMIF(Bauteile!$E$11:$J$13,$B149,Bauteile!$J$11:$J$13)","v":0},0]
[null,496,"Materialentsorgung",{"$f":"SUMIF(Bauteile!$E$11:$J$13,$B150,Bauteile!$J$11:$J$13)","v":0},0]
[null,497,"Zusätzliche Maßnahmen",{"$f":"SUMIF(Bauteile!$E$11:$J$13,$B151,Bauteile!$J$11:$J$13)","v":0},0]
[null,498,"Provisorische technische Anlagen",{"$f":"SUMIF(Bauteile!$E$11:$J$13,$B152,Bauteile!$J$11:$J$13)","v":0},0]
[null,499,"Sonstige Maßnahmen für technische Anlagen, Sonst.",{"$f":"SUMIF(Bauteile!$E$11:$J$13,$B153,Bauteile!$J$11:$J$13)","v":0},0]
[]
[null,"Kostengruppen (KG)  nach DIN 276",null,"in EURO netto","in EURO brutto"]
[null,500,"Außenanlagen",{"$f":"D157+D158+D163+D173+D184+D195+D200+D205+D214","v":0},{"$f":"E157+E158+E163+E173+E184+E195+E200+E205+E214","v":0}]
[null,500,"Außenanlagen - Eingaben 1. Ebene",{"$f":"SUMIF(Bauteile!$E$11:$J$13,$B157,Bauteile!$J$11:$J$13)","v":0},{"$f":"ROUND(D157*1.19,2)","v":0}]
[null,510,"Geländeflächen",{"$f":"SUM(D159:D162)","v":0},{"$f":"SUM(E159:E162)","v":0}]
[null,510,"Geländeflächen - Eingaben 2. Ebene",{"$f":"SUMIF(Bauteile!$E$11:$J$13,$B159,Bauteile!$J$11:$J$13)","v":0},{"$f":"ROUND(D159*1.19,2)","v":0}]
[null,511,"Oberbodenarbeiten",{"$f":"SUMIF(Bauteile!$E$11:$J$13,#REF!,Bauteile!$J$11:$J$13)","v":0},{"$f":"ROUND(D160*1.19,2)","v":0}]
[null,512,"Bodenarbeiten",{"$f":"SUMIF(Bauteile!$E$11:$J$13,#REF!,Bauteile!$J$11:$J$13)","v":0},0]
[null,519,"Geländeflächen, sonstiges",{"$f":"SUMIF(Bauteile!$E$11:$J$13,#REF!,Bauteile!$J$11:$J$13)","v":0},0]
[null,520,"Befestigte Flächen",{"$f":"SUM(D164:D172)","v":0},{"$f":"SUM(E164:E172)","v":0}]
[null,520,"Befestigte Flächen - Eingaben 2. Ebene",{"$f":"SUMIF(Bauteile!$E$11:$J$13,$B164,Bauteile!$J$11:$J$13)","v":0},{"$f":"ROUND(D164*1.19,2)","v":0}]
[null,521,"Wege",{"$f":"SUMIF(Bauteile!$E$11:$J$13,$B165,Bauteile!$J$11:$J$13)","v":0},{"$f":"ROUND(D165*1.19,2)","v":0}]
[null,522,"Straßen",{"$f":"SUMIF(Bauteile!$E$11:$J$13,$B166,Bauteile!$J$11:$J$13)","v":0},0]
[null,523,"Plätze, Höfe",{"$f":"SUMIF(Bauteile!$E$11:$J$13,$B167,Bauteile!$J$11:$J$13)","v":0},0]
[null,524,"Stellplätze",{"$f":"SUMIF(Bauteile!$E$11:$J$13,$B168,Bauteile!$J$11:$J$13)","v":0},0]
[null,525,"Sportplatzflächen",{"$f":"SUMIF(Bauteile!$E$11:$J$13,$B169,Bauteile!$J$11:$J$13)","v":0},0]
[null,526,"Spielplatzflächen",{"$f":"SUMIF(Bauteile!$E$11:$J$13,$B170,Bauteile!$J$11:$J$13)","v":0},0]
[null,527,"Gleisanlagen",{"$f":"SUMIF(Bauteile!$E$11:$J$13,$B171,Bauteile!$J$11:$J$13)","v":0},0]
[null,529,"Befestigte Flächen, sonstiges",{"$f":"SUMIF(Bauteile!$E$11:$J$13,$B172,Bauteile!$J$11:$J$13)","v":0},0]
[null,530,"Baukonstruktionen in Außenanlagen",{"$f":"SUM(D174:D183)","v":0},{"$f":"SUM(E174:E183)","v":0}]
[null,530,"Baukonstruktionen in Außenanlagen - Eingaben 2. Ebene",{"$f":"SUMIF(Bauteile!$E$11:$J$13,$B174,Bauteile!$J$11:$J$13)","v":0},{"$f":"ROUND(D174*1.19,2)","v":0}]
[null,531,"Einfriedungen",{"$f":"SUMIF(Bauteile!$E$11:$J$13,$B175,Bauteile!$J$11:$J$13)","v":0},{"$f":"ROUND(D175*1.19,2)","v":0}]
[null,532,"Schutzkonstruktionen",{"$f":"SUMIF(Bauteile!$E$11:$J$13,$B176,Bauteile!$J$11:$J$13)","v":0},0]
[null,533,"Mauern, Wände",{"$f":"SUMIF(Bauteile!$E$11:$J$13,$B177,Bauteile!$J$11:$J$13)","v":0},0]
[null,534,"Rampen, Treppen, Tribünen",{"$f":"SUMIF(Bauteile!$E$11:$J$13,$B178,Bauteile!$J$11:$J$13)","v":0},0]
[null,535,"Überdachungen",{"$f":"SUMIF(Bauteile!$E$11:$J$13,$B179,Bauteile!$J$11:$J$13)","v":0},0]
[null,536,"Brücken, Stege",{"$f":"SUMIF(Bauteile!$E$11:$J$13,$B180,Bauteile!$J$11:$J$13)","v":0},0]
[null,537,"Kanal- und Schachtbauanlagen",{"$f":"SUMIF(Bauteile!$E$11:$J$13,$B181,Bauteile!$J$11:$J$13)","v":0},0]
[null,538,"Wasserbauliche Anlagen",{"$f":"SUMIF(Bauteile!$E$11:$J$13,$B182,Bauteile!$J$11:$J$13)","v":0},0]
[null,539,"Baukonstruktionen in Außenanlagen, sonstiges",{"$f":"SUMIF(Bauteile!$E$11:$J$13,$B183,Bauteile!$J$11:$J$13)","v":0},0]
[null,540,"Technische Anlagen in Außenanlagen",{"$f":"SUM(D185:D194)","v":0},{"$f":"SUM(E185:E194)","v":0}]
[null,540,"Technische Anlagen in Außenanlagen - Eingaben 2. Ebene",{"$f":"SUMIF(Bauteile!$E$11:$J$13,$B185,Bauteile!$J$11:$J$13)","v":0},{"$f":"ROUND(D185*1.19,2)","v":0}]
[null,541,"Abwasseranlagen",{"$f":"SUMIF(Bauteile!$E$11:$J$13,$B186,Bauteile!$J$11:$J$13)","v":0},{"$f":"ROUND(D186*1.19,2)","v":0}]
[null,542,"Wasseranlagen",{"$f":"SUMIF(Bauteile!$E$11:$J$13,$B187,Bauteile!$J$11:$J$13)","v":0},0]
[null,543,"Gasanlagen",{"$f":"SUMIF(Bauteile!$E$11:$J$13,$B188,Bauteile!$J$11:$J$13)","v":0},0]
[null,544,"Wärmeversorgungsanlagen",{"$f":"SUMIF(Bauteile!$E$11:$J$13,$B189,Bauteile!$J$11:$J$13)","v":0},0]
[null,545,"Lufttechnische Anlagen",{"$f":"SUMIF(Bauteile!$E$11:$J$13,$B190,Bauteile!$J$11:$J$13)","v":0},0]
[null,546,"Starkstromanlagen",{"$f":"SUMIF(Bauteile!$E$11:$J$13,$B191,Bauteile!$J$11:$J$13)","v":0},0]
[null,547,"Fernmelde- und informationstechnische Anlagen",{"$f":"SUMIF(Bauteile!$E$11:$J$13,$B192,Bauteile!$J$11:$J$13)","v":0},0]
[null,548,"Nutzungsspezifische Anlagen",{"$f":"SUMIF(Bauteile!$E$11:$J$13,$B193,Bauteile!$J$11:$J$13)","v":0},0]
[null,549,"Technische Anlagen in Außenanlagen, sonstiges",{"$f":"SUMIF(Bauteile!$E$11:$J$13,$B194,Bauteile!$J$11:$J$13)","v":0},0]
[null,550,"Einbauten in Außenanlagen",{"$f":"SUM(D196:D199)","v":0},{"$f":"SUM(E196:E199)","v":0}]
[null,550,"Einbauten in Außenanlagen - Eingaben 2. Ebene",{"$f":"SUMIF(Bauteile!$E$11:$J$13,$B196,Bauteile!$J$11:$J$13)","v":0},{"$f":"ROUND(D196*1.19,2)","v":0}]
[null,551,"Allgemeine Einbauten",{"$f":"SUMIF(Bauteile!$E$11:$J$13,$B197,Bauteile!$J$11:$J$13)","v":0},{"$f":"ROUND(D197*1.19,2)","v":0}]
[null,552,"Besondere Einbauten",{"$f":"SUMIF(Bauteile!$E$11:$J$13,$B198,Bauteile!$J$11:$J$13)","v":0},0]
[null,559,"Einbauten in Außenanlagen, sonstiges",{"$f":"SUMIF(Bauteile!$E$11:$J$13,$B199,Bauteile!$J$11:$J$13)","v":0},0]
[null,560,"Wasserflächen",{"$f":"SUM(D201:D204)","v":0},{"$f":"SUM(E201:E204)","v":0}]
[null,560,"Wasserflächen - Eingaben 2. Ebene",{"$f":"SUMIF(Bauteile!$E$11:$J$13,$B201,Bauteile!$J$11:$J$13)","v":0},{"$f":"ROUND(D201*1.19,2)","v":0}]
[null,561,"Abdichtungen",{"$f":"SUMIF(Bauteile!$E$11:$J$13,$B202,Bauteile!$J$11:$J$13)","v":0},{"$f":"ROUND(D202*1.19,2)","v":0}]
[null,562,"Bepflanzungen",{"$f":"SUMIF(Bauteile!$E$11:$J$13,$B203,Bauteile!$J$11:$J$13)","v":0},0]
[null,569,"Wasserflächen, sonstiges",{"$f":"SUMIF(Bauteile!$E$11:$J$13,$B204,Bauteile!$J$11:$J$13)","v":0},0]
[null,570,"Pflanz- und Saatflächen",{"$f":"SUM(D206:D213)","v":0},{"$f":"SUM(E206:E213)","v":0}]
[null,570,"Pflanz- und Saatflächen - Eingaben 2. Ebene",{"$f":"SUMIF(Bauteile!$E$11:$J$13,$B206,Bauteile!$J$11:$J$13)","v":0},{"$f":"ROUND(D206*1.19,2)","v":0}]
[null,571,"Oberbodenarbeiten",{"$f":"SUMIF(Bauteile!$E$11:$J$13,$B207,Bauteile!$J$11:$J$13)","v":0},{"$f":"ROUND(D207*1.19,2)","v":0}]
[null,572,"Vegetationstechnische Bodenbearbeitung",{"$f":"SUMIF(Bauteile!$E$11:$J$13,$B208,Bauteile!$J$11:$J$13)","v":0},0]
[null,573,"Sicherungsbauweisen",{"$f":"SUMIF(Bauteile!$E$11:$J$13,$B209,Bauteile!$J$11:$J$13)","v":0},0]
[null,574,"Pflanzen",{"$f":"SUMIF(Bauteile!$E$11:$J$13,$B210,Bauteile!$J$11:$J$13)","v":0},0]
[null,575,"Rasen und Ansaaten",{"$f":"SUMIF(Bauteile!$E$11:$J$13,$B211,Bauteile!$J$11:$J$13)","v":0},0]
[null,576,"Begrünung unterbauter Flächen",{"$f":"SUMIF(Bauteile!$E$11:$J$13,$B212,Bauteile!$J$11:$J$13)","v":0},0]
[null,579,"Pflanz- und Saatflächen, sonstiges",{"$f":"SUMIF(Bauteile!$E$11:$J$13,$B213,Bauteile!$J$11:$J$13)","v":0},0]
[null,590,"Sonstige Außenanlagen",{"$f":"SUM(D215:D224)","v":0},{"$f":"SUM(E215:E224)","v":0}]
[null,590,"Sonstige Außenanlagen - Eingaben 2. Ebene",{"$f":"SUMIF(Bauteile!$E$11:$J$13,$B215,Bauteile!$J$11:$J$13)","v":0},{"$f":"ROUND(D215*1.19,2)","v":0}]
[null,591,"Baustelleneinrichtung",{"$f":"SUMIF(Bauteile!$E$11:$J$13,$B216,Bauteile!$J$11:$J$13)","v":0},{"$f":"ROUND(D216*1.19,2)","v":0}]
[null,592,"Gerüste",{"$f":"SUMIF(Bauteile!$E$11:$J$13,$B217,Bauteile!$J$11:$J$13)","v":0},0]
[null,593,"Sicherungsmaßnahmen",{"$f":"SUMIF(Bauteile!$E$11:$J$13,$B218,Bauteile!$J$11:$J$13)","v":0},0]
[null,594,"Abbruchmaßnahmen",{"$f":"SUMIF(Bauteile!$E$11:$J$13,$B219,Bauteile!$J$11:$J$13)","v":0},0]
[null,595,"Instandsetzungen",{"$f":"SUMIF(Bauteile!$E$11:$J$13,$B220,Bauteile!$J$11:$J$13)","v":0},0]
[null,596,"Materialentsorgung",{"$f":"SUMIF(Bauteile!$E$11:$J$13,$B221,Bauteile!$J$11:$J$13)","v":0},0]
[null,597,"Zusätzliche Maßnahmen",{"$f":"SUMIF(Bauteile!$E$11:$J$13,$B222,Bauteile!$J$11:$J$13)","v":0},0]
[null,598,"Provisorische Außenanlagen",{"$f":"SUMIF(Bauteile!$E$11:$J$13,$B223,Bauteile!$J$11:$J$13)","v":0},0]
[null,599,"Sonstige Maßnahmen für Außenanlagen, sonstiges",{"$f":"SUMIF(Bauteile!$E$11:$J$13,$B224,Bauteile!$J$11:$J$13)","v":0},0]

{"sheet":"Bauteile","index":3,"n_rows":13,"n_cols":779,"rows_kept":13,"cut":false,"hidden":false,"merged":[[1,2,1,4],[2,2,2,4],[0,0,0,2],[4,0,4,2],[5,20,5,21],[5,4,5,5],[4,9,4,14],[5,15,5,17],[5,10,5,11],[4,15,4,21],[4,4,4,8],[5,6,5,7],[4,32,4,43],[5,41,5,43],[5,29,5,31],[5,23,5,24],[5,38,5,40],[5,32,5,34],[5,35,5,37],[5,26,5,28],[4,25,4,31],[4,22,4,24]]}
["Berechnung LCC nach BNB BN 2.1.1 v2011\nEingabe Bauteile",null,null,null,"BBR-LCC\nVer. 15-1\nBBR A1"]
["Projekt:",null,{"$f":"IF(ISTEXT(Projekt),Projekt,\"\")","v":""}]
["Stand:",null,{"$f":"IF(ISNUMBER(LCC_Stand),LCC_Stand,\"\")","v":""}]
[]
["Bauteil",null,null,null,"Grunddaten",null,null,null,null,"Herstellkosten",null,null,null,null,null,"Nutzungsdauer",null,null,null,null,null,null,"regelmäßige Kosten (Kontrolle)",null,null,"regelmäßige Kosten",null,null,null,null,null,null,"Berechnung",null,null,null,null,null,null,null,null,null,null,null,"Barwert","Barwert",null,null,"Barwert","Barwert","Barwert","Barwert","Barwert","Barwert","Barwert","Barwert","Barwert","Barwert","Barwert","Barwert","Barwert","Barwert","Barwert","Barwert","Barwert","Barwert","Barwert","Barwert","Barwert","Barwert","Barwert","Barwert","Barwert","Barwert","Barwert","Barwert","Barwert","Barwert","Barwert","Barwert","Barwert","Barwert","Barwert","Barwert","Barwert","Barwert","Barwert","Barwert","Barwert","Barwert","Barwert","Barwert","Barwert","Barwert","Barwert","Barwert","Barwert","Barwert","Barwert","Barwert","Barwert","Barwert","Barwert","Barwert","Barwert","Barwert","Barwert","Barwert","Barwert","Barwert","Barwert","Barwert","Barwert","Barwert","Barwert","Barwert","Barwert","Barwert","Barwert","Barwert","Barwert","Barwert","Barwert","Barwert","Barwert","Barwert","Barwert","Barwert","Barwert","Barwert","Barwert","Barwert","Barwert","Barwert","Barwert","Barwert","Barwert","Barwert","Barwert","Barwert","Barwert","Barwert","Barwert","Barwert","Barwert","Barwert","Barwert","Barwert","Barwert","Barwert","Barwert","Barwert","Barwert","Barwert","Barwert","Barwert","Barwert","Barwert","Barwert","Barwert","Barwert","Barwert","Barwert","Barwert","Barwert","Barwert","Barwert","Barwert","Barwert","Barwert","Barwert","Barwert","Barwert","Barwert","Barwert","Barwert","Barwert","Barwert","Barwert","Barwert","Barwert","Barwert","Barwert","Barwert","Barwert","Barwert","Barwert","Barwert","Barwert","Barwert","Barwert","Barwert","Barwert","Barwert","Barwert","Barwert","Barwert","Barwert","Barwert","Barwert","Barwert","Barwert","Barwert","Barwert","Barwert","Barwert","Barwert","Barwert","Barwert","Barwert","Barwert","Barwert","Barwert","Barwert","Barwert","Barwert","Barwert","Barwert","Barwert","Barwert","Barwert","Barwert","Barwert","Barwert","Barwert","Barwert","Barwert","Barwert","Barwert","Barwert","Barwert","Barwert","Barwert","Barwert","Barwert","Barwert","Barwert","Barwert","Barwert","Barwert","Barwert","Barwert","Barwert","Barwert","Barwert","Barwert","Barwert","Barwert","Barwert","Barwert","Barwert","Barwert","Barwert","Barwert","Barwert","Barwert","Barwert","Barwert","Barwert","Barwert","Barwert","Barwert","Barwert","Barwert","Barwert","Barwert","Barwert","Barwert","Barwert","Barwert","Barwert","Barwert","Barwert","Barwert","Barwert","Barwert","Barwert","Barwert","Barwert","Barwert","Barwert","Barwert","Barwert","Barwert","Barwert","Barwert","Barwert","Barwert","Barwert","Barwert","Barwert",null,"Barwert","Barwert","Barwert","Barwert","Barwert","Barwert","Barwert","Barwert","Barwert","Barwert","Barwert","Barwert","Barwert","Barwert","Barwert","Barwert","Barwert","Barwert","Barwert","Barwert","Barwert","Barwert","Barwert","Barwert","Barwert","Barwert","Barwert","Barwert","Barwert","Barwert","Barwert","Barwert","Barwert","Barwert","Barwert","Barwert","Barwert","Barwert","Barwert","Barwert","Barwert","Barwert","Barwert","Barwert","Barwert","Barwert","Barwert","Barwert","Barwert","Barwert","Barwert","Barwert","Barwert","Barwert","Barwert","Barwert","Barwert","Barwert","Barwert","Barwert","Barwert","Barwert","Barwert","Barwert","Barwert","Barwert","Barwert","Barwert","Barwert","Barwert","Barwert","Barwert","Barwert","Barwert","Barwert","Barwert","Barwert","Barwert","Barwert","Barwert","Barwert","Barwert","Barwert","Barwert","Barwert","Barwert","Barwert","Barwert","Barwert","Barwert","Barwert","Barwert","Barwert","Barwert","Barwert","Barwert","Barwert","Barwert","Barwert","Barwert","Barwert","Barwert","Barwert","Barwert","Barwert","Barwert","Barwert","Barwert","Barwert","Barwert","Barwert","Barwert","Barwert","Barwert","Barwert","Barwert","Barwert","Barwert","Barwert","Barwert","Barwert","Barwert","Barwert","Barwert","Barwert","Barwert","Barwert","Barwert","Barwert","Barwert","Barwert","Barwert","Barwert","Barwert","Barwert","Barwert","Barwert","Barwert","Barwert","Barwert","Barwert","Barwert","Barwert","Barwert","Barwert","Barwert","Barwert","Barwert","Barwert","Barwert","Barwert","Barwert","Barwert","Barwert","Barwert","Barwert","Barwert","Barwert","Barwert","Barwert","Barwert","Barwert","Barwert","Barwert","Barwert","Barwert","Barwert","Barwert","Barwert","Barwert","Barwert","Barwert","Barwert","Barwert","Barwert","Barwert","Barwert","Barwert","Barwert","Barwert","Barwert","Barwert","Barwert","Barwert","Barwert","Barwert","Barwert","Barwert","Barwert","Barwert","Barwert","Barwert","Barwert","Barwert","Barwert","Barwert","Barwert","Barwert","Barwert","Barwert","Barwert","Barwert","Barwert","Barwert","Barwert","Barwert","Barwert","Barwert","Barwert","Barwert","Barwert","Barwert","Barwert","Barwert","Barwert","Barwert","Barwert","Barwert","Barwert","Barwert","Barwert","Barwert","Barwert","Barwert","Barwert","Barwert","Barwert","Barwert","Barwert","Barwert","Barwert","Barwert","Barwert","Barwert","Barwert","Barwert","Barwert","Barwert","Barwert","Barwert","Barwert","Barwert","Barwert",null,"Barwert","Barwert","Barwert","Barwert","Barwert","Barwert","Barwert","Barwert","Barwert","Barwert","Barwert","Barwert","Barwert","Barwert","Barwert","Barwert","Barwert","Barwert","Barwert","Barwert","Barwert","Barwert","Barwert","Barwert","Barwert","Barwert","Barwert","Barwert","Barwert","Barwert","Barwert","Barwert","Barwert","Barwert","Barwert","Barwert","Barwert","Barwert","Barwert","Barwert","Barwert","Barwert","Barwert","Barwert","Barwert","Barwert","Barwert","Barwert","Barwert","Barwert","Barwert","Barwert","Barwert","Barwert","Barwert","Barwert","Barwert","Barwert","Barwert","Barwert","Barwert","Barwert","Barwert","Barwert","Barwert","Barwert","Barwert","Barwert","Barwert","Barwert","Barwert","Barwert","Barwert","Barwert","Barwert","Barwert","Barwert","Barwert","Barwert","Barwert","Barwert","Barwert","Barwert","Barwert","Barwert","Barwert","Barwert","Barwert","Barwert","Barwert","Barwert","Barwert","Barwert","Barwert","Barwert","Barwert","Barwert","Barwert","Barwert","Barwert","Barwert","Barwert","Barwert","Barwert","Barwert","Barwert","Barwert","Barwert","Barwert","Barwert","Barwert","Barwert","Barwert","Barwert","Barwert","Barwert","Barwert","Barwert","Barwert","Barwert","Barwert","Barwert","Barwert","Barwert","Barwert","Barwert","Barwert","Barwert","Barwert","Barwert","Barwert","Barwert","Barwert","Barwert","Barwert","Barwert","Barwert","Barwert","Barwert","Barwert","Barwert","Barwert","Barwert","Barwert","Barwert","Barwert","Barwert","Barwert","Barwert","Barwert","Barwert","Barwert","Barwert","Barwert","Barwert","Barwert","Barwert","Barwert","Barwert","Barwert","Barwert","Barwert","Barwert","Barwert","Barwert","Barwert","Barwert","Barwert","Barwert","Barwert","Barwert","Barwert","Barwert","Barwert","Barwert","Barwert","Barwert","Barwert","Barwert","Barwert","Barwert","Barwert","Barwert","Barwert","Barwert","Barwert","Barwert","Barwert","Barwert","Barwert","Barwert","Barwert","Barwert","Barwert","Barwert","Barwert","Barwert","Barwert","Barwert","Barwert","Barwert","Barwert","Barwert","Barwert","Barwert","Barwert","Barwert","Barwert","Barwert","Barwert","Barwert","Barwert","Barwert","Barwert","Barwert","Barwert","Barwert","Barwert","Barwert","Barwert","Barwert","Barwert","Barwert","Barwert","Barwert","Barwert","Barwert","Barwert","Barwert","Barwert","Barwert","Barwert","Barwert","Barwert","Barwert","Barwert","Barwert","Barwert","Barwert","Barwert","Barwert","Barwert","Barwert"]
["Nr.","OZ","Bezeichnung","Einbauort","Kostengruppe",null,"Relevanz",null,"Kommentar","GP netto","GP netto\nindiziert für LCC",null,"Menge","Einheit","EP",null,null,null,"Auswahl Datensatz",null,"Handeingabe",null,null,"Absolut",null,"Summe","Auswahl Datensatz",null,null,"Handeingabe",null,null,"Erstherstellung",null,null,"Herstellkosten für Folgekosten",null,null,"Inspektion und Wartung",null,null,"regelmäßige Instandsetzung",null,null,"Gesamt","Gesamt",null,null,"Ersatzinvestitionen","Ersatzinvestitionen","Ersatzinvestitionen","Ersatzinvestitionen","Ersatzinvestitionen","Ersatzinvestitionen","Ersatzinvestitionen","Ersatzinvestitionen","Ersatzinvestitionen","Ersatzinvestitionen","Ersatzinvestitionen","Ersatzinvestitionen","Ersatzinvestitionen","Ersatzinvestitionen","Ersatzinvestitionen","Ersatzinvestitionen","Ersatzinvestitionen","Ersatzinvestitionen","Ersatzinvestitionen","Ersatzinvestitionen","Ersatzinvestitionen","Ersatzinvestitionen","Ersatzinvestitionen","Ersatzinvestitionen","Ersatzinvestitionen","Ersatzinvestitionen","Ersatzinvestitionen","Ersatzinvestitionen","Ersatzinvestitionen","Ersatzinvestitionen","Ersatzinvestitionen","Ersatzinvestitionen","Ersatzinvestitionen","Ersatzinvestitionen","Ersatzinvestitionen","Ersatzinvestitionen","Ersatzinvestitionen","Ersatzinvestitionen","Ersatzinvestitionen","Ersatzinvestitionen","Ersatzinvestitionen","Ersatzinvestitionen","Ersatzinvestitionen","Ersatzinvestitionen","Ersatzinvestitionen","Ersatzinvestitionen","Ersatzinvestitionen","Ersatzinvestitionen","Ersatzinvestitionen","Ersatzinvestitionen","Ersatzinvestitionen","Ersatzinvestitionen","Ersatzinvestitionen","Ersatzinvestitionen","Ersatzinvestitionen","Ersatzinvestitionen","Ersatzinvestitionen","Ersatzinvestitionen","Ersatzinvestitionen","Ersatzinvestitionen","Ersatzinvestitionen","Ersatzinvestitionen","Ersatzinvestitionen","Ersatzinvestitionen","Ersatzinvestitionen","Ersatzinvestitionen","Ersatzinvestitionen","Ersatzinvestitionen","Ersatzinvestitionen","Ersatzinvestitionen","Ersatzinvestitionen","Ersatzinvestitionen","Ersatzinvestitionen","Ersatzinvestitionen","Ersatzinvestitionen","Ersatzinvestitionen","Ersatzinvestitionen","Ersatzinvestitionen","Ersatzinvestitionen","Ersatzinvestitionen","Ersatzinvestitionen","Ersatzinvestitionen","Ersatzinvestitionen","Ersatzinvestitionen","Ersatzinvestitionen","Ersatzinvestitionen","Ersatzinvestitionen","Ersatzinvestitionen","Ersatzinvestitionen","Ersatzinvestitionen","Ersatzinvestitionen","Ersatzinvestitionen","Ersatzinvestitionen","Ersatzinvestitionen","Ersatzinvestitionen","Ersatzinvestitionen","Ersatzinvestitionen","Ersatzinvestitionen","Ersatzinvestitionen","Ersatzinvestitionen","Ersatzinvestitionen","Ersatzinvestitionen","Ersatzinvestitionen","Ersatzinvestitionen","Ersatzinvestitionen","Ersatzinvestitionen","Ersatzinvestitionen","Ersatzinvestitionen","Ersatzinvestitionen","Ersatzinvestitionen","Ersatzinvestitionen","Ersatzinvestitionen","Ersatzinvestitionen","Ersatzinvestitionen","Ersatzinvestitionen","Ersatzinvestitionen","Ersatzinvestitionen","Ersatzinvestitionen","Ersatzinvestitionen","Ersatzinvestitionen","Ersatzinvestitionen","Ersatzinvestitionen","Ersatzinvestitionen","Ersatzinvestitionen","Ersatzinvestitionen","Ersatzinvestitionen","Ersatzinvestitionen","Ersatzinvestitionen","Ersatzinvestitionen","Ersatzinvestitionen","Ersatzinvestitionen","Ersatzinvestitionen","Ersatzinvestitionen","Ersatzinvestitionen","Ersatzinvestitionen","Ersatzinvestitionen","Ersatzinvestitionen","Ersatzinvestitionen","Ersatzinvestitionen","Ersatzinvestitionen","Ersatzinvestitionen","Ersatzinvestitionen","Ersatzinvestitionen","Ersatzinvestitionen","Ersatzinvestitionen","Ersatzinvestitionen","Ersatzinvestitionen","Ersatzinvestitionen","Ersatzinvestitionen","Ersatzinvestitionen","Ersatzinvestitionen","Ersatzinvestitionen","Ersatzinvestitionen","Ersatzinvestitionen","Ersatzinvestitionen","Ersatzinvestitionen","Ersatzinvestitionen","Ersatzinvestitionen","Ersatzinvestitionen","Ersatzinvestitionen","Ersatzinvestitionen","Ersatzinvestitionen","Ersatzinvestitionen","Ersatzinvestitionen","Ersatzinvestitionen","Ersatzinvestitionen","Ersatzinvestitionen","Ersatzinvestitionen","Ersatzinvestitionen","Ersatzinvestitionen","Ersatzinvestitionen","Ersatzinvestitionen","Ersatzinvestitionen","Ersatzinvestitionen","Ersatzinvestitionen","Ersatzinvestitionen","Ersatzinvestitionen","Ersatzinvestitionen","Ersatzinvestitionen","Ersatzinvestitionen","Ersatzinvestitionen","Ersatzinvestitionen","Ersatzinvestitionen","Ersatzinvestitionen","Ersatzinvestitionen","Ersatzinvestitionen","Ersatzinvestitionen","Ersatzinvestitionen","Ersatzinvestitionen","Ersatzinvestitionen","Ersatzinvestitionen","Ersatzinvestitionen","Ersatzinvestitionen","Ersatzinvestitionen","Ersatzinvestitionen","Ersatzinvestitionen","Ersatzinvestitionen","Ersatzinvestitionen","Ersatzinvestitionen","Ersatzinvestitionen","Ersatzinvestitionen","Ersatzinvestitionen","Ersatzinvestitionen","Ersatzinvestitionen","Ersatzinvestitionen","Ersatzinvestitionen","Ersatzinvestitionen","Ersatzinvestitionen","Ersatzinvestitionen","Ersatzinvestitionen","Ersatzinvestitionen","Ersatzinvestitionen","Ersatzinvestitionen","Ersatzinvestitionen","Ersatzinvestitionen","Ersatzinvestitionen","Ersatzinvestitionen","Ersatzinvestitionen","Ersatzinvestitionen","Ersatzinvestitionen","Ersatzinvestitionen","Ersatzinvestitionen","Ersatzinvestitionen","Ersatzinvestitionen","Ersatzinvestitionen","Ersatzinvestitionen","Ersatzinvestitionen","Ersatzinvestitionen","Ersatzinvestitionen","Ersatzinvestitionen","Ersatzinvestitionen","Ersatzinvestitionen","Ersatzinvestitionen","Ersatzinvestitionen","Ersatzinvestitionen","Ersatzinvestitionen","Ersatzinvestitionen","Ersatzinvestitionen","Ersatzinvestitionen","Ersatzinvestitionen","Ersatzinvestitionen","Ersatzinvestitionen","Ersatzinvestitionen",null,"Inspektion und Wartung","Inspektion und Wartung","Inspektion und Wartung","Inspektion und Wartung","Inspektion und Wartung","Inspektion und Wartung","Inspektion und Wartung","Inspektion und Wartung","Inspektion und Wartung","Inspektion und Wartung","Inspektion und Wartung","Inspektion und Wartung","Inspektion und Wartung","Inspektion und Wartung","Inspektion und Wartung","Inspektion und Wartung","Inspektion und Wartung","Inspektion und Wartung","Inspektion und Wartung","Inspektion und Wartung","Inspektion und Wartung","Inspektion und Wartung","Inspektion und Wartung","Inspektion und Wartung","Inspektion und Wartung","Inspektion und Wartung","Inspektion und Wartung","Inspektion und Wartung","Inspektion und Wartung","Inspektion und Wartung","Inspektion und Wartung","Inspektion und Wartung","Inspektion und Wartung","Inspektion und Wartung","Inspektion und Wartung","Inspektion und Wartung","Inspektion und Wartung","Inspektion und Wartung","Inspektion und Wartung","Inspektion und Wartung","Inspektion und Wartung","Inspektion und Wartung","Inspektion und Wartung","Inspektion und Wartung","Inspektion und Wartung","Inspektion und Wartung","Inspektion und Wartung","Inspektion und Wartung","Inspektion und Wartung","Inspektion und Wartung","Inspektion und Wartung","Inspektion und Wartung","Inspektion und Wartung","Inspektion und Wartung","Inspektion und Wartung","Inspektion und Wartung","Inspektion und Wartung","Inspektion und Wartung","Inspektion und Wartung","Inspektion und Wartung","Inspektion und Wartung","Inspektion und Wartung","Inspektion und Wartung","Inspektion und Wartung","Inspektion und Wartung","Inspektion und Wartung","Inspektion und Wartung","Inspektion und Wartung","Inspektion und Wartung","Inspektion und Wartung","Inspektion und Wartung","Inspektion und Wartung","Inspektion und Wartung","Inspektion und Wartung","Inspektion und Wartung","Inspektion und Wartung","Inspektion und Wartung","Inspektion und Wartung","Inspektion und Wartung","Inspektion und Wartung","Inspektion und Wartung","Inspektion und Wartung","Inspektion und Wartung","Inspektion und Wartung","Inspektion und Wartung","Inspektion und Wartung","Inspektion und Wartung","Inspektion und Wartung","Inspektion und Wartung","Inspektion und Wartung","Inspektion und Wartung","Inspektion und Wartung","Inspektion und Wartung","Inspektion und Wartung","Inspektion und Wartung","Inspektion und Wartung","Inspektion und Wartung","Inspektion und Wartung","Inspektion und Wartung","Inspektion und Wartung","Inspektion und Wartung","Inspektion und Wartung","Inspektion und Wartung","Inspektion und Wartung","Inspektion und Wartung","Inspektion und Wartung","Inspektion und Wartung","Inspektion und Wartung","Inspektion und Wartung","Inspektion und Wartung","Inspektion und Wartung","Inspektion und Wartung","Inspektion und Wartung","Inspektion und Wartung","Inspektion und Wartung","Inspektion und Wartung","Inspektion und Wartung","Inspektion und Wartung","Inspektion und Wartung","Inspektion und Wartung","Inspektion und Wartung","Inspektion und Wartung","Inspektion und Wartung","Inspektion und Wartung","Inspektion und Wartung","Inspektion und Wartung","Inspektion und Wartung","Inspektion und Wartung","Inspektion und Wartung","Inspektion und Wartung","Inspektion und Wartung","Inspektion und Wartung","Inspektion und Wartung","Inspektion und Wartung","Inspektion und Wartung","Inspektion und Wartung","Inspektion und Wartung","Inspektion und Wartung","Inspektion und Wartung","Inspektion und Wartung","Inspektion und Wartung","Inspektion und Wartung","Inspektion und Wartung","Inspektion und Wartung","Inspektion und Wartung","Inspektion und Wartung","Inspektion und Wartung","Inspektion und Wartung","Inspektion und Wartung","Inspektion und Wartung","Inspektion und Wartung","Inspektion und Wartung","Inspektion und Wartung","Inspektion und Wartung","Inspektion und Wartung","Inspektion und Wartung","Inspektion und Wartung","Inspektion und Wartung","Inspektion und Wartung","Inspektion und Wartung","Inspektion und Wartung","Inspektion und Wartung","Inspektion und Wartung","Ersatzinvestitionen","Ersatzinvestitionen","Ersatzinvestitionen","Ersatzinvestitionen","Ersatzinvestitionen","Ersatzinvestitionen","Ersatzinvestitionen","Ersatzinvestitionen","Ersatzinvestitionen","Ersatzinvestitionen","Ersatzinvestitionen","Ersatzinvestitionen","Ersatzinvestitionen","Ersatzinvestitionen","Ersatzinvestitionen","Ersatzinvestitionen","Ersatzinvestitionen","Ersatzinvestitionen","Ersatzinvestitionen","Ersatzinvestitionen","Ersatzinvestitionen","Ersatzinvestitionen","Ersatzinvestitionen","Ersatzinvestitionen","Ersatzinvestitionen","Ersatzinvestitionen","Ersatzinvestitionen","Ersatzinvestitionen","Ersatzinvestitionen","Ersatzinvestitionen","Ersatzinvestitionen","Ersatzinvestitionen","Ersatzinvestitionen","Ersatzinvestitionen","Ersatzinvestitionen","Ersatzinvestitionen","Ersatzinvestitionen","Ersatzinvestitionen","Ersatzinvestitionen","Ersatzinvestitionen","Ersatzinvestitionen","Ersatzinvestitionen","Ersatzinvestitionen","Ersatzinvestitionen","Ersatzinvestitionen","Ersatzinvestitionen","Ersatzinvestitionen","Ersatzinvestitionen","Ersatzinvestitionen","Ersatzinvestitionen","Ersatzinvestitionen","Ersatzinvestitionen","Ersatzinvestitionen","Ersatzinvestitionen","Ersatzinvestitionen","Ersatzinvestitionen","Ersatzinvestitionen","Ersatzinvestitionen","Ersatzinvestitionen","Ersatzinvestitionen","Ersatzinvestitionen","Ersatzinvestitionen","Ersatzinvestitionen","Ersatzinvestitionen","Ersatzinvestitionen","Ersatzinvestitionen","Ersatzinvestitionen","Ersatzinvestitionen","Ersatzinvestitionen","Ersatzinvestitionen","Ersatzinvestitionen","Ersatzinvestitionen","Ersatzinvestitionen","Ersatzinvestitionen","Ersatzinvestitionen","Ersatzinvestitionen","Ersatzinvestitionen","Ersatzinvestitionen","Ersatzinvestitionen","Ersatzinvestitionen",null,"regelmäßige Instandsetzung","regelmäßige Instandsetzung","regelmäßige Instandsetzung","regelmäßige Instandsetzung","regelmäßige Instandsetzung","regelmäßige Instandsetzung","regelmäßige Instandsetzung","regelmäßige Instandsetzung","regelmäßige Instandsetzung","regelmäßige Instandsetzung","regelmäßige Instandsetzung","regelmäßige Instandsetzung","regelmäßige Instandsetzung","regelmäßige Instandsetzung","regelmäßige Instandsetzung","regelmäßige Instandsetzung","regelmäßige Instandsetzung","regelmäßige Instandsetzung","regelmäßige Instandsetzung","regelmäßige Instandsetzung","regelmäßige Instandsetzung","regelmäßige Instandsetzung","regelmäßige Instandsetzung","regelmäßige Instandsetzung","regelmäßige Instandsetzung","regelmäßige Instandsetzung","regelmäßige Instandsetzung","regelmäßige Instandsetzung","regelmäßige Instandsetzung","regelmäßige Instandsetzung","regelmäßige Instandsetzung","regelmäßige Instandsetzung","regelmäßige Instandsetzung","regelmäßige Instandsetzung","regelmäßige Instandsetzung","regelmäßige Instandsetzung","regelmäßige Instandsetzung","regelmäßige Instandsetzung","regelmäßige Instandsetzung","regelmäßige Instandsetzung","regelmäßige Instandsetzung","regelmäßige Instandsetzung","regelmäßige Instandsetzung","regelmäßige Instandsetzung","regelmäßige Instandsetzung","regelmäßige Instandsetzung","regelmäßige Instandsetzung","regelmäßige Instandsetzung","regelmäßige Instandsetzung","regelmäßige Instandsetzung","regelmäßige Instandsetzung","regelmäßige Instandsetzung","regelmäßige Instandsetzung","regelmäßige Instandsetzung","regelmäßige Instandsetzung","regelmäßige Instandsetzung","regelmäßige Instandsetzung","regelmäßige Instandsetzung","regelmäßige Instandsetzung","regelmäßige Instandsetzung","regelmäßige Instandsetzung","regelmäßige Instandsetzung","regelmäßige Instandsetzung","regelmäßige Instandsetzung","regelmäßige Instandsetzung","regelmäßige Instandsetzung","regelmäßige Instandsetzung","regelmäßige Instandsetzung","regelmäßige Instandsetzung","regelmäßige Instandsetzung","regelmäßige Instandsetzung","regelmäßige Instandsetzung","regelmäßige Instandsetzung","regelmäßige Instandsetzung","regelmäßige Instandsetzung","regelmäßige Instandsetzung","regelmäßige Instandsetzung","regelmäßige Instandsetzung","regelmäßige Instandsetzung","regelmäßige Instandsetzung","regelmäßige Instandsetzung","regelmäßige Instandsetzung","regelmäßige Instandsetzung","regelmäßige Instandsetzung","regelmäßige Instandsetzung","regelmäßige Instandsetzung","regelmäßige Instandsetzung","regelmäßige Instandsetzung","regelmäßige Instandsetzung","regelmäßige Instandsetzung","regelmäßige Instandsetzung","regelmäßige Instandsetzung","regelmäßige Instandsetzung","regelmäßige Instandsetzung","regelmäßige Instandsetzung","regelmäßige Instandsetzung","regelmäßige Instandsetzung","regelmäßige Instandsetzung","regelmäßige Instandsetzung","regelmäßige Instandsetzung","regelmäßige Instandsetzung","regelmäßige Instandsetzung","regelmäßige Instandsetzung","regelmäßige Instandsetzung","regelmäßige Instandsetzung","regelmäßige Instandsetzung","regelmäßige Instandsetzung","regelmäßige Instandsetzung","regelmäßige Instandsetzung","regelmäßige Instandsetzung","regelmäßige Instandsetzung","regelmäßige Instandsetzung","regelmäßige Instandsetzung","regelmäßige Instandsetzung","regelmäßige Instandsetzung","regelmäßige Instandsetzung","regelmäßige Instandsetzung","regelmäßige Instandsetzung","regelmäßige Instandsetzung","regelmäßige Instandsetzung","regelmäßige Instandsetzung","regelmäßige Instandsetzung","regelmäßige Instandsetzung","regelmäßige Instandsetzung","regelmäßige Instandsetzung","regelmäßige Instandsetzung","regelmäßige Instandsetzung","regelmäßige Instandsetzung","regelmäßige Instandsetzung","regelmäßige Instandsetzung","regelmäßige Instandsetzung","regelmäßige Instandsetzung","regelmäßige Instandsetzung","regelmäßige Instandsetzung","regelmäßige Instandsetzung","regelmäßige Instandsetzung","regelmäßige Instandsetzung","regelmäßige Instandsetzung","regelmäßige Instandsetzung","regelmäßige Instandsetzung","regelmäßige Instandsetzung","regelmäßige Instandsetzung","regelmäßige Instandsetzung","regelmäßige Instandsetzung","regelmäßige Instandsetzung","regelmäßige Instandsetzung","regelmäßige Instandsetzung","regelmäßige Instandsetzung","regelmäßige Instandsetzung","regelmäßige Instandsetzung","regelmäßige Instandsetzung","regelmäßige Instandsetzung","regelmäßige Instandsetzung","regelmäßige Instandsetzung","regelmäßige Instandsetzung","regelmäßige Instandsetzung","regelmäßige Instandsetzung","regelmäßige Instandsetzung","regelmäßige Instandsetzung","regelmäßige Instandsetzung","regelmäßige Instandsetzung","regelmäßige Instandsetzung","regelmäßige Instandsetzung","regelmäßige Instandsetzung","regelmäßige Instandsetzung","regelmäßige Instandsetzung","regelmäßige Instandsetzung","regelmäßige Instandsetzung","regelmäßige Instandsetzung","regelmäßige Instandsetzung","regelmäßige Instandsetzung","regelmäßige Instandsetzung","regelmäßige Instandsetzung","regelmäßige Instandsetzung","regelmäßige Instandsetzung","regelmäßige Instandsetzung","regelmäßige Instandsetzung","regelmäßige Instandsetzung","regelmäßige Instandsetzung","regelmäßige Instandsetzung","regelmäßige Instandsetzung","regelmäßige Instandsetzung","regelmäßige Instandsetzung","regelmäßige Instandsetzung","regelmäßige Instandsetzung","regelmäßige Instandsetzung","regelmäßige Instandsetzung","regelmäßige Instandsetzung","regelmäßige Instandsetzung","regelmäßige Instandsetzung","regelmäßige Instandsetzung","regelmäßige Instandsetzung","regelmäßige Instandsetzung","regelmäßige Instandsetzung","regelmäßige Instandsetzung","regelmäßige Instandsetzung","regelmäßige Instandsetzung","regelmäßige Instandsetzung","regelmäßige Instandsetzung","regelmäßige Instandsetzung","regelmäßige Instandsetzung","regelmäßige Instandsetzung","regelmäßige Instandsetzung","regelmäßige Instandsetzung","regelmäßige Instandsetzung","regelmäßige Instandsetzung","regelmäßige Instandsetzung","regelmäßige Instandsetzung","regelmäßige Instandsetzung","regelmäßige Instandsetzung","regelmäßige Instandsetzung","regelmäßige Instandsetzung","regelmäßige Instandsetzung","regelmäßige Instandsetzung","regelmäßige Instandsetzung","regelmäßige Instandsetzung","regelmäßige Instandsetzung","regelmäßige Instandsetzung","regelmäßige Instandsetzung","regelmäßige Instandsetzung","regelmäßige Instandsetzung","regelmäßige Instandsetzung","regelmäßige Instandsetzung","regelmäßige Instandsetzung","regelmäßige Instandsetzung","regelmäßige Instandsetzung","regelmäßige Instandsetzung","regelmäßige Instandsetzung","regelmäßige Instandsetzung","regelmäßige Instandsetzung","regelmäßige Instandsetzung","regelmäßige Instandsetzung","regelmäßige Instandsetzung","regelmäßige Instandsetzung","regelmäßige Instandsetzung","regelmäßige Instandsetzung","regelmäßige Instandsetzung","regelmäßige Instandsetzung","regelmäßige Instandsetzung","regelmäßige Instandsetzung","regelmäßige Instandsetzung","regelmäßige Instandsetzung","regelmäßige Instandsetzung"]
[null,null,null,null,"Code DIN 276","Bezeichnung","LCC","Bestand",null,null,"Gesamt\nnetto [€]","Erstherstellung\nnetto [€]",null,null,"netto [€]","Ersatzhäufigkeit\nim BZR","Kontrolle KG","relevante Nutzungsdauer","Bezeichnung Datensatz","ND\n[a]","Ja/Nein","ND\n[a]","Kontrolle:\nKG Datensatz","Inspektion und Wartung [€]","Instandsetzung [€]","Inspektion, Wartung und Instandsetzung","Bezeichnung Datensatz","Inspektion und Wartung [%]","Instandsetzung [%]","Ja/Nein","Inspektion und Wartung [€]","Instandsetzung [€]","KG 300","KG 400","KG 500","KG 300","KG 400","KG 500","KG 300","KG 400","KG 500","KG 300","KG 400","KG 500","je BGFabc","absolut",null,null,"KG 300 DIN276\n","KG 300 DIN276\nJahr","KG 300 DIN276\nJahr","KG 300 DIN276\nJahr","KG 300 DIN276\nJahr","KG 300 DIN276\nJahr","KG 300 DIN276\nJahr","KG 300 DIN276\nJahr","KG 300 DIN276\nJahr","KG 300 DIN276\nJahr","KG 300 DIN276\nJahr","KG 300 DIN276\nJahr","KG 300 DIN276\nJahr","KG 300 DIN276\nJahr","KG 300 DIN276\nJahr","KG 300 DIN276\nJahr","KG 300 DIN276\nJahr","KG 300 DIN276\nJahr","KG 300 DIN276\nJahr","KG 300 DIN276\nJahr","KG 300 DIN276\nJahr","KG 300 DIN276\nJahr","KG 300 DIN276\nJahr","KG 300 DIN276\nJahr","KG 300 DIN276\nJahr","KG 300 DIN276\nJahr","KG 300 DIN276\nJahr","KG 300 DIN276\nJahr","KG 300 DIN276\nJahr","KG 300 DIN276\nJahr","KG 300 DIN276\nJahr","KG 300 DIN276\nJahr","KG 300 DIN276\nJahr","KG 300 DIN276\nJahr","KG 300 DIN276\nJahr","KG 300 DIN276\nJahr","KG 300 DIN276\nJahr","KG 300 DIN276\nJahr","KG 300 DIN276\nJahr","KG 300 DIN276\nJahr","KG 300 DIN276\nJahr","KG 300 DIN276\nJahr","KG 300 DIN276\nJahr","KG 300 DIN276\nJahr","KG 300 DIN276\nJahr","KG 300 DIN276\nJahr","KG 300 DIN276\nJahr","KG 300 DIN276\nJahr","KG 300 DIN276\nJahr","KG 300 DIN276\nJahr","KG 300 DIN276\nJahr","KG 300 DIN276\nJahr","KG 300 DIN276\nJahr","KG 300 DIN276\nJahr","KG 300 DIN276\nJahr","KG 300 DIN276\nJahr","KG 300 DIN276\nJahr","KG 300 DIN276\nJahr","KG 300 DIN276\nJahr","KG 300 DIN276\nJahr","KG 300 DIN276\nJahr","KG 300 DIN276\nJahr","KG 300 DIN276\nJahr","KG 300 DIN276\nJahr","KG 300 DIN276\nJahr","KG 300 DIN276\nJahr","KG 300 DIN276\nJahr","KG 300 DIN276\nJahr","KG 300 DIN276\nJahr","KG 300 DIN276\nJahr","KG 300 DIN276\nJahr","KG 300 DIN276\nJahr","KG 300 DIN276\nJahr","KG 300 DIN276\nJahr","KG 300 DIN276\nJahr","KG 300 DIN276\nJahr","KG 300 DIN276\nJahr","KG 300 DIN276\nJahr","KG 300 DIN276\nJahr","KG 300 DIN276\nJahr","KG 300 DIN276\nJahr","KG 400 DIN276\n","KG 400 DIN276\n","KG 400 DIN276\n","KG 400 DIN276\n","KG 400 DIN276\n","KG 400 DIN276\n","KG 400 DIN276\n","KG 400 DIN276\n","KG 400 DIN276\n","KG 400 DIN276\n","KG 400 DIN276\n","KG 400 DIN276\n","KG 400 DIN276\n","KG 400 DIN276\n","KG 400 DIN276\n","KG 400 DIN276\n","KG 400 DIN276\n","KG 400 DIN276\n","KG 400 DIN276\n","KG 400 DIN276\n","KG 400 DIN276\n","KG 400 DIN276\n","KG 400 DIN276\n","KG 400 DIN276\n","KG 400 DIN276\n","KG 400 DIN276\n","KG 400 DIN276\n","KG 400 DIN276\n","KG 400 DIN276\n","KG 400 DIN276\n","KG 400 DIN276\n","KG 400 DIN276\n","KG 400 DIN276\n","KG 400 DIN276\n","KG 400 DIN276\n","KG 400 DIN276\n","KG 400 DIN276\n","KG 400 DIN276\n","KG 400 DIN276\n","KG 400 DIN276\n","KG 400 DIN276\n","KG 400 DIN276\n","KG 400 DIN276\n","KG 400 DIN276\n","KG 400 DIN276\n","KG 400 DIN276\n","KG 400 DIN276\n","KG 400 DIN276\n","KG 400 DIN276\n","KG 400 DIN276\n","KG 400 DIN276\n","KG 400 DIN276\n","KG 400 DIN276\n","KG 400 DIN276\n","KG 400 DIN276\n","KG 400 DIN276\n","KG 400 DIN276\n","KG 400 DIN276\n","KG 400 DIN276\n","KG 400 DIN276\n","KG 400 DIN276\n","KG 400 DIN276\n","KG 400 DIN276\n","KG 400 DIN276\n","KG 400 DIN276\n","KG 400 DIN276\n","KG 400 DIN276\n","KG 400 DIN276\n","KG 400 DIN276\n","KG 400 DIN276\n","KG 400 DIN276\n","KG 400 DIN276\n","KG 400 DIN276\n","KG 400 DIN276\n","KG 400 DIN276\n","KG 400 DIN276\n","KG 400 DIN276\n","KG 400 DIN276\n","KG 400 DIN276\n","KG 400 DIN276\n","KG 400 DIN276\n","KG 500 DIN276\n","KG 500 DIN276\n","KG 500 DIN276\n","KG 500 DIN276\n","KG 500 DIN276\n","KG 500 DIN276\n","KG 500 DIN276\n","KG 500 DIN276\n","KG 500 DIN276\n","KG 500 DIN276\n","KG 500 DIN276\n","KG 500 DIN276\n","KG 500 DIN276\n","KG 500 DIN276\n","KG 500 DIN276\n","KG 500 DIN276\n","KG 500 DIN276\n","KG 500 DIN276\n","KG 500 DIN276\n","KG 500 DIN276\n","KG 500 DIN276\n","KG 500 DIN276\n","KG 500 DIN276\n","KG 500 DIN276\n","KG 500 DIN276\n","KG 500 DIN276\n","KG 500 DIN276\n","KG 500 DIN276\n","KG 500 DIN276\n","KG 500 DIN276\n","KG 500 DIN276\n","KG 500 DIN276\n","KG 500 DIN276\n","KG 500 DIN276\n","KG 500 DIN276\n","KG 500 DIN276\n","KG 500 DIN276\n","KG 500 DIN276\n","KG 500 DIN276\n","KG 500 DIN276\n","KG 500 DIN276\n","KG 500 DIN276\n","KG 500 DIN276\n","KG 500 DIN276\n","KG 500 DIN276\n","KG 500 DIN276\n","KG 500 DIN276\n","KG 500 DIN276\n","KG 500 DIN276\n","KG 500 DIN276\n","KG 500 DIN276\n","KG 500 DIN276\n","KG 500 DIN276\n","KG 500 DIN276\n","KG 500 DIN276\n","KG 500 DIN276\n","KG 500 DIN276\n","KG 500 DIN276\n","KG 500 DIN276\n","KG 500 DIN276\n","KG 500 DIN276\n","KG 500 DIN276\n","KG 500 DIN276\n","KG 500 DIN276\n","KG 500 DIN276\n","KG 500 DIN276\n","KG 500 DIN276\n","KG 500 DIN276\n","KG 500 DIN276\n","KG 500 DIN276\n","KG 500 DIN276\n","KG 500 DIN276\n","KG 500 DIN276\n","KG 500 DIN276\n","KG 500 DIN276\n","KG 500 DIN276\n","KG 500 DIN276\n","KG 500 DIN276\n","KG 500 DIN276\n","KG 500 DIN276\n","KG 500 DIN276\n",null,"KG 300 DIN276","KG 300 DIN276","KG 300 DIN276","KG 300 DIN276","KG 300 DIN276","KG 300 DIN276","KG 300 DIN276","KG 300 DIN276","KG 300 DIN276","KG 300 DIN276","KG 300 DIN276","KG 300 DIN276","KG 300 DIN276","KG 300 DIN276","KG 300 DIN276","KG 300 DIN276","KG 300 DIN276","KG 300 DIN276","KG 300 DIN276","KG 300 DIN276","KG 300 DIN276","KG 300 DIN276","KG 300 DIN276","KG 300 DIN276","KG 300 DIN276","KG 300 DIN276","KG 300 DIN276","KG 300 DIN276","KG 300 DIN276","KG 300 DIN276","KG 300 DIN276","KG 300 DIN276","KG 300 DIN276","KG 300 DIN276","KG 300 DIN276","KG 300 DIN276","KG 300 DIN276","KG 300 DIN276","KG 300 DIN276","KG 300 DIN276","KG 300 DIN276","KG 300 DIN276","KG 300 DIN276","KG 300 DIN276","KG 300 DIN276","KG 300 DIN276","KG 300 DIN276","KG 300 DIN276","KG 300 DIN276","KG 300 DIN276","KG 300 DIN276","KG 300 DIN276","KG 300 DIN276","KG 300 DIN276","KG 300 DIN276","KG 300 DIN276","KG 300 DIN276","KG 300 DIN276","KG 300 DIN276","KG 300 DIN276","KG 300 DIN276","KG 300 DIN276","KG 300 DIN276","KG 300 DIN276","KG 300 DIN276","KG 300 DIN276","KG 300 DIN276","KG 300 DIN276","KG 300 DIN276","KG 300 DIN276","KG 300 DIN276","KG 300 DIN276","KG 300 DIN276","KG 300 DIN276","KG 300 DIN276","KG 300 DIN276","KG 300 DIN276","KG 300 DIN276","KG 300 DIN276","KG 300 DIN276","KG 300 DIN276","KG 400 DIN276\n","KG 400 DIN276\n","KG 400 DIN276\n","KG 400 DIN276\n","KG 400 DIN276\n","KG 400 DIN276\n","KG 400 DIN276\n","KG 400 DIN276\n","KG 400 DIN276\n","KG 400 DIN276\n","KG 400 DIN276\n","KG 400 DIN276\n","KG 400 DIN276\n","KG 400 DIN276\n","KG 400 DIN276\n","KG 400 DIN276\n","KG 400 DIN276\n","KG 400 DIN276\n","KG 400 DIN276\n","KG 400 DIN276\n","KG 400 DIN276\n","KG 400 DIN276\n","KG 400 DIN276\n","KG 400 DIN276\n","KG 400 DIN276\n","KG 400 DIN276\n","KG 400 DIN276\n","KG 400 DIN276\n","KG 400 DIN276\n","KG 400 DIN276\n","KG 400 DIN276\n","KG 400 DIN276\n","KG 400 DIN276\n","KG 400 DIN276\n","KG 400 DIN276\n","KG 400 DIN276\n","KG 400 DIN276\n","KG 400 DIN276\n","KG 400 DIN276\n","KG 400 DIN276\n","KG 400 DIN276\n","KG 400 DIN276\n","KG 400 DIN276\n","KG 400 DIN276\n","KG 400 DIN276\n","KG 400 DIN276\n","KG 400 DIN276\n","KG 400 DIN276\n","KG 400 DIN276\n","KG 400 DIN276\n","KG 400 DIN276\n","KG 400 DIN276\n","KG 400 DIN276\n","KG 400 DIN276\n","KG 400 DIN276\n","KG 400 DIN276\n","KG 400 DIN276\n","KG 400 DIN276\n","KG 400 DIN276\n","KG 400 DIN276\n","KG 400 DIN276\n","KG 400 DIN276\n","KG 400 DIN276\n","KG 400 DIN276\n","KG 400 DIN276\n","KG 400 DIN276\n","KG 400 DIN276\n","KG 400 DIN276\n","KG 400 DIN276\n","KG 400 DIN276\n","KG 400 DIN276\n","KG 400 DIN276\n","KG 400 DIN276\n","KG 400 DIN276\n","KG 400 DIN276\n","KG 400 DIN276\n","KG 400 DIN276\n","KG 400 DIN276\n","KG 400 DIN276\n","KG 400 DIN276\n","KG 400 DIN276\n","KG 500 DIN276\n","KG 500 DIN276\n","KG 500 DIN276\n","KG 500 DIN276\n","KG 500 DIN276\n","KG 500 DIN276\n","KG 500 DIN276\n","KG 500 DIN276\n","KG 500 DIN276\n","KG 500 DIN276\n","KG 500 DIN276\n","KG 500 DIN276\n","KG 500 DIN276\n","KG 500 DIN276\n","KG 500 DIN276\n","KG 500 DIN276\n","KG 500 DIN276\n","KG 500 DIN276\n","KG 500 DIN276\n","KG 500 DIN276\n","KG 500 DIN276\n","KG 500 DIN276\n","KG 500 DIN276\n","KG 500 DIN276\n","KG 500 DIN276\n","KG 500 DIN276\n","KG 500 DIN276\n","KG 500 DIN276\n","KG 500 DIN276\n","KG 500 DIN276\n","KG 500 DIN276\n","KG 500 DIN276\n","KG 500 DIN276\n","KG 500 DIN276\n","KG 500 DIN276\n","KG 500 DIN276\n","KG 500 DIN276\n","KG 500 DIN276\n","KG 500 DIN276\n","KG 500 DIN276\n","KG 500 DIN276\n","KG 500 DIN276\n","KG 500 DIN276\n","KG 500 DIN276\n","KG 500 DIN276\n","KG 500 DIN276\n","KG 500 DIN276\n","KG 500 DIN276\n","KG 500 DIN276\n","KG 500 DIN276\n","KG 500 DIN276\n","KG 500 DIN276\n","KG 500 DIN276\n","KG 500 DIN276\n","KG 500 DIN276\n","KG 500 DIN276\n","KG 500 DIN276\n","KG 500 DIN276\n","KG 500 DIN276\n","KG 500 DIN276\n","KG 500 DIN276\n","KG 500 DIN276\n","KG 500 DIN276\n","KG 500 DIN276\n","KG 500 DIN276\n","KG 500 DIN276\n","KG 500 DIN276\n","KG 500 DIN276\n","KG 500 DIN276\n","KG 500 DIN276\n","KG 500 DIN276\n","KG 500 DIN276\n","KG 500 DIN276\n","KG 500 DIN276\n","KG 500 DIN276\n","KG 500 DIN276\n","KG 500 DIN276\n","KG 500 DIN276\n","KG 500 DIN276\n","KG 500 DIN276\n","KG 500 DIN276\n",null,"KG 300 DIN276","KG 300 DIN276","KG 300 DIN276","KG 300 DIN276","KG 300 DIN276","KG 300 DIN276","KG 300 DIN276","KG 300 DIN276","KG 300 DIN276","KG 300 DIN276","KG 300 DIN276","KG 300 DIN276","KG 300 DIN276","KG 300 DIN276","KG 300 DIN276","KG 300 DIN276","KG 300 DIN276","KG 300 DIN276","KG 300 DIN276","KG 300 DIN276","KG 300 DIN276","KG 300 DIN276","KG 300 DIN276","KG 300 DIN276","KG 300 DIN276","KG 300 DIN276","KG 300 DIN276","KG 300 DIN276","KG 300 DIN276","KG 300 DIN276","KG 300 DIN276","KG 300 DIN276","KG 300 DIN276","KG 300 DIN276","KG 300 DIN276","KG 300 DIN276","KG 300 DIN276","KG 300 DIN276","KG 300 DIN276","KG 300 DIN276","KG 300 DIN276","KG 300 DIN276","KG 300 DIN276","KG 300 DIN276","KG 300 DIN276","KG 300 DIN276","KG 300 DIN276","KG 300 DIN276","KG 300 DIN276","KG 300 DIN276","KG 300 DIN276","KG 300 DIN276","KG 300 DIN276","KG 300 DIN276","KG 300 DIN276","KG 300 DIN276","KG 300 DIN276","KG 300 DIN276","KG 300 DIN276","KG 300 DIN276","KG 300 DIN276","KG 300 DIN276","KG 300 DIN276","KG 300 DIN276","KG 300 DIN276","KG 300 DIN276","KG 300 DIN276","KG 300 DIN276","KG 300 DIN276","KG 300 DIN276","KG 300 DIN276","KG 300 DIN276","KG 300 DIN276","KG 300 DIN276","KG 300 DIN276","KG 300 DIN276","KG 300 DIN276","KG 300 DIN276","KG 300 DIN276","KG 300 DIN276","KG 300 DIN276","KG 400 DIN276\n","KG 400 DIN276\n","KG 400 DIN276\n","KG 400 DIN276\n","KG 400 DIN276\n","KG 400 DIN276\n","KG 400 DIN276\n","KG 400 DIN276\n","KG 400 DIN276\n","KG 400 DIN276\n","KG 400 DIN276\n","KG 400 DIN276\n","KG 400 DIN276\n","KG 400 DIN276\n","KG 400 DIN276\n","KG 400 DIN276\n","KG 400 DIN276\n","KG 400 DIN276\n","KG 400 DIN276\n","KG 400 DIN276\n","KG 400 DIN276\n","KG 400 DIN276\n","KG 400 DIN276\n","KG 400 DIN276\n","KG 400 DIN276\n","KG 400 DIN276\n","KG 400 DIN276\n","KG 400 DIN276\n","KG 400 DIN276\n","KG 400 DIN276\n","KG 400 DIN276\n","KG 400 DIN276\n","KG 400 DIN276\n","KG 400 DIN276\n","KG 400 DIN276\n","KG 400 DIN276\n","KG 400 DIN276\n","KG 400 DIN276\n","KG 400 DIN276\n","KG 400 DIN276\n","KG 400 DIN276\n","KG 400 DIN276\n","KG 400 DIN276\n","KG 400 DIN276\n","KG 400 DIN276\n","KG 400 DIN276\n","KG 400 DIN276\n","KG 400 DIN276\n","KG 400 DIN276\n","KG 400 DIN276\n","KG 400 DIN276\n","KG 400 DIN276\n","KG 400 DIN276\n","KG 400 DIN276\n","KG 400 DIN276\n","KG 400 DIN276\n","KG 400 DIN276\n","KG 400 DIN276\n","KG 400 DIN276\n","KG 400 DIN276\n","KG 400 DIN276\n","KG 400 DIN276\n","KG 400 DIN276\n","KG 400 DIN276\n","KG 400 DIN276\n","KG 400 DIN276\n","KG 400 DIN276\n","KG 400 DIN276\n","KG 400 DIN276\n","KG 400 DIN276\n","KG 400 DIN276\n","KG 400 DIN276\n","KG 400 DIN276\n","KG 400 DIN276\n","KG 400 DIN276\n","KG 400 DIN276\n","KG 400 DIN276\n","KG 400 DIN276\n","KG 400 DIN276\n","KG 400 DIN276\n","KG 400 DIN276\n","KG 500 DIN276\n","KG 500 DIN276\n","KG 500 DIN276\n","KG 500 DIN276\n","KG 500 DIN276\n","KG 500 DIN276\n","KG 500 DIN276\n","KG 500 DIN276\n","KG 500 DIN276\n","KG 500 DIN276\n","KG 500 DIN276\n","KG 500 DIN276\n","KG 500 DIN276\n","KG 500 DIN276\n","KG 500 DIN276\n","KG 500 DIN276\n","KG 500 DIN276\n","KG 500 DIN276\n","KG 500 DIN276\n","KG 500 DIN276\n","KG 500 DIN276\n","KG 500 DIN276\n","KG 500 DIN276\n","KG 500 DIN276\n","KG 500 DIN276\n","KG 500 DIN276\n","KG 500 DIN276\n","KG 500 DIN276\n","KG 500 DIN276\n","KG 500 DIN276\n","KG 500 DIN276\n","KG 500 DIN276\n","KG 500 DIN276\n","KG 500 DIN276\n","KG 500 DIN276\n","KG 500 DIN276\n","KG 500 DIN276\n","KG 500 DIN276\n","KG 500 DIN276\n","KG 500 DIN276\n","KG 500 DIN276\n","KG 500 DIN276\n","KG 500 DIN276\n","KG 500 DIN276\n","KG 500 DIN276\n","KG 500 DIN276\n","KG 500 DIN276\n","KG 500 DIN276\n","KG 500 DIN276\n","KG 500 DIN276\n","KG 500 DIN276\n","KG 500 DIN276\n","KG 500 DIN276\n","KG 500 DIN276\n","KG 500 DIN276\n","KG 500 DIN276\n","KG 500 DIN276\n","KG 500 DIN276\n","KG 500 DIN276\n","KG 500 DIN276\n","KG 500 DIN276\n","KG 500 DIN276\n","KG 500 DIN276\n","KG 500 DIN276\n","KG 500 DIN276\n","KG 500 DIN276\n","KG 500 DIN276\n","KG 500 DIN276\n","KG 500 DIN276\n","KG 500 DIN276\n","KG 500 DIN276\n","KG 500 DIN276\n","KG 500 DIN276\n","KG 500 DIN276\n","KG 500 DIN276\n","KG 500 DIN276\n","KG 500 DIN276\n","KG 500 DIN276\n","KG 500 DIN276\n","KG 500 DIN276\n","KG 500 DIN276\n"]
[null,null,null,null,null,null,null,null,null,null,null,null,null,null,null,null,null,"in [a]",null,null,null,null,null,null,null,null,null,null,null,null,null,null,null,null,null,null,null,null,null,null,null,null,null,null,"∑ BZR","∑ BZR",null,null,"∑ BZR",1,2,3,4,5,6,7,8,9,10,11,12,13,14,15,16,17,18,19,20,21,22,23,24,25,26,27,28,29,30,31,32,33,34,35,36,37,38,39,40,41,42,43,44,45,46,47,48,49,50,51,52,53,54,55,56,57,58,59,60,61,62,63,64,65,66,67,68,69,70,71,72,73,74,75,76,77,78,79,80,"∑ BZR",1,2,3,4,5,6,7,8,9,10,11,12,13,14,15,16,17,18,19,20,21,22,23,24,25,26,27,28,29,30,31,32,33,34,35,36,37,38,39,40,41,42,43,44,45,46,47,48,49,50,51,52,53,54,55,56,57,58,59,60,61,62,63,64,65,66,67,68,69,70,71,72,73,74,75,76,77,78,79,80,"∑ BZR",1,2,3,4,5,6,7,8,9,10,11,12,13,14,15,16,17,18,19,20,21,22,23,24,25,26,27,28,29,30,31,32,33,34,35,36,37,38,39,40,41,42,43,44,45,46,47,48,49,50,51,52,53,54,55,56,57,58,59,60,61,62,63,64,65,66,67,68,69,70,71,72,73,74,75,76,77,78,79,80,null,"∑ BZR",1,2,3,4,5,6,7,8,9,10,11,12,13,14,15,16,17,18,19,20,21,22,23,24,25,26,27,28,29,30,31,32,33,34,35,36,37,38,39,40,41,42,43,44,45,46,47,48,49,50,51,52,53,54,55,56,57,58,59,60,61,62,63,64,65,66,67,68,69,70,71,72,73,74,75,76,77,78,79,80,"∑ BZR",1,2,3,4,5,6,7,8,9,10,11,12,13,14,15,16,17,18,19,20,21,22,23,24,25,26,27,28,29,30,31,32,33,34,35,36,37,38,39,40,41,42,43,44,45,46,47,48,49,50,51,52,53,54,55,56,57,58,59,60,61,62,63,64,65,66,67,68,69,70,71,72,73,74,75,76,77,78,79,80,"∑ BZR",1,2,3,4,5,6,7,8,9,10,11,12,13,14,15,16,17,18,19,20,21,22,23,24,25,26,27,28,29,30,31,32,33,34,35,36,37,38,39,40,41,42,43,44,45,46,47,48,49,50,51,52,53,54,55,56,57,58,59,60,61,62,63,64,65,66,67,68,69,70,71,72,73,74,75,76,77,78,79,80,null,"∑ BZR",1,2,3,4,5,6,7,8,9,10,11,12,13,14,15,16,17,18,19,20,21,22,23,24,25,26,27,28,29,30,31,32,33,34,35,36,37,38,39,40,41,42,43,44,45,46,47,48,49,50,51,52,53,54,55,56,57,58,59,60,61,62,63,64,65,66,67,68,69,70,71,72,73,74,75,76,77,78,79,80,"∑ BZR",1,2,3,4,5,6,7,8,9,10,11,12,13,14,15,16,17,18,19,20,21,22,23,24,25,26,27,28,29,30,31,32,33,34,35,36,37,38,39,40,41,42,43,44,45,46,47,48,49,50,51,52,53,54,55,56,57,58,59,60,61,62,63,64,65,66,67,68,69,70,71,72,73,74,75,76,77,78,79,80,"∑ BZR",1,2,3,4,5,6,7,8,9,10,11,12,13,14,15,16,17,18,19,20,21,22,23,24,25,26,27,28,29,30,31,32,33,34,35,36,37,38,39,40,41,42,43,44,45,46,47,48,49,50,51,52,53,54,55,56,57,58,59,60,61,62,63,64,65,66,67,68,69,70,71,72,73,74,75,76,77,78,79,80]
[null,null,null,null,null,null,null,null,null,{"$f":"SUM(J10:J13)","v":0},{"$f":"SUM(K10:K13)","v":0},{"$f":"SUM(L10:L13)","v":0},null,null,null,null,null,null,null,null,null,null,null,null,null,null,null,null,null,null,null,null,{"$f":"SUM(AG10:AG13)","v":0},{"$f":"SUM(AH10:AH13)","v":0},{"$f":"SUM(AI10:AI13)","v":0},{"$f":"SUMIF($H11:$H12,\"Nein\",AM11:AM12)","v":0},{"$f":"SUMIF($H11:$H12,\"Nein\",AN11:AN12)","v":0},{"$f":"SUMIF($H11:$H12,\"Nein\",AO11:AO12)","v":0},{"$f":"SUM(AM11:AM12)","v":0},0,0,0,0,0,{"$f":"IF(AND(ISNUMBER(BGFabc),BGFabc>0),AT9/BGFabc,\"\")","v":""},{"$f":"ERG_BARERSATZ300+ERG_BARERSATZ400+ERG_BARERSATZ500+ERG_BARWART300+ERG_BARWART400+ERG_BARWART500+ERG_BARINST300+ERG_BARINST400+ERG_BARINST500","v":0},null,null,{"$f":"SUM(AW10:AW13)","v":0},0,0,0,0,0,0,0,0,0,0,0,0,0,0,0,0,0,0,0,0,0,0,0,0,0,0,0,0,0,0,0,0,0,0,0,0,0,0,0,0,0,0,0,0,0,0,0,0,0,0,0,0,0,0,0,0,0,0,0,0,0,0,0,{"$f":"SUM(DI10:DI13)","v":0},0,0,0,0,0,0,0,0,0,0,0,0,0,0,0,0,0,0,0,0,0,0,0,0,0,0,0,0,0,0,0,0,0,0,0,0,0,0,0,0,0,0,0,0,0,0,0,0,0,0,0,0,0,0,0,0,0,0,0,0,0,0,0,{"$f":"SUM(FU10:FU13)","v":0},0,0,0,0,0,0,0,0,0,0,0,0,0,0,0,0,0,0,0,0,0,0,0,0,0,0,0,0,0,0,0,0,0,0,0,0,0,0,0,0,0,0,0,0,0,0,0,0,0,0,0,0,0,0,0,0,0,0,0,0,0,0,0,{"$f":"SUM(IG10:IG13)","v":0},0,0,0,0,0,0,0,0,0,0,0,0,0,0,0,0,0,0,0,0,0,0,0,0,0,0,0,0,0,0,0,0,0,0,0,0,0,0,0,0,0,0,0,0,0,0,0,0,0,0,null,{"$f":"SUM(KG10:KG13)","v":0},0,0,0,0,0,0,0,0,0,0,0,0,0,0,0,0,0,0,0,0,0,0,0,0,0,0,0,0,0,0,0,0,0,0,0,0,0,0,0,0,0,0,0,0,0,0,0,0,0,0,0,0,0,0,0,0,0,0,0,0,0,0,0,{"$f":"SUM(MS10:MS13)","v":0},0,0,0,0,0,0,0,0,0,0,0,0,0,0,0,0,0,0,0,0,0,0,0,0,0,0,0,0,0,0,0,0,0,0,0,0,0,0,0,0,0,0,0,0,0,0,0,0,0,0,0,0,0,0,0,0,0,0,0,0,0,0,0,{"$f":"SUM(PE10:PE13)","v":0},0,0,0,0,0,0,0,0,0,0,0,0,0,0,0,0,0,0,0,0,0,0,0,0,0,0,0,0,0,0,0,0,0,0,0,0,0,0,0,0,0,0,0,0,0,0,0,0,0,0,0,0,0,0,0,0,0,0,0,0,0,0,0,{"$f":"SUM(RQ10:RQ13)","v":0},0,0,0,0,0,0,0,0,0,0,0,0,0,0,0,0,0,0,0,0,0,0,0,0,0,0,0,0,0,0,0,0,0,0,0,0,0,0,0,0,0,0,0,0,0,0,0,0,0,0,null,{"$f":"SUM(TQ10:TQ13)","v":0},0,0,0,0,0,0,0,0,0,0,0,0,0,0,0,0,0,0,0,0,0,0,0,0,0,0,0,0,0,0,0,0,0,0,0,0,0,0,0,0,0,0,0,0,0,0,0,0,0,0,0,0,0,0,0,0,0,0,0,0,0,0,0,{"$f":"SUM(WC10:WC13)","v":0},0,0,0,0,0,0,0,0,0,0,0,0,0,0,0,0,0,0,0,0,0,0,0,0,0,0,0,0,0,0,0,0,0,0,0,0,0,0,0,0,0,0,0,0,0,0,0,0,0,0,0,0,0,0,0,0,0,0,0,0,0,0,0,{"$f":"SUM(YO10:YO13)","v":0},0,0,0,0,0,0,0,0,0,0,0,0,0,0,0,0,0,0,0,0,0,0,0,0,0,0,0,0,0,0,0,0,0,0,0,0,0,0,0,0,0,0,0,0,0,0,0,0,0,0,0,0,0,0,0,0,0,0,0,0,0,0,0,{"$f":"SUM(ABA10:ABA13)","v":0},0,0,0,0,0,0,0,0,0,0,0,0,0,0,0,0,0,0,0,0,0,0,0,0,0,0,0,0,0,0,0,0,0,0,0,0,0,0,0,0,0,0,0,0,0,0,0,0,0,0]
[null,null,null,null,0]
[]
[null,null,null,null,null,null,null,null,null,null,null,null,1,null,null,null,{"$f":"IF(ISNUMBER(VLOOKUP(S12,ND_Verweis,2,0)),VLOOKUP(S12,ND_Verweis,2,0),\"\")","v":""},null,null,null,null,null,{"$f":"IF(ISNUMBER(VLOOKUP(AA12,NK_Verweis,4,0)),VLOOKUP(AA12,NK_Verweis,4,0),\"\")","v":""},null,null,null,null,null,null,null,null,null,null,null,null,{"$f":"IF(AND($E12>=300,$E12<400,$G12=\"Ja\"),$K12,0)","v":0},{"$f":"IF(AND($E12>=400,$E12<500,$G12=\"Ja\"),$K12,0)","v":0},{"$f":"IF(AND($E12>=500,$E12<600,$G12=\"Ja\"),$K12,0)","v":0},null,null,null,null,null,null,null,null,null,null,null,null,null,null,null,null,null,null,null,null,null,null,null,null,null,null,null,null,null,null,null,null,null,null,null,null,null,null,null,null,null,null,null,null,null,null,null,null,null,null,null,null,null,null,null,null,null,null,null,null,null,null,null,null,null,null,null,null,null,null,null,null,null,null,null,null,null,null,null,null,null,null,null,null,null,null,null,null,null,null,null,null,null,null,null,null,null,null,null,null,null,null,null,null,null,null,null,null,null,null,null,null,null,null,null,null,null,null,null,null,null,null,null,null,null,null,null,null,null,null,null,null,null,null,null,null,null,null,null,null,null,null,null,null,null,null,null,null,null,null,null,null,null,null,null,null,null,null,null,null,null,null,null,null,null,null,null,null,null,null,null,null,null,null,null,null,null,null,null,null,null,null,null,null,null,null,null,null,null,null,null,null,null,null,null,null,null,null,null,null,null,null,null,null,null,null,null,null,null,null,null,null,null,null,null,null,null,null,null,null,null,null,null,null,null,null,null,null,null,null,null,null,null,null,null,null,null,null,null,null,null,null,null,null,null,null,null,null,null,null,null,null,null,null,{"$f":"SUM(OFFSET(KH12,,,,BZBNB))","v":0}]
[{"$f":"(MAX(A$9:A$12))+1","v":1},null,null,null,{"$f":"IF(ISNUMBER(VLOOKUP(F13,DIN276_Verweis,2,0)),VLOOKUP(F13,DIN276_Verweis,2,0),\"k.A.\")","v":"k.A."},null,"Ja","Nein",null,{"$f":"O13*M13","v":0},{"$f":"IF(G13=\"Ja\",$J13*PINDbnb,0)","v":0},{"$f":"IF(AND(G13=\"Ja\",H13=\"Nein\"),$J13*PINDbnb,0)","v":0},1,null,null,{"$f":"(BZBNB-MOD(BZBNB-1,R13)-1)/R13","v":49},"",{"$f":"IF(AND(IF(U13=\"Nein\",T13,V13)>0,ISNUMBER(IF(U13=\"Nein\",T13,V13))),IF(U13=\"Nein\",T13,V13),1)","v":1},null,{"$f":"IF(ISNUMBER(VLOOKUP(S13,ND_Verweis,5,0)),VLOOKUP(S13,ND_Verweis,5,0),\"\")","v":""},"Nein",null,{"$f":"IF(ISNUMBER(VLOOKUP(AA13,NK_Verweis,4,0)),VLOOKUP(AA13,NK_Verweis,4,0),\"\")","v":""},{"$f":"SUM(AM13:AO13)","v":0},{"$f":"SUM(AP13:AR13)","v":0},{"$f":"SUM(X13:Y13)","v":0},null,{"$f":"IF(ISNUMBER(VLOOKUP(AA13,NK_Verweis,7,0)),VLOOKUP(AA13,NK_Verweis,7,0),0)","v":0},{"$f":"IF(ISNUMBER(VLOOKUP(AA13,NK_Verweis,8,0)),VLOOKUP(AA13,NK_Verweis,8,0),0)","v":0},"Nein",null,null,{"$f":"IF(AND($E13>=300,$E13<400,$G13=\"Ja\",$H13=\"Nein\"),$K13,0)","v":0},{"$f":"IF(AND($E13>=400,$E13<500,$G13=\"Ja\",$H13=\"Nein\"),$K13,0)","v":0},{"$f":"IF(AND($E13>=500,$E13<600,$G13=\"Ja\",$H13=\"Nein\"),$K13,0)","v":0},0,0,0,{"$f":"IF(AND($E13>=300,$E13<400,$G13=\"Ja\"),IF($AD13=\"Ja\",$AE13,$AJ13*$AB13),0)","v":0},{"$f":"IF(AND($E13>=400,$E13<500,$G13=\"Ja\"),IF($AD13=\"Ja\",$AE13,$AK13*$AB13),0)","v":0},{"$f":"IF(AND($E13>=500,$E13<600,$G13=\"Ja\"),IF($AD13=\"Ja\",$AE13,$AL13*$AB13),0)","v":0},{"$f":"IF(AND($E13>=300,$E13<400,$G13=\"Ja\"),IF($AD13=\"Ja\",$AF13,$AJ13*$AC13),0)","v":0},{"$f":"IF(AND($E13>=400,$E13<500,$G13=\"Ja\"),IF($AD13=\"Ja\",$AF13,$AK13*$AC13),0)","v":0},{"$f":"IF(AND($E13>=500,$E13<600,$G13=\"Ja\"),IF($AD13=\"Ja\",$AF13,$AL13*$AC13),0)","v":0},{"$f":"IF(AND(ISNUMBER(BGFabc),BGFabc>0),AT13/BGFabc,\"\")","v":""},{"$f":"AW13+DZ13+HC13+KG13+NJ13+QM13+TQ13+WT13+ZW13","v":0},null,null,{"$f":"SUM(OFFSET(AX13,,,,BZBNB-1))","v":0},null,{"$f":"IF(AND(MOD(AX$8,$R13)=0,AY$8<BZBNB),$AJ13*POWER(1+PSBNB,(AY$8+1))*POWER(1+KALBNB,-(AY$8+1)),\"\")","v":0},0,0,0,0,0,0,0,0,0,0,0,0,0,0,0,0,0,0,0,0,0,0,0,0,0,0,0,0,0,0,0,{"$f":"IF(AND(MOD(CD$8,$R13)=0,CE$8<BZBNB),$AJ13*POWER(1+PSBNB,(CE$8+1))*POWER(1+KALBNB,-(CE$8+1)),\"\")","v":0},0,0,0,0,0,0,0,0,0,0,0,0,0,0,0,"","","","","","","","","","","","","","","","",{"$f":"IF(AND(MOD(DJ$8,$R13)=0,DK$8<BZBNB),$AJ13*POWER(1+PSBNB,(DK$8+1))*POWER(1+KALBNB,-(DK$8+1)),\"\")","v":""},"","","","","","","","","","","","","","",{"$f":"SUM(OFFSET(EA13,,,,BZBNB-1))","v":0},null,{"$f":"IF(AND(MOD(EA$8,$R13)=0,EB$8<BZBNB),$AK13*POWER(1+PSBNB,(EB$8+1))*POWER(1+KALBNB,-(EB$8+1)),\"\")","v":0},0,0,0,0,0,0,0,0,0,0,0,0,0,0,0,0,0,0,0,0,0,0,0,0,0,0,0,0,0,0,0,{"$f":"IF(AND(MOD(FG$8,$R13)=0,FH$8<BZBNB),$AK13*POWER(1+PSBNB,(FH$8+1))*POWER(1+KALBNB,-(FH$8+1)),\"\")","v":0},0,0,0,0,0,0,0,0,0,0,0,0,0,0,0,"","","","","","","","","","","","","","","","",{"$f":"IF(AND(MOD(GM$8,$R13)=0,GN$8<BZBNB),$AK13*POWER(1+PSBNB,(GN$8+1))*POWER(1+KALBNB,-(GN$8+1)),\"\")","v":""},"","","","","","","","","","","","","","",{"$f":"SUM(OFFSET(HD13,,,,BZBNB-1))","v":0},null,{"$f":"IF(AND(MOD(HD$8,$R13)=0,HE$8<BZBNB),$AL13*POWER(1+PSBNB,HE$8)*POWER(1+KALBNB,-HE$8),\"\")","v":0},0,0,0,0,0,0,0,0,0,0,0,0,0,0,0,0,0,0,0,0,0,0,0,0,0,0,0,0,0,0,0,{"$f":"IF(AND(MOD(IJ$8,$R13)=0,IK$8<BZBNB),$AL13*POWER(1+PSBNB,IK$8)*POWER(1+KALBNB,-IK$8),\"\")","v":0},0,0,0,0,0,0,0,0,0,0,0,0,0,0,0,"","","","","","","","","","","","","","","","",{"$f":"IF(AND(MOD(JP$8,$R13)=0,JQ$8<BZBNB),$AL13*POWER(1+PSBNB,JQ$8)*POWER(1+KALBNB,-JQ$8),\"\")","v":""},"","","","","","","","","","","","","","",null,0,{"$f":"IF(AND(ISNUMBER($AM13),$AM13<>0),$AM13*POWER(1+PSBNB,KH$8)*POWER(1+KALBNB,-KH$8),\"\")","v":""},"","","","","","","","","","","","","","","","","","","","","","","","","","","","","","","",{"$f":"IF(AND(ISNUMBER($AM13),$AM13<>0),$AM13*POWER(1+PSBNB,LN$8)*POWER(1+KALBNB,-LN$8),\"\")","v":""},"","","","","","","","","","","","","","","","","","","","","","","","","","","","","","","",{"$f":"IF(AND(ISNUMBER($AM13),$AM13<>0),$AM13*POWER(1+PSBNB,MT$8)*POWER(1+KALBNB,-MT$8),\"\")","v":""},"","","","","","","","","","","","","","","",{"$f":"SUM(OFFSET(NK13,,,,BZBNB))","v":0},{"$f":"IF(AND(ISNUMBER($AN13),$AN13<>0),$AN13*POWER(1+PSBNB,NK$8)*POWER(1+KALBNB,-NK$8),\"\")","v":""},"","","","","","","","","","","","","","","","","","","","","","","","","","","","","","","",{"$f":"IF(AND(ISNUMBER($AN13),$AN13<>0),$AN13*POWER(1+PSBNB,OQ$8)*POWER(1+KALBNB,-OQ$8),\"\")","v":""},"","","","","","","","","","","","","","","","","","","","","","","","","","","","","","","",{"$f":"IF(AND(ISNUMBER($AN13),$AN13<>0),$AN13*POWER(1+PSBNB,PW$8)*POWER(1+KALBNB,-PW$8),\"\")","v":""},"","","","","","","","","","","","","","","",{"$f":"SUM(OFFSET(QN13,,,,BZBNB))","v":0},{"$f":"IF(AND(ISNUMBER($AO13),$AO13<>0),$AO13*POWER(1+PSBNB,QN$8)*POWER(1+KALBNB,-QN$8),\"\")","v":""},"","","","","","","","","","","","","","","","","","","","","","","","","","","","","","","",{"$f":"IF(AND(ISNUMBER($AO13),$AO13<>0),$AO13*POWER(1+PSBNB,RT$8)*POWER(1+KALBNB,-RT$8),\"\")","v":""},"","","","","","","","","","","","","","","","","","","","","","","","","","","","","","","",{"$f":"IF(AND(ISNUMBER($AO13),$AO13<>0),$AO13*POWER(1+PSBNB,SZ$8)*POWER(1+KALBNB,-SZ$8),\"\")","v":""},"","","","","","","","","","","","","","","",null,{"$f":"SUM(OFFSET(TR13,,,,BZBNB))","v":0},{"$f":"IF(AND(ISNUMBER($AP13),$AP13<>0),$AP13*POWER(1+PSBNB,TR$8)*POWER(1+KALBNB,-TR$8),\"\")","v":""},"","","","","","","","","","","","","","","","","","","","","","","","","","","","","","","",{"$f":"IF(AND(ISNUMBER($AP13),$AP13<>0),$AP13*POWER(1+PSBNB,UX$8)*POWER(1+KALBNB,-UX$8),\"\")","v":""},"","","","","","","","","","","","","","","","","","","","","","","","","","","","","","","",{"$f":"IF(AND(ISNUMBER($AP13),$AP13<>0),$AP13*POWER(1+PSBNB,WD$8)*POWER(1+KALBNB,-WD$8),\"\")","v":""},"","","","","","","","","","","","","","","",{"$f":"SUM(OFFSET(WU13,,,,BZBNB))","v":0},{"$f":"IF(AND(ISNUMBER($AQ13),$AQ13<>0),$AQ13*POWER(1+PSBNB,WU$8)*POWER(1+KALBNB,-WU$8),\"\")","v":""},"","","","","","","","","","","","","","","","","","","","","","","","","","","","","","","",{"$f":"IF(AND(ISNUMBER($AQ13),$AQ13<>0),$AQ13*POWER(1+PSBNB,YA$8)*POWER(1+KALBNB,-YA$8),\"\")","v":""},"","","","","","","","","","","","","","","","","","","","","","","","","","","","","","","",{"$f":"IF(AND(ISNUMBER($AQ13),$AQ13<>0),$AQ13*POWER(1+PSBNB,ZG$8)*POWER(1+KALBNB,-ZG$8),\"\")","v":""},"","","","","","","","","","","","","","","",{"$f":"SUM(OFFSET(ZX13,,,,BZBNB))","v":0},{"$f":"IF(AND(ISNUMBER($AR13),$AR13<>0),$AR13*POWER(1+PSBNB,ZX$8)*POWER(1+KALBNB,-ZX$8),\"\")","v":""},"","","","","","","","","","","","","","","","","","","","","","","","","","","","","","","",{"$f":"IF(AND(ISNUMBER($AR13),$AR13<>0),$AR13*POWER(1+PSBNB,ABD$8)*POWER(1+KALBNB,-ABD$8),\"\")","v":""},"","","","","","","","","","","","","","","","","","","","","","","","","","","","","","","",{"$f":"IF(AND(ISNUMBER($AR13),$AR13<>0),$AR13*POWER(1+PSBNB,ACJ$8)*POWER(1+KALBNB,-ACJ$8),\"\")","v":""},"","","","","","","","","","","","","","",""]

{"sheet":"Bauteilreinigung","index":4,"n_rows":10,"n_cols":99,"rows_kept":10,"cut":false,"hidden":false,"merged":[[0,0,0,1],[1,1,1,2],[2,1,2,2]]}
["Berechnung LCC nach BNB BN 2.1.1 v2011\nEingabe Bauteilreinigung",null,"BBR-LCC\nVer. 15-1\nBBR A1"]
["Projekt:",{"$f":"IF(ISTEXT(Projekt),Projekt,\"\")","v":""}]
["Stand:",{"$f":"IF(ISNUMBER(LCC_Stand),LCC_Stand,\"\")","v":""}]
[]
["Nr.","Bezeichnung","Einbauort","Reinigungs-fläche","Seiten","Bauteil","Oberfläche","Typ","Einbauort","Material","Zugänglichkeit","Belastung","€/h","m²/h","Anzahl je Jahr","€/m²","€/m²*a","€/a","Barwert","Barwert","Barwert","Barwert","Barwert","Barwert","Barwert","Barwert","Barwert","Barwert","Barwert","Barwert","Barwert","Barwert","Barwert","Barwert","Barwert","Barwert","Barwert","Barwert","Barwert","Barwert","Barwert","Barwert","Barwert","Barwert","Barwert","Barwert","Barwert","Barwert","Barwert","Barwert","Barwert","Barwert","Barwert","Barwert","Barwert","Barwert","Barwert","Barwert","Barwert","Barwert","Barwert","Barwert","Barwert","Barwert","Barwert","Barwert","Barwert","Barwert","Barwert","Barwert","Barwert","Barwert","Barwert","Barwert","Barwert","Barwert","Barwert","Barwert","Barwert","Barwert","Barwert","Barwert","Barwert","Barwert","Barwert","Barwert","Barwert","Barwert","Barwert","Barwert","Barwert","Barwert","Barwert","Barwert","Barwert","Barwert","Barwert","Barwert","Barwert"]
[null,null,null,null,null,null,null,null,null,null,null,null,null,null,null,null,null,null,"∑ BZR",1,2,3,4,5,6,7,8,9,10,11,12,13,14,15,16,17,18,19,20,21,22,23,24,25,26,27,28,29,30,31,32,33,34,35,36,37,38,39,40,41,42,43,44,45,46,47,48,49,50,51,52,53,54,55,56,57,58,59,60,61,62,63,64,65,66,67,68,69,70,71,72,73,74,75,76,77,78,79,80]
[null,null,null,null,null,null,null,null,null,null,null,null,null,null,null,null,null,{"$f":"SUM(R8:R10)","v":0},0,0,0,0,0,0,0,0,0,0,0,0,0,0,0,0,0,0,0,0,0,0,0,0,0,0,0,0,0,0,0,{"$f":"SUM(AX8:AX10)","v":0},0,0,0,0,0,0,0,0,0,0,0,0,0,0,0,0,0,0,0,0,0,0,0,0,0,0,0,0,0,0,0,{"$f":"SUM(CD8:CD10)","v":0},0,0,0,0,0,0,0,0,0,0,0,0,0,0,0,0,0]
[]
[]
[{"$f":"(MAX(A$8:A$9))+1","v":1},null,null,null,null,null,{"$f":"IF(ISTEXT(VLOOKUP($F10,KatalogReinigung,3,0)),VLOOKUP($F10,KatalogReinigung,3,0),\"\")","v":""},{"$f":"IF(ISTEXT(VLOOKUP($F10,KatalogReinigung,4,0)),VLOOKUP($F10,KatalogReinigung,4,0),\"\")","v":""},{"$f":"IF(ISTEXT(VLOOKUP($F10,KatalogReinigung,5,0)),VLOOKUP($F10,KatalogReinigung,5,0),\"\")","v":""},{"$f":"IF(ISTEXT(VLOOKUP($F10,KatalogReinigung,6,0)),VLOOKUP($F10,KatalogReinigung,6,0),\"\")","v":""},{"$f":"IF(ISTEXT(VLOOKUP($F10,KatalogReinigung,7,0)),VLOOKUP($F10,KatalogReinigung,7,0),\"\")","v":""},{"$f":"IF(ISTEXT(VLOOKUP($F10,KatalogReinigung,8,0)),VLOOKUP($F10,KatalogReinigung,8,0),\"\")","v":""},{"$f":"IF(ISNUMBER(VLOOKUP($F10,KatalogReinigung,8,0)),VLOOKUP($F10,KatalogReinigung,8,0),\"\")","v":""},{"$f":"IF(ISNUMBER(VLOOKUP($F10,KatalogReinigung,9,0)),VLOOKUP($F10,KatalogReinigung,9,0),\"\")","v":""},{"$f":"IF(ISNUMBER(VLOOKUP($F10,KatalogReinigung,10,0)),VLOOKUP($F10,KatalogReinigung,10,0),\"\")","v":""},{"$f":"IF(ISNUMBER(M10/N10),M10/N10,\"\")","v":""},{"$f":"(IF(ISNUMBER(P10*O10),P10*O10,\"\"))","v":""},{"$f":"IF(ISNUMBER(Q10*E10*D10),Q10*E10*D10,\"\")","v":""},{"$f":"SUM(OFFSET(T10,,,,BZBNB))","v":0},{"$f":"IF(AND(ISNUMBER($R10),ISNUMBER($R10*POWER(1+PSBNB,T$6)*POWER(1+KALBNB,-T$6)),T$6<BZBNB+1),$R10*POWER(1+PSBNB,T$6)*POWER(1+KALBNB,-T$6),\"\")","v":""},"","","","","","","","","","","","","","","","","","","","","","","","","","","","","","","",{"$f":"IF(AND(ISNUMBER($R10),ISNUMBER($R10*POWER(1+PSBNB,AZ$6)*POWER(1+KALBNB,-AZ$6)),AZ$6<BZBNB+1),$R10*POWER(1+PSBNB,AZ$6)*POWER(1+KALBNB,-AZ$6),\"\")","v":""},"","","","","","","","","","","","","","","","","","","","","","","","","","","","","","","",{"$f":"IF(AND(ISNUMBER($R10),ISNUMBER($R10*POWER(1+PSBNB,CF$6)*POWER(1+KALBNB,-CF$6)),CF$6<BZBNB+1),$R10*POWER(1+PSBNB,CF$6)*POWER(1+KALBNB,-CF$6),\"\")","v":""},"","","","","","","","","","","","","","",""]

{"sheet":"Bodenreinigung","index":5,"n_rows":10,"n_cols":95,"rows_kept":10,"cut":false,"hidden":false,"merged":[[0,0,0,1],[1,1,1,2],[2,1,2,2]]}
["Berechnung LCC nach BNB BN 2.1.1 v2011\nEingabe Bodenreinigung",null,"BBR-LCC\nVer. 15-1\nBBR A1"]
["Projekt:",{"$f":"IF(ISTEXT(Projekt),Projekt,\"\")","v":""}]
["Stand:",{"$f":"IF(ISNUMBER(LCC_Stand),LCC_Stand,\"\")","v":""}]
[]
["Nr.","Raumbezeichnung","Raumnr.","Fläche","Oberflächentyp","Typ","Material","Belastung","€/h","m²/h","Anzahl je Jahr","€/m²","€/m²*a","€/a","Barwert","Barwert","Barwert","Barwert","Barwert","Barwert","Barwert","Barwert","Barwert","Barwert","Barwert","Barwert","Barwert","Barwert","Barwert","Barwert","Barwert","Barwert","Barwert","Barwert","Barwert","Barwert","Barwert","Barwert","Barwert","Barwert","Barwert","Barwert","Barwert","Barwert","Barwert","Barwert","Barwert","Barwert","Barwert","Barwert","Barwert","Barwert","Barwert","Barwert","Barwert","Barwert","Barwert","Barwert","Barwert","Barwert","Barwert","Barwert","Barwert","Barwert","Barwert","Barwert","Barwert","Barwert","Barwert","Barwert","Barwert","Barwert","Barwert","Barwert","Barwert","Barwert","Barwert","Barwert","Barwert","Barwert","Barwert","Barwert","Barwert","Barwert","Barwert","Barwert","Barwert","Barwert","Barwert","Barwert","Barwert","Barwert","Barwert","Barwert","Barwert"]
[null,null,null,null,null,null,null,null,null,null,null,null,null,null,"∑ BZR",1,2,3,4,5,6,7,8,9,10,11,12,13,14,15,16,17,18,19,20,21,22,23,24,25,26,27,28,29,30,31,32,33,34,35,36,37,38,39,40,41,42,43,44,45,46,47,48,49,50,51,52,53,54,55,56,57,58,59,60,61,62,63,64,65,66,67,68,69,70,71,72,73,74,75,76,77,78,79,80]
[null,null,null,null,null,null,null,null,null,null,null,null,null,{"$f":"SUM(N8:N10)","v":0},0,0,0,0,0,0,0,0,0,0,0,0,0,0,0,0,0,0,0,0,0,0,0,0,0,0,0,0,0,0,0,{"$f":"SUM(AT8:AT10)","v":0},0,0,0,0,0,0,0,0,0,0,0,0,0,0,0,0,0,0,0,0,0,0,0,0,0,0,0,0,0,0,0,{"$f":"SUM(BZ8:BZ10)","v":0},0,0,0,0,0,0,0,0,0,0,0,0,0,0,0,0,0]
[]
[]
[{"$f":"(MAX(A$8:A$9))+1","v":1},null,null,null,null,{"$f":"IF(ISTEXT(VLOOKUP($E10,KatalogBodenreinigung,3,0)),VLOOKUP($E10,KatalogBodenreinigung,3,0),\"\")","v":""},{"$f":"IF(ISTEXT(VLOOKUP($E10,KatalogBodenreinigung,4,0)),VLOOKUP($E10,KatalogBodenreinigung,4,0),\"\")","v":""},{"$f":"IF(ISTEXT(VLOOKUP($E10,KatalogBodenreinigung,5,0)),VLOOKUP($E10,KatalogBodenreinigung,5,0),\"\")","v":""},{"$f":"IF(ISNUMBER(VLOOKUP($E10,KatalogBodenreinigung,6,0)),VLOOKUP($E10,KatalogBodenreinigung,6,0),\"\")","v":""},{"$f":"IF(ISNUMBER(VLOOKUP($E10,KatalogBodenreinigung,7,0)),VLOOKUP($E10,KatalogBodenreinigung,7,0),\"\")","v":""},{"$f":"IF(ISNUMBER(VLOOKUP($E10,KatalogBodenreinigung,8,0)),VLOOKUP($E10,KatalogBodenreinigung,8,0),\"\")","v":""},{"$f":"IF(ISNUMBER(I10/J10),I10/J10,\"\")","v":""},{"$f":"(IF(ISNUMBER(L10*K10),L10*K10,\"\"))","v":""},{"$f":"IF(ISNUMBER(M10*D10),M10*D10,\"\")","v":""},{"$f":"SUM(OFFSET(P10,,,,BZBNB))","v":0},{"$f":"IF(AND(ISNUMBER($N10),ISNUMBER($N10*POWER(1+PSBNB,P$6)*POWER(1+KALBNB,-P$6)),P$6<BZBNB+1),$N10*POWER(1+PSBNB,P$6)*POWER(1+KALBNB,-P$6),\"\")","v":""},"","","","","","","","","","","","","","","","","","","","","","","","","","","","","","","",{"$f":"IF(AND(ISNUMBER($N10),ISNUMBER($N10*POWER(1+PSBNB,AV$6)*POWER(1+KALBNB,-AV$6)),AV$6<BZBNB+1),$N10*POWER(1+PSBNB,AV$6)*POWER(1+KALBNB,-AV$6),\"\")","v":""},"","","","","","","","","","","","","","","","","","","","","","","","","","","","","","","",{"$f":"IF(AND(ISNUMBER($N10),ISNUMBER($N10*POWER(1+PSBNB,CB$6)*POWER(1+KALBNB,-CB$6)),CB$6<BZBNB+1),$N10*POWER(1+PSBNB,CB$6)*POWER(1+KALBNB,-CB$6),\"\")","v":""},"","","","","","","","","","","","","","",""]

{"sheet":"Energieversorgung","index":6,"n_rows":10,"n_cols":87,"rows_kept":10,"cut":false,"hidden":false,"merged":[[0,0,0,1],[1,1,1,2],[2,1,2,2]]}
["Berechnung LCC nach BNB BN 2.1.1 v2011\nEingabe Energieversorgung",null,"BBR-LCC\nVer. 15-1\nBBR A1"]
["Projekt:",{"$f":"IF(ISTEXT(Projekt),Projekt,\"\")","v":""}]
["Stand:",{"$f":"IF(ISNUMBER(LCC_Stand),LCC_Stand,\"\")","v":""}]
[]
["Nr.","Bezeichnung","Energieträger","Heizwert Endenergiebedarf \nabsolut","Energiekosten netto BNB","jährliche Energiekosten BNB","Barwert","Barwert","Barwert","Barwert","Barwert","Barwert","Barwert","Barwert","Barwert","Barwert","Barwert","Barwert","Barwert","Barwert","Barwert","Barwert","Barwert","Barwert","Barwert","Barwert","Barwert","Barwert","Barwert","Barwert","Barwert","Barwert","Barwert","Barwert","Barwert","Barwert","Barwert","Barwert","Barwert","Barwert","Barwert","Barwert","Barwert","Barwert","Barwert","Barwert","Barwert","Barwert","Barwert","Barwert","Barwert","Barwert","Barwert","Barwert","Barwert","Barwert","Barwert","Barwert","Barwert","Barwert","Barwert","Barwert","Barwert","Barwert","Barwert","Barwert","Barwert","Barwert","Barwert","Barwert","Barwert","Barwert","Barwert","Barwert","Barwert","Barwert","Barwert","Barwert","Barwert","Barwert","Barwert","Barwert","Barwert","Barwert","Barwert","Barwert","Barwert"]
[null,null,null,"kWh","€ / kWh","€","∑ BZR",1,2,3,4,5,6,7,8,9,10,11,12,13,14,15,16,17,18,19,20,21,22,23,24,25,26,27,28,29,30,31,32,33,34,35,36,37,38,39,40,41,42,43,44,45,46,47,48,49,50,51,52,53,54,55,56,57,58,59,60,61,62,63,64,65,66,67,68,69,70,71,72,73,74,75,76,77,78,79,80]
[null,null,null,{"$f":"SUM(D8:D10)","v":0},null,{"$f":"SUM(F8:F10)","v":0},0,0,0,0,0,0,0,0,0,0,0,0,0,0,0,0,0,0,0,0,0,0,0,0,0,0,0,0,0,0,0,{"$f":"SUM(AL8:AL10)","v":0},0,0,0,0,0,0,0,0,0,0,0,0,0,0,0,0,0,0,0,0,0,0,0,0,0,0,0,0,0,0,0,{"$f":"SUM(BR8:BR10)","v":0},0,0,0,0,0,0,0,0,0,0,0,0,0,0,0,0,0]
[]
[null,null,null,null,{"$f":"IF(ISNUMBER(VLOOKUP(C9,Energieträger_Verweis,3,0)),VLOOKUP(C9,Energieträger_Verweis,3,0),\"\")","v":""}]
[{"$f":"(MAX(A$8:A$9))+1","v":1},null,null,null,{"$f":"IF(ISNUMBER(VLOOKUP(C10,Energieträger_Verweis,3,0)),VLOOKUP(C10,Energieträger_Verweis,3,0),\"\")","v":""},{"$f":"IF(ISNUMBER(E10*D10),E10*D10,\"\")","v":""},{"$f":"SUM(OFFSET(H10,,,,BZBNB))","v":0},{"$f":"IF(AND(ISNUMBER($F10),ISNUMBER($F10*POWER(1+PSEBNB,H$6)*POWER(1+KALBNB,-H$6)),H$6<BZBNB+1),$F10*POWER(1+PSEBNB,H$6)*POWER(1+KALBNB,-H$6),\"\")","v":""},"","","","","","","","","","","","","","","","","","","","","","","","","","","","","","","",{"$f":"IF(AND(ISNUMBER($F10),ISNUMBER($F10*POWER(1+PSEBNB,AN$6)*POWER(1+KALBNB,-AN$6)),AN$6<BZBNB+1),$F10*POWER(1+PSEBNB,AN$6)*POWER(1+KALBNB,-AN$6),\"\")","v":""},"","","","","","","","","","","","","","","","","",{"$f":"IF(AND(ISNUMBER($F10),ISNUMBER($F10*POWER(1+PSBNB,BF$6)*POWER(1+KALBNB,-BF$6)),BF$6<BZBNB+1),$F10*POWER(1+PSBNB,BF$6)*POWER(1+KALBNB,-BF$6),\"\")","v":""},"","","","","","","","","","","","","",{"$f":"IF(AND(ISNUMBER($F10),ISNUMBER($F10*POWER(1+PSBNB,BT$6)*POWER(1+KALBNB,-BT$6)),BT$6<BZBNB+1),$F10*POWER(1+PSBNB,BT$6)*POWER(1+KALBNB,-BT$6),\"\")","v":""},"","","","","","","","","","","","","","",""]

{"sheet":"Wasser_Abwasser","index":7,"n_rows":11,"n_cols":86,"rows_kept":11,"cut":false,"hidden":false,"merged":[[0,0,0,1],[1,1,1,3],[2,1,2,3]]}
["Berechnung LCC nach BNB BN 2.1.1 v2011\nEingabe Wasser- und Abwasserkosten",null,null,"BBR-LCC\nVer. 15-1\nBBR A1"]
["Projekt:",{"$f":"IF(ISTEXT(Projekt),Projekt,\"\")","v":""}]
["Stand:",{"$f":"IF(ISNUMBER(LCC_Stand),LCC_Stand,\"\")","v":""}]
[]
["Bezeichnung","Menge","ME","Preis BNB ","jährliche Kosten für Wasserver- und Entsorgung","Barwert","Barwert","Barwert","Barwert","Barwert","Barwert","Barwert","Barwert","Barwert","Barwert","Barwert","Barwert","Barwert","Barwert","Barwert","Barwert","Barwert","Barwert","Barwert","Barwert","Barwert","Barwert","Barwert","Barwert","Barwert","Barwert","Barwert","Barwert","Barwert","Barwert","Barwert","Barwert","Barwert","Barwert","Barwert","Barwert","Barwert","Barwert","Barwert","Barwert","Barwert","Barwert","Barwert","Barwert","Barwert","Barwert","Barwert","Barwert","Barwert","Barwert","Barwert","Barwert","Barwert","Barwert","Barwert","Barwert","Barwert","Barwert","Barwert","Barwert","Barwert","Barwert","Barwert","Barwert","Barwert","Barwert","Barwert","Barwert","Barwert","Barwert","Barwert","Barwert","Barwert","Barwert","Barwert","Barwert","Barwert","Barwert","Barwert","Barwert","Barwert"]
[null,"pro ME",null,"€ / ME","€","∑ BZR",1,2,3,4,5,6,7,8,9,10,11,12,13,14,15,16,17,18,19,20,21,22,23,24,25,26,27,28,29,30,31,32,33,34,35,36,37,38,39,40,41,42,43,44,45,46,47,48,49,50,51,52,53,54,55,56,57,58,59,60,61,62,63,64,65,66,67,68,69,70,71,72,73,74,75,76,77,78,79,80]
[null,null,null,null,{"$f":"SUM(E9:E11)","v":0},{"$f":"SUM(F8:F11)","v":0},0,0,0,0,0,0,0,0,0,0,0,0,0,0,0,0,0,0,0,0,0,0,0,0,0,0,0,0,0,0,0,{"$f":"SUM(AL8:AL11)","v":0},0,0,0,0,0,0,0,0,0,0,0,0,0,0,0,0,0,0,0,0,0,0,0,0,0,0,0,0,0,0,0,{"$f":"SUM(BR8:BR11)","v":0},0,0,0,0,0,0,0,0,0,0,0,0,0,0,0,0]
[]
["Gesamtfrischwasserbedarf\naus Berechnungshilfe Trinkwasser (Tool 1.2.3)",null,"m³",{"$f":"Kosten_Frischwasserbedarf","v":2.0099999999999998},{"$f":"D9*B9","v":0},{"$f":"SUM(OFFSET(G9,,,,BZBNB))","v":0},{"$f":"IF(AND(ISNUMBER($E9),ISNUMBER($E9*POWER(1+PSBNB,G$6)*POWER(1+KALBNB,-G$6)),G$6<BZBNB+1),$E9*POWER(1+PSBNB,G$6)*POWER(1+KALBNB,-G$6),\"\")","v":0},0,0,0,0,0,0,0,0,0,{"$f":"IF(AND(ISNUMBER($E9),ISNUMBER($E9*POWER(1+PSBNB,Q$6)*POWER(1+KALBNB,-Q$6)),Q$6<BZBNB+1),$E9*POWER(1+PSBNB,Q$6)*POWER(1+KALBNB,-Q$6),\"\")","v":0},0,0,0,0,0,0,0,0,0,{"$f":"IF(AND(ISNUMBER($E9),ISNUMBER($E9*POWER(1+PSBNB,AA$6)*POWER(1+KALBNB,-AA$6)),AA$6<BZBNB+1),$E9*POWER(1+PSBNB,AA$6)*POWER(1+KALBNB,-AA$6),\"\")","v":0},0,0,0,0,0,0,0,0,0,{"$f":"IF(AND(ISNUMBER($E9),ISNUMBER($E9*POWER(1+PSBNB,AK$6)*POWER(1+KALBNB,-AK$6)),AK$6<BZBNB+1),$E9*POWER(1+PSBNB,AK$6)*POWER(1+KALBNB,-AK$6),\"\")","v":0},0,0,0,0,0,0,0,0,0,{"$f":"IF(AND(ISNUMBER($E9),ISNUMBER($E9*POWER(1+PSBNB,AU$6)*POWER(1+KALBNB,-AU$6)),AU$6<BZBNB+1),$E9*POWER(1+PSBNB,AU$6)*POWER(1+KALBNB,-AU$6),\"\")","v":0},0,0,0,0,0,0,0,0,0,{"$f":"IF(AND(ISNUMBER($E9),ISNUMBER($E9*POWER(1+PSBNB,BE$6)*POWER(1+KALBNB,-BE$6)),BE$6<BZBNB+1),$E9*POWER(1+PSBNB,BE$6)*POWER(1+KALBNB,-BE$6),\"\")","v":""},"","","","","","","","","",{"$f":"IF(AND(ISNUMBER($E9),ISNUMBER($E9*POWER(1+PSBNB,BO$6)*POWER(1+KALBNB,-BO$6)),BO$6<BZBNB+1),$E9*POWER(1+PSBNB,BO$6)*POWER(1+KALBNB,-BO$6),\"\")","v":""},"","","","","","","","","",{"$f":"IF(AND(ISNUMBER($E9),ISNUMBER($E9*POWER(1+PSBNB,BY$6)*POWER(1+KALBNB,-BY$6)),BY$6<BZBNB+1),$E9*POWER(1+PSBNB,BY$6)*POWER(1+KALBNB,-BY$6),\"\")","v":""},"","","","","","","","",""]
["Abwasseraufkommen aus Niederschlagswasser\naus Berechnungshilfe Trinkwasser (Tool 1.2.3)",null,"m²",{"$f":"Kosten_Niederschlagswasser","v":1.1000000000000001},{"$f":"D10*B10","v":0},{"$f":"SUM(OFFSET(G10,,,,BZBNB))","v":0},0,0,0,0,0,0,0,0,0,0,0,0,0,0,0,0,0,0,0,0,0,0,0,0,0,0,0,0,0,0,0,0,0,0,0,0,0,0,0,0,0,0,0,0,0,0,0,0,0,0,"","","","","","","","","","","","","","","","","","","","","","","","","","","","","",""]
["Abwasseraufkommen aus Brauchwasser\naus Berechnungshilfe Trinkwasser (Tool 1.2.3)",null,"m³",{"$f":"Kosten_Brauchwasser","v":2.14},{"$f":"D11*B11","v":0},{"$f":"SUM(OFFSET(G11,,,,BZBNB))","v":0},0,0,0,0,0,0,0,0,0,0,0,0,0,0,0,0,0,0,0,0,0,0,0,0,0,0,0,0,0,0,0,0,0,0,0,0,0,0,0,0,0,0,0,0,0,0,0,0,0,0,"","","","","","","","","","","","","","","","","","","","","","","","","","","","","",""]

{"sheet":"KT_Reinigung","index":8,"n_rows":22,"n_cols":10,"rows_kept":22,"cut":false,"hidden":true,"merged":[]}
["Bezeichnung","Nummer","Oberfläche","Typ","Einbauort","Material","Zugänglichkeit","€/h","m²/h","Anzahl je Jahr"]
[{"$f":"CONCATENATE(B2,\"; \", C2,D2,\"; \",E2,\"; \",G2)","v":"00001; Fenster, Tür, Festverglasung; außen; gut zugänglich"},"00001","Fenster, Tür, Festverglasung",null,"außen","Glas","gut zugänglich",15,25,2]
[{"$f":"CONCATENATE(B3,\"; \", C3,\"; \",D3,\"; \",E3,\"; \",G3)","v":"00002; Fenster, Tür, Festverglasung; ; außen; mittel zugänglich"},"00002","Fenster, Tür, Festverglasung",null,"außen","Glas","mittel zugänglich",15,20,2]
[{"$f":"CONCATENATE(B4,\"; \", C4,\"; \",D4,\"; \",E4,\"; \",G4)","v":"00003; Fenster, Tür, Festverglasung; ; außen; schwer zugänglich"},"00003","Fenster, Tür, Festverglasung",null,"außen","Glas","schwer zugänglich",15,13,2]
[{"$f":"CONCATENATE(B5,\"; \", C5,\"; \",D5,\"; \",E5,\"; \",G5)","v":"00004; Glasfläche; Geländer; außen; gut zugänglich"},"00004","Glasfläche","Geländer","außen","Glas","gut zugänglich",15,25,2]
[{"$f":"CONCATENATE(B6,\"; \", C6,\"; \",D6,\"; \",E6,\"; \",G6)","v":"00005; Glasfläche; Geländer; außen; mittel zugänglich"},"00005","Glasfläche","Geländer","außen","Glas","mittel zugänglich",15,20,2]
[{"$f":"CONCATENATE(B7,\"; \", C7,\"; \",D7,\"; \",E7,\"; \",G7)","v":"00006; Glasfläche; Geländer; außen; schwer zugänglich"},"00006","Glasfläche","Geländer","außen","Glas","schwer zugänglich",15,13,2]
["00007; Glasfläche; sonstige Verglasung; außen; gut zugänglich","00007","Glasfläche","sonstige Verglasung","außen","Glas","gut zugänglich",15,25,2]
["00008; Glasfläche; sonstige Verglasung; außen; mittel zugänglich","00008","Glasfläche","sonstige Verglasung","außen","Glas","mittel zugänglich",15,20,2]
["00009; Glasfläche; sonstige Verglasung; außen; schwer zugänglich","00009","Glasfläche","sonstige Verglasung","außen","Glas","schwer zugänglich",15,13,2]
["00010; AW-Bekleidung; Naturstein weich; außen; ","00010","AW-Bekleidung","Naturstein weich","außen","Naturstein weich",null,15,1.1499999999999999,0.25]
["00011; AW-Bekleidung; Naturstein hart; außen; ","00011","AW-Bekleidung","Naturstein hart","außen","Naturstein hart",null,15,6,0.25]
["00012; AW-Bekleidung; Aluminium; außen; ","00012","AW-Bekleidung","Aluminium","außen","Aluminium",null,15,3,0.25]
["00013; AW-Bekleidung; Edelstahl; außen; ","00013","AW-Bekleidung","Edelstahl","außen","Edelstahl",null,15,3,0.25]
["00014; AW-Bekleidung; Kupferblech; außen; ","00014","AW-Bekleidung","Kupferblech","außen","Kupferblech",null,15,3,0.25]
["00015; AW-Bekleidung; Stahl korrosionsgeschützt; außen; ","00015","AW-Bekleidung","Stahl korrosionsgeschützt","außen","Stahl korrosionsgeschützt",null,15,3,0.25]
["00016; AW-Bekleidung; Glas; außen; ","00016","AW-Bekleidung","Glas","außen","Glas",null,15,20,0.25]
["00017; AW-Bekleidung; Keramik; außen; ","00017","AW-Bekleidung","Keramik","außen","Keramik",null,15,6,0.25]
["00018; AW-Bekleidung; Kunst/ Werkstein; außen; ","00018","AW-Bekleidung","Kunst/ Werkstein","außen","Kunst/ Werkstein",null,15,6,0.25]
[{"$f":"CONCATENATE(B20,\"; \", C20,\"; \",D20,\"; \",E20)","v":"00019; Türen allgemein + Innenfenster; außer Glastür außen; "},"00019","Türen allgemein + Innenfenster","außer Glastür außen",null,null,null,15,250,4]
["00020; Sanitäreinrichtung; Ansatz über m² Bodenfläche; innen; ","00020","Sanitäreinrichtung","Ansatz über m² Bodenfläche","innen",null,null,15,212.5,250]
["00021; Sonnenschutzfläche; Jalousie; außen; normal","00021","Sonnenschutzfläche","Jalousie","außen","Aluminium","normal",15,3,0.25]

{"sheet":"KT_Bodenreinigung","index":9,"n_rows":14,"n_cols":8,"rows_kept":14,"cut":false,"hidden":true,"merged":[]}
["Bezeichnung","Nummer","Typ","Material","Belastung","€/h","m²/h","Anzahl je Jahr"]
[{"$f":"CONCATENATE(B2,\"; \",D2,\"; \",E2)","v":"00001; keramische Fliesen; normal"},"00001","wischbar","keramische Fliesen","normal",15,250,100]
[{"$f":"CONCATENATE(B3,\"; \",D3,\"; \",E3)","v":"00002; Natur-/ Werkstein (weich); normal"},"00002","wischbar","Natur-/ Werkstein (weich)","normal",15,250,100]
[{"$f":"CONCATENATE(B4,\"; \",D4,\"; \",E4)","v":"00003; Textilbelag; normal"},"00003","nicht wischbar","Textilbelag","normal",15,300,100]
["00004; Kunststoff bis 2,5 mm; normal","00004","wischbar","Kunststoff bis 2,5 mm","normal",15,400,100]
["00005; Laminat; normal","00005","wischbar","Laminat","normal",15,400,100]
["00006; Linoleum bis 2,5 mm; normal","00006","wischbar","Linoleum bis 2,5 mm","normal",15,400,100]
["00007; Parkett; normal","00007","wischbar","Parkett","normal",15,400,100]
["00008; keramische Fliesen; stark","00008","wischbar","keramische Fliesen","stark",15,212.5,100]
["00009; Natur-/ Werkstein (hart); stark","00009","wischbar","Natur-/ Werkstein (hart)","stark",15,340,100]
["00010; Textilbelag; stark","00010","nicht wischbar","Textilbelag","stark",15,340,100]
["00011; Kunststoff über 2,5 mm; stark","00011","wischbar","Kunststoff über 2,5 mm","stark",15,340,100]
["00013; Linoleum ab 3,2 mm; stark","00013","wischbar","Linoleum ab 3,2 mm","stark",15,340,100]
["00014; Parkett; stark","00014","wischbar","Parkett","stark",15,212.5,100]

{"sheet":"KT_NDauern","index":10,"n_rows":287,"n_cols":5,"rows_kept":287,"cut":false,"hidden":true,"merged":[]}
[null,"KG","Code","Bezeichnung Kostengruppe oder Bauteil/Material","Nutzungsdauer"]
[{"$f":"IF(AND(ISNUMBER(B2),ISNUMBER(E2)),CONCATENATE(B2,\"-\",C2,\": \",D2,\"  [ND: \",E2,\"]\"),\"\")","v":"322-111: Einzel-/Streifenfundamente  [ND: 50]"},322,111,"Einzel-/Streifenfundamente",50]
[{"$f":"IF(AND(ISNUMBER(B3),ISNUMBER(E3)),CONCATENATE(B3,\"-\",C3,\": \",D3,\"  [ND: \",E3,\"]\"),\"\")","v":"322-112: Fundamentplatten  [ND: 50]"},322,112,"Fundamentplatten",50]
["323-111: Bohrpfähle, Presspfähle, Rammpfähle, Pfahlwände, Schlitzwände, Spundwände, Trägerbohlwände  [ND: 50]",323,111,"Bohrpfähle, Presspfähle, Rammpfähle, Pfahlwände, Schlitzwände, Spundwände, Trägerbohlwände",50]
["324-111: Bodenplatte  [ND: 50]",324,111,"Bodenplatte",50]
["326-111: Abdichtung gegen nichtdrückendes Wasser  [ND: 35]",326,111,"Abdichtung gegen nichtdrückendes Wasser",35]
["331-111: Mauerwerkswand  [ND: 50]",331,111,"Mauerwerkswand",50]
["331-211: Betonwand  [ND: 50]",331,211,"Betonwand",50]
["331-311: Holzwand  [ND: 50]",331,311,"Holzwand",50]
["331-411: Stahlbauwand  [ND: 50]",331,411,"Stahlbauwand",50]
["331-511: Lehmbauwand  [ND: 50]",331,511,"Lehmbauwand",50]
["331-611: Formsteine mit Betonfüllung  [ND: 50]",331,611,"Formsteine mit Betonfüllung",50]
["333-111: Mauerwerksstütze  [ND: 50]",333,111,"Mauerwerksstütze",50]
["333-211: Betonstütze  [ND: 50]",333,211,"Betonstütze",50]
["333-311: Holzstütze  [ND: 50]",333,311,"Holzstütze",50]
["333-411: Stahlstütze  [ND: 50]",333,411,"Stahlstütze",50]
["334-111: Standardtüren: Laubholz  [ND: 50]",334,111,"Standardtüren: Laubholz",50]
["334-112: Standardtüren: Metall  [ND: 50]",334,112,"Standardtüren: Metall",50]
["334-113: Standardtüren: Holzwerkstoff  [ND: 40]",334,113,"Standardtüren: Holzwerkstoff",40]
["334-114: Standardtüren: Kunststoff  [ND: 40]",334,114,"Standardtüren: Kunststoff",40]
["334-115: Standardtüren: Nadelholz  [ND: 35]",334,115,"Standardtüren: Nadelholz",35]
["334-121: Brandschutztüren  [ND: 50]",334,121,"Brandschutztüren",50]
["334-131: Sondertüren: Schallschutztüren, Glastüren  [ND: 50]",334,131,"Sondertüren: Schallschutztüren, Glastüren",50]
["334-132: Sondertüren: Automatiktüren  [ND: 20]",334,132,"Sondertüren: Automatiktüren",20]
["334-133: Sondertüren: Schiebetüren, Rotationstüren  [ND: 30]",334,133,"Sondertüren: Schiebetüren, Rotationstüren",30]
["334-211: Fenster (Rahmen und Flügel): Aluminium, Aluminium-Holz-Komposit, Aluminium-Kunststoff-Komposit, Laubholz behandelt, Stahl  [ND: 50]",334,211,"Fenster (Rahmen und Flügel): Aluminium, Aluminium-Holz-Komposit, Aluminium-Kunststoff-Komposit, Laubholz behandelt, Stahl",50]
["334-212: Fenster (Rahmen und Flügel): Kunststoff, Nadelholz behandelt  [ND: 40]",334,212,"Fenster (Rahmen und Flügel): Kunststoff, Nadelholz behandelt",40]
["334-311: Beschläge: einfache Beschläge, Schiebebeschläge  [ND: 30]",334,311,"Beschläge: einfache Beschläge, Schiebebeschläge",30]
["334-312: Beschläge: Drehkippbeschläge, Schwingflügelbeschläge, Hebedrehkippbeschläge  [ND: 25]",334,312,"Beschläge: Drehkippbeschläge, Schwingflügelbeschläge, Hebedrehkippbeschläge",25]
["334-313: Türschlösser, Türanschlagdämpfer, Panikverschlüsse  [ND: 25]",334,313,"Türschlösser, Türanschlagdämpfer, Panikverschlüsse",25]
["334-314: Türschließer  [ND: 20]",334,314,"Türschließer",20]
["334-315: Türantriebe  [ND: 15]",334,315,"Türantriebe",15]
["334-316: Verglasung: Sicherheits-Isolierglas, 3-Scheiben-Wärmeschutz-Isolierglas, 2-Scheiben-Wärmeschutz-Isolierglas, Brandschutz-Isolierglas, Schallschutz-Isolierglas, Angriffhemmendes Isolierglas, Sonnenschutz-Isolierglas  [ND: 30]",334,316,"Verglasung: Sicherheits-Isolierglas, 3-Scheiben-Wärmeschutz-Isolierglas, 2-Scheiben-Wärmeschutz-Isolierglas, Brandschutz-Isolierglas, Schallschutz-Isolierglas, Angriffhemmendes Isolierglas, Sonnenschutz-Isolierglas",30]
["334-317: Dichtungsprofile  [ND: 20]",334,317,"Dichtungsprofile",20]
["334-318: Dichtungsstoffe  [ND: 12]",334,318,"Dichtungsstoffe",12]
["334-319: Rolläden  [ND: 40]",334,319,"Rolläden",40]
["335-111: Abdichtungen erdberührt, gegen drückendes Wasser: Dichtungsbahnen  [ND: 50]",335,111,"Abdichtungen erdberührt, gegen drückendes Wasser: Dichtungsbahnen",50]
["335-112: Abdichtungen erdberührt, gegen drückendes Wasser: Bentonit  [ND: 40]",335,112,"Abdichtungen erdberührt, gegen drückendes Wasser: Bentonit",40]
["335-113: Abdichtungen erdberührt: Konstruktionen aus wasserundurchlässigem Beton  [ND: 50]",335,113,"Abdichtungen erdberührt: Konstruktionen aus wasserundurchlässigem Beton",50]
["335-121: Abdichtungen erdberührt, gegen nichtdrückendes Wasser: Dichtungsbahnen aus Bitumen, Spachtelmasse  [ND: 40]",335,121,"Abdichtungen erdberührt, gegen nichtdrückendes Wasser: Dichtungsbahnen aus Bitumen, Spachtelmasse",40]
["335-122: Abdichtungen erdberührt, gegen nichtdrückendes Wasser: Beschichtungen und Anstriche  [ND: 30]",335,122,"Abdichtungen erdberührt, gegen nichtdrückendes Wasser: Beschichtungen und Anstriche",30]
["335-131: Abdichtungen erdberührt nachträglich: Querschnittsabdichtungen gegen aufsteigende Feuchtigkeit durch mechanische Injektion  [ND: 40]",335,131,"Abdichtungen erdberührt nachträglich: Querschnittsabdichtungen gegen aufsteigende Feuchtigkeit durch mechanische Injektion",40]
["335-132: Abdichtungen erdberührt nachträglich: Vergelung, Schleierinjektion  [ND: 20]",335,132,"Abdichtungen erdberührt nachträglich: Vergelung, Schleierinjektion",20]
["335-141: Abdichtungen erdberührt: Abdichtungsschutz aus Schutzmauern (Beton, Ziegel, Hartbrandklinker)  [ND: 50]",335,141,"Abdichtungen erdberührt: Abdichtungsschutz aus Schutzmauern (Beton, Ziegel, Hartbrandklinker)",50]
["335-142: Abdichtungen erdberührt: Abdichtungsschutz aus Hartschaumplatten Polystyrol, Noppenbahnen (Polyethylen Polypropylen), Wellplatten faserverstärkt auf Zementbasis  [ND: 40]",335,142,"Abdichtungen erdberührt: Abdichtungsschutz aus Hartschaumplatten Polystyrol, Noppenbahnen (Polyethylen Polypropylen), Wellplatten faserverstärkt auf Zementbasis",40]
["335-143: Abdichtungen erdberührt: Abdichtungsschutz aus Granulatmatten, Wellplatten  [ND: 30]",335,143,"Abdichtungen erdberührt: Abdichtungsschutz aus Granulatmatten, Wellplatten",30]
["335-151: Wärmedämmung erdberührter Bauteile: Perimenterdämmung Schaumglas  [ND: 50]",335,151,"Wärmedämmung erdberührter Bauteile: Perimenterdämmung Schaumglas",50]
["335-152: Wärmedämmung erdberührter Bauteile: Perimenterdämmung Extrudiertes Polystyrol  [ND: 40]",335,152,"Wärmedämmung erdberührter Bauteile: Perimenterdämmung Extrudiertes Polystyrol",40]
["335-211: Außenanstriche, mineralischer Untergrund: Dipersionsfarbe, Dispersions-Silikatfarbe, Weißzementfarbe, Kunststoffbeschichtungen auf Beton  [ND: 20]",335,211,"Außenanstriche, mineralischer Untergrund: Dipersionsfarbe, Dispersions-Silikatfarbe, Weißzementfarbe, Kunststoffbeschichtungen auf Beton",20]
["335-212: Außenanstriche, mineralischer Untergrund: Silikonharzfarbe, Silikatfarbe, Polymerisatharzfarben  [ND: 15]",335,212,"Außenanstriche, mineralischer Untergrund: Silikonharzfarbe, Silikatfarbe, Polymerisatharzfarben",15]
["335-213: Außenanstriche, mineralischer Untergrund: Kaseinfarbe  [ND: 10]",335,213,"Außenanstriche, mineralischer Untergrund: Kaseinfarbe",10]
["335-214: Außenanstriche, mineralischer Untergrund: Kalkfarbe  [ND: 8]",335,214,"Außenanstriche, mineralischer Untergrund: Kalkfarbe",8]
["335-215: Außenanstriche, mineralischer Untergrund: Imprägnierung auf Mauerwerk  [ND: 15]",335,215,"Außenanstriche, mineralischer Untergrund: Imprägnierung auf Mauerwerk",15]
["335-216: Außenanstriche, mineralischer Untergrund: Lasur, Graffitischutz  [ND: 10]",335,216,"Außenanstriche, mineralischer Untergrund: Lasur, Graffitischutz",10]
["335-221: Holzschutzanstriche, außen: Holzlacke, Holzlasuren  [ND: 8]",335,221,"Holzschutzanstriche, außen: Holzlacke, Holzlasuren",8]
["335-222: Holzschutzanstriche, außen: Holzöle/-wachse  [ND: 5]",335,222,"Holzschutzanstriche, außen: Holzöle/-wachse",5]
["335-223: Holzschutzimprägnierungen, außen: Druckimprägnierung  [ND: 18]",335,223,"Holzschutzimprägnierungen, außen: Druckimprägnierung",18]
["335-311: Putz auf monolitischer Tragschicht: hochhydraulischer Kalkmörtel, Mörtel mit Putzund Mauerbinder, Kalkzementmörtel, Zementmörtel mit Zusatz von Luftkalk, Zementmörtel, Luftkalk, Hydraulischer Kalkmörtel, Wasserkalkmörtel  [ND: 45]",335,311,"Putz auf monolitischer Tragschicht: hochhydraulischer Kalkmörtel, Mörtel mit Putzund Mauerbinder, Kalkzementmörtel, Zementmörtel mit Zusatz von Luftkalk, Zementmörtel, Luftkalk, Hydraulischer Kalkmörtel, Wasserkalkmörtel",45]
["335-312: Putz auf monolitischer Tragschicht: Sanierputzsysteme, mineralische Leichtputzsysteme auf porosierter Tragschicht  [ND: 40]",335,312,"Putz auf monolitischer Tragschicht: Sanierputzsysteme, mineralische Leichtputzsysteme auf porosierter Tragschicht",40]
["335-313: Putz auf monolitischer Tragschicht: Silikatputze, Silikonharzputze, Kunstharzputze  [ND: 30]",335,313,"Putz auf monolitischer Tragschicht: Silikatputze, Silikonharzputze, Kunstharzputze",30]
["335-314: Putz auf Wärmedämmung: mineralische Putzsysteme, silikatische Putzsysteme, Kunstharzputzsysteme, Silikonharzputzsysteme  [ND: 30]",335,314,"Putz auf Wärmedämmung: mineralische Putzsysteme, silikatische Putzsysteme, Kunstharzputzsysteme, Silikonharzputzsysteme",30]
["335-411: Bekleidungen: Klinker, Kalksandstein, Sichtbeton  [ND: 50]",335,411,"Bekleidungen: Klinker, Kalksandstein, Sichtbeton",50]
["335-511: Bekleidungen: Naturstein, Kunststein, Betonsteinplatten, Faserzementplatten, Kunstharzstein, Ziegelplatten  [ND: 50]",335,511,"Bekleidungen: Naturstein, Kunststein, Betonsteinplatten, Faserzementplatten, Kunstharzstein, Ziegelplatten",50]
["335-512: Bekleidungen: keramische Fliesen und Platten, Feinsteinzeug  [ND: 40]",335,512,"Bekleidungen: keramische Fliesen und Platten, Feinsteinzeug",40]
["335-521: keramische Fliesen und Platten: Fliesenverfugungsmassen  [ND: 30]",335,521,"keramische Fliesen und Platten: Fliesenverfugungsmassen",30]
["335-522: Bekleidungen keramisch auf Wärmedämmung: Fliesen, Klinkerriemchen  [ND: 30]",335,522,"Bekleidungen keramisch auf Wärmedämmung: Fliesen, Klinkerriemchen",30]
[{"$f":"IF(AND(ISNUMBER(B67),ISNUMBER(E67)),CONCATENATE(B67,\"-\",C67,\": \",D67,\"  [ND: \",E67,\"]\"),\"\")","v":"335-611: Dämmschicht als Kerndämmung: Glaswolledämmplatten, Steinwollewdämmplatten, Polyurethandämmplatten, Polystyrol, Blähschiefergranulat, Blähglasgranulat, Blähtongranulat  [ND: 40]"},335,611,"Dämmschicht als Kerndämmung: Glaswolledämmplatten, Steinwollewdämmplatten, Polyurethandämmplatten, Polystyrol, Blähschiefergranulat, Blähglasgranulat, Blähtongranulat",40]
["335-621: Dämmschicht hinter Vorsatzschale, hinterlüftet: Mineralschaumplatten, Schaumglasplatten  [ND: 45]",335,621,"Dämmschicht hinter Vorsatzschale, hinterlüftet: Mineralschaumplatten, Schaumglasplatten",45]
["335-631: Dämmschicht hinter Vorsatzschale: Vakuumdämmpaneele  [ND: 30]",335,631,"Dämmschicht hinter Vorsatzschale: Vakuumdämmpaneele",30]
["335-641: Wärmedämmverbundsystem: Steinwolledämmplatten, Mineralwolledämmplatten, Polystyroldämmplatten, Polyurethandämmplatten, Holzfaserdämmplatten, Holzwolleleichtbauplatten, Korkplatten  [ND: 40]",335,641,"Wärmedämmverbundsystem: Steinwolledämmplatten, Mineralwolledämmplatten, Polystyroldämmplatten, Polyurethandämmplatten, Holzfaserdämmplatten, Holzwolleleichtbauplatten, Korkplatten",40]
["335-642: Wärmedämmverbundsystem, transparent  [ND: 20]",335,642,"Wärmedämmverbundsystem, transparent",20]
["335-711: Holzbekleidungen: Nadelholz behandelt, Laubholz, Holzwerkstoff-Systeme  [ND: 40]",335,711,"Holzbekleidungen: Nadelholz behandelt, Laubholz, Holzwerkstoff-Systeme",40]
["335-712: Holzbekleidung: Nadelholz unbehandelt  [ND: 30]",335,712,"Holzbekleidung: Nadelholz unbehandelt",30]
["335-713: Holzbekleidung: Holzschindeln  [ND: 50]",335,713,"Holzbekleidung: Holzschindeln",50]
["335-811: Metallbekleidungen: Zink, Kupfer, Aluminium eloxiert, Aluminium lackiert, Stahl nicht rostend  [ND: 50]",335,811,"Metallbekleidungen: Zink, Kupfer, Aluminium eloxiert, Aluminium lackiert, Stahl nicht rostend",50]
["335-812: Metallbekleidungen: Stahl galvanisch verzinkt  [ND: 40]",335,812,"Metallbekleidungen: Stahl galvanisch verzinkt",40]
["335-813: Vorsatzschale, hinterlüftet: Kupferblech  [ND: 50]",335,813,"Vorsatzschale, hinterlüftet: Kupferblech",50]
["335-814: Vorsatzschale, hinterlüftet: Zink, Stahl nicht rostend  [ND: 45]",335,814,"Vorsatzschale, hinterlüftet: Zink, Stahl nicht rostend",45]
["335-815: Vorsatzschale, hinterlüftet: Aluminium-Verbundplatten, korrosionsreduzierter Stahl, Stahl galvanisch verzinkt und beschichtet  [ND: 30]",335,815,"Vorsatzschale, hinterlüftet: Aluminium-Verbundplatten, korrosionsreduzierter Stahl, Stahl galvanisch verzinkt und beschichtet",30]
["335-911: Vorsatzschale, hinterlüftet: Glas  [ND: 50]",335,911,"Vorsatzschale, hinterlüftet: Glas",50]
["335-912: Kunststoffstegplatten, transparent: Acrylglasplatten  [ND: 40]",335,912,"Kunststoffstegplatten, transparent: Acrylglasplatten",40]
["335-913: Kunststoffstegplatten, transparent: Polycarbonatplatten  [ND: 30]",335,913,"Kunststoffstegplatten, transparent: Polycarbonatplatten",30]
["335-914: Vorsatzschale, hinterlüftet: faserverstärkte Harzkompositplatten  [ND: 30]",335,914,"Vorsatzschale, hinterlüftet: faserverstärkte Harzkompositplatten",30]
["335-915: Wandbekleidungen (Systeme): Kunststoff, Mehrschichtleichtbauplatten  [ND: 40]",335,915,"Wandbekleidungen (Systeme): Kunststoff, Mehrschichtleichtbauplatten",40]
["335-916: Vorsatzschale: Fugen und Kompriband, Verfugung, Dehnungsfuge, Profil  [ND: 40]",335,916,"Vorsatzschale: Fugen und Kompriband, Verfugung, Dehnungsfuge, Profil",40]
["335-917: Vorsatzschale: Unterkonstruktion  [ND: 50]",335,917,"Vorsatzschale: Unterkonstruktion",50]
["336-111: Bekleidung Dämmplatten: Mineralschaumdämmplatten, Calciumsilikatplatten  [ND: 50]",336,111,"Bekleidung Dämmplatten: Mineralschaumdämmplatten, Calciumsilikatplatten",50]
["338-111: Jalousien: Kunststoff  [ND: 25]",338,111,"Jalousien: Kunststoff",25]
["338-112: Jalousien: Aluminium  [ND: 15]",338,112,"Jalousien: Aluminium",15]
["338-211: Markisen  [ND: 15]",338,211,"Markisen",15]
["338-311: Sonnenschutz, feststehend: Aluminium  [ND: 50]",338,311,"Sonnenschutz, feststehend: Aluminium",50]
["339-111: frei stehende Konstruktion: Mauerwerk, Stahlbeton, Stahl nicht rostend, Stahl feuerverzinkt (stückverzinkt), Aluminium beschichtet, Laubholz, Kunststoff-Komposit  [ND: 50]",339,111,"frei stehende Konstruktion: Mauerwerk, Stahlbeton, Stahl nicht rostend, Stahl feuerverzinkt (stückverzinkt), Aluminium beschichtet, Laubholz, Kunststoff-Komposit",50]
["339-112: frei stehende Konstruktion: Nadelholz, behandelt  [ND: 45]",339,112,"frei stehende Konstruktion: Nadelholz, behandelt",45]
["339-121: Brüstung: Stahlgitterkonstruktion feuerverzinkt (stückverzinkt), Glas, Mauerwerk, Stahlbeton  [ND: 50]",339,121,"Brüstung: Stahlgitterkonstruktion feuerverzinkt (stückverzinkt), Glas, Mauerwerk, Stahlbeton",50]
["339-122: Brüstung aus Holzkonstruktion  [ND: 30]",339,122,"Brüstung aus Holzkonstruktion",30]
["339-123: Brüstungsbekleidung aus Aluminiumplatten, Glasplatten  [ND: 50]",339,123,"Brüstungsbekleidung aus Aluminiumplatten, Glasplatten",50]
["339-124: Brüstungsbekleidung aus Kunststoffplatten  [ND: 40]",339,124,"Brüstungsbekleidung aus Kunststoffplatten",40]
["341-111: Mauerwerkswand  [ND: 50]",341,111,"Mauerwerkswand",50]
["341-211: Betonwand  [ND: 50]",341,211,"Betonwand",50]
["341-311: Holzwand  [ND: 50]",341,311,"Holzwand",50]
["342-111: Mauerwerkswand  [ND: 50]",342,111,"Mauerwerkswand",50]
["342-211: Betonwand  [ND: 50]",342,211,"Betonwand",50]
["342-311: Holzwand  [ND: 50]",342,311,"Holzwand",50]
["342-411: Ständersysteme  [ND: 50]",342,411,"Ständersysteme",50]
["343-111: Mauerwerksstütze  [ND: 50]",343,111,"Mauerwerksstütze",50]
["343-211: Betonstütze  [ND: 50]",343,211,"Betonstütze",50]
["343-311: Holzstütze  [ND: 50]",343,311,"Holzstütze",50]
["343-411: Stahlstütze  [ND: 50]",343,411,"Stahlstütze",50]
["344-111: Standardtüren: Holztüren, Holzwerkstofftüren, Aluminiumtüren, Kunststofftüren, Stahltüren und Stahltüren rostfrei  [ND: 50]",344,111,"Standardtüren: Holztüren, Holzwerkstofftüren, Aluminiumtüren, Kunststofftüren, Stahltüren und Stahltüren rostfrei",50]
["344-211: Sondertüren: Glastüren, Rauchschutztüren, Schallschutztüren  [ND: 50]",344,211,"Sondertüren: Glastüren, Rauchschutztüren, Schallschutztüren",50]
["344-311: Brandschutztüren  [ND: 50]",344,311,"Brandschutztüren",50]
["344-312: Sondertüren: Feuchtraumtüren  [ND: 40]",344,312,"Sondertüren: Feuchtraumtüren",40]
["344-313: Sondertüren: Schiebetüren, Rotationstüren  [ND: 30]",344,313,"Sondertüren: Schiebetüren, Rotationstüren",30]
["344-314: Sondertüren: Automatiktüren  [ND: 20]",344,314,"Sondertüren: Automatiktüren",20]
["344-411: Tore: Brandschutztore  [ND: 30]",344,411,"Tore: Brandschutztore",30]
["344-511: Fenster (Rahmen und Flügel)  [ND: 50]",344,511,"Fenster (Rahmen und Flügel)",50]
["344-611: Beschläge: einfache Beschläge  [ND: 50]",344,611,"Beschläge: einfache Beschläge",50]
["344-612: Beschläge: Schwingflügelbeschläge, Falttürbeschläge, Schiebebeschläge, Drehkippbeschläge, Hebedrehkippbeschläge  [ND: 30]",344,612,"Beschläge: Schwingflügelbeschläge, Falttürbeschläge, Schiebebeschläge, Drehkippbeschläge, Hebedrehkippbeschläge",30]
["344-613: Türschließer, Türschlösser, Fensterschlösser  [ND: 30]",344,613,"Türschließer, Türschlösser, Fensterschlösser",30]
["344-614: Panikverschlüsse  [ND: 25]",344,614,"Panikverschlüsse",25]
["344-615: Türantriebe  [ND: 15]",344,615,"Türantriebe",15]
["344-616: Türanschlagdämpfer  [ND: 20]",344,616,"Türanschlagdämpfer",20]
["344-617: Fenster und Türverglasung: Einfachverglasung  [ND: 50]",344,617,"Fenster und Türverglasung: Einfachverglasung",50]
["344-618: Fenster und Türverglasung: angriffhemmendes Isolierglas, Sicherheits-Isolierglas, Brandschutz-Isolierglas, Schallschutz-Isolierglas  [ND: 40]",344,618,"Fenster und Türverglasung: angriffhemmendes Isolierglas, Sicherheits-Isolierglas, Brandschutz-Isolierglas, Schallschutz-Isolierglas",40]
["344-621: Dichtungsprofile  [ND: 30]",344,621,"Dichtungsprofile",30]
["344-622: Dichtungsstoffe  [ND: 20]",344,622,"Dichtungsstoffe",20]
["345-111: Innenanstriche: Dispersionsfarbe, Dispersions-Silikatfarbe, Silikatfarbe, Silikonharzfarbe, Polymerisatharzfarben, Weißzementfarbe, Kaseinfarbe, Kalkfarbe, Leimfarbe  [ND: 15]",345,111,"Innenanstriche: Dispersionsfarbe, Dispersions-Silikatfarbe, Silikatfarbe, Silikonharzfarbe, Polymerisatharzfarben, Weißzementfarbe, Kaseinfarbe, Kalkfarbe, Leimfarbe",15]
["345-112: Innenanstriche: Latexfarbe  [ND: 10]",345,112,"Innenanstriche: Latexfarbe",10]
["345-113: Innenanstriche: Lasur  [ND: 18]",345,113,"Innenanstriche: Lasur",18]
["345-211: Standard-Innenputze: Gipsputz, Anhydritputz, Kalkputz, Kalkgipsputz, Kalkzementputz, Kunstharzputz, Lehmputz  [ND: 50]",345,211,"Standard-Innenputze: Gipsputz, Anhydritputz, Kalkputz, Kalkgipsputz, Kalkzementputz, Kunstharzputz, Lehmputz",50]
[{"$f":"IF(AND(ISNUMBER(B131),ISNUMBER(E131)),CONCATENATE(B131,\"-\",C131,\": \",D131,\"  [ND: \",E131,\"]\"),\"\")","v":"345-212: mineralische Deckputze: Zementputz, Trasskalkputz, Trasszementputz  [ND: 50]"},345,212,"mineralische Deckputze: Zementputz, Trasskalkputz, Trasszementputz",50]
["345-213: Spezialputze: Sanierputz/-System  [ND: 15]",345,213,"Spezialputze: Sanierputz/-System",15]
["345-214: Spezialputze: Akustikputz, Strahlenschutzputz  [ND: 50]",345,214,"Spezialputze: Akustikputz, Strahlenschutzputz",50]
["345-221: Putzprofile: Kunststoff, Stahl, Glasfaser  [ND: 50]",345,221,"Putzprofile: Kunststoff, Stahl, Glasfaser",50]
["345-222: Putzträger: Stahldrahtnetz, Rippenstreckmetall, Kunststoffgewebe  [ND: 50]",345,222,"Putzträger: Stahldrahtnetz, Rippenstreckmetall, Kunststoffgewebe",50]
["345-311: Bekleidungen: Holz, Holzwerkstoffe und Mehrschichtleichtbauplatten, Aluminium, Stahl, Kupfer, Zink  [ND: 50]",345,311,"Bekleidungen: Holz, Holzwerkstoffe und Mehrschichtleichtbauplatten, Aluminium, Stahl, Kupfer, Zink",50]
["345-312: Bekleidungen: Naturstein, Kunststein, keramische Fliesen und Platten, Feinsteinzeug  [ND: 40]",345,312,"Bekleidungen: Naturstein, Kunststein, keramische Fliesen und Platten, Feinsteinzeug",40]
["345-313: Bekleidungen (Systeme): Gipskartonplatten, Gipskartonverbundplatten  [ND: 50]",345,313,"Bekleidungen (Systeme): Gipskartonplatten, Gipskartonverbundplatten",50]
["345-314: Bekleidungen: Kunststoff (PVC, PE. PP)  [ND: 40]",345,314,"Bekleidungen: Kunststoff (PVC, PE. PP)",40]
["345-315: Bekleidungen: Sonderkonstruktionen aus Glas  [ND: 50]",345,315,"Bekleidungen: Sonderkonstruktionen aus Glas",50]
["345-316: Spezial-Bekleidungen: Brandschutz, Schallschutz, feuerressistente Bekleidungen  [ND: 50]",345,316,"Spezial-Bekleidungen: Brandschutz, Schallschutz, feuerressistente Bekleidungen",50]
["345-411: Tapeten: Papier, Kunststoff, Tapeten nicht überstreichbar, Tapeten überstreichbar  [ND: 10]",345,411,"Tapeten: Papier, Kunststoff, Tapeten nicht überstreichbar, Tapeten überstreichbar",10]
["345-412: Tapeten: Textil, Webstoff  [ND: 15]",345,412,"Tapeten: Textil, Webstoff",15]
["346-111: Sanitärtrennwände: Toilettentrennwände, Urinaltrennwände  [ND: 30]",346,111,"Sanitärtrennwände: Toilettentrennwände, Urinaltrennwände",30]
["346-112: Sanitärtrennwände: Duschtrennwände  [ND: 25]",346,112,"Sanitärtrennwände: Duschtrennwände",25]
["346-211: Umkleidekabinen  [ND: 30]",346,211,"Umkleidekabinen",30]
["349-111: Treppengeländer: Handläufe aus Aluminium, Laubholz, Stahl  [ND: 50]",349,111,"Treppengeländer: Handläufe aus Aluminium, Laubholz, Stahl",50]
["349-112: Treppengeländer: Handläufe aus Kunststoff, Nadelholz  [ND: 30]",349,112,"Treppengeländer: Handläufe aus Kunststoff, Nadelholz",30]
["351-111: Betondecken: Vollbetondecke, STB-Hohlraumdecke, Porenbetondecke  [ND: 50]",351,111,"Betondecken: Vollbetondecke, STB-Hohlraumdecke, Porenbetondecke",50]
["351-211: Fertigteildecken: Gitterträgerdecke, Rippendecke  [ND: 50]",351,211,"Fertigteildecken: Gitterträgerdecke, Rippendecke",50]
["351-311: Metalldecken: Stahlverbunddecke, Stahlträgerdecke  [ND: 50]",351,311,"Metalldecken: Stahlverbunddecke, Stahlträgerdecke",50]
["351-411: Holzdecken: Massivholzdecke, Holzbalkendecke, Holz-Fertigteilelemente, Holz-Beton-Verbunddecke  [ND: 50]",351,411,"Holzdecken: Massivholzdecke, Holzbalkendecke, Holz-Fertigteilelemente, Holz-Beton-Verbunddecke",50]
["351-511: Treppe: Tragkonstruktion aus Stahlbeton, Stahl, Holz, Aluminium  [ND: 50]",351,511,"Treppe: Tragkonstruktion aus Stahlbeton, Stahl, Holz, Aluminium",50]
["352-111: Fließestriche: Zementestrich, Gussasphaltestrich, Anhydritestrich, Magnesiaestrich  [ND: 50]",352,111,"Fließestriche: Zementestrich, Gussasphaltestrich, Anhydritestrich, Magnesiaestrich",50]
["352-112: Trockenestriche (Systeme): Holzwerkstoffplatten, Gipsfaserplatten, Gipskartonplatten  [ND: 50]",352,112,"Trockenestriche (Systeme): Holzwerkstoffplatten, Gipsfaserplatten, Gipskartonplatten",50]
["352-113: Estrische als Verschleißboden  [ND: 50]",352,113,"Estrische als Verschleißboden",50]
["352-121: Trittschalldämmung  [ND: 50]",352,121,"Trittschalldämmung",50]
["352-211: Natursteinbeläge  [ND: 50]",352,211,"Natursteinbeläge",50]
["352-311: Kunststeinbeläge  [ND: 50]",352,311,"Kunststeinbeläge",50]
["352-411: keramische Fliesen und Platten: Feinsteinzeug, keramische Spaltplatten, Glasmosaik  [ND: 50]",352,411,"keramische Fliesen und Platten: Feinsteinzeug, keramische Spaltplatten, Glasmosaik",50]
["352-412: keramische Fliesen und Platten: Steinzeug  [ND: 40]",352,412,"keramische Fliesen und Platten: Steinzeug",40]
["352-413: keramische Fliesen und Platten: Steingut  [ND: 20]",352,413,"keramische Fliesen und Platten: Steingut",20]
["352-511: Gussböden: Kunstharz  [ND: 30]",352,511,"Gussböden: Kunstharz",30]
["352-512: Gussböden: Terrazzo  [ND: 50]",352,512,"Gussböden: Terrazzo",50]
["352-611: textile Beläge: Baumwolle, Wolle, Synthetikfaser, Sisal, Naturfasergemisch, Jute, Kokos  [ND: 10]",352,611,"textile Beläge: Baumwolle, Wolle, Synthetikfaser, Sisal, Naturfasergemisch, Jute, Kokos",10]
["352-711: Linoleum, Laminat, PVC, Kunststoff-Parkett, Kork, Kautschuk, Sporthallenbeläge  [ND: 20]",352,711,"Linoleum, Laminat, PVC, Kunststoff-Parkett, Kork, Kautschuk, Sporthallenbeläge",20]
["352-811: Vollholzparkett, Holzdielen, Holzpflaster  [ND: 50]",352,811,"Vollholzparkett, Holzdielen, Holzpflaster",50]
["352-812: Holz-Mehrschichtparkett  [ND: 40]",352,812,"Holz-Mehrschichtparkett",40]
["352-813: Holzschutzanstriche für Bodenbeläge: Holzlacke  [ND: 8]",352,813,"Holzschutzanstriche für Bodenbeläge: Holzlacke",8]
["352-814: Holzschutzanstriche für Bodenbeläge: Holzversiegelungen  [ND: 10]",352,814,"Holzschutzanstriche für Bodenbeläge: Holzversiegelungen",10]
["352-815: Holzschutzanstriche für Bodenbeläge: Holzimprägnierungen, Holzöle/-wachse  [ND: 5]",352,815,"Holzschutzanstriche für Bodenbeläge: Holzimprägnierungen, Holzöle/-wachse",5]
["352-911: Doppelböden und Hohlraumböden  [ND: 50]",352,911,"Doppelböden und Hohlraumböden",50]
["352-912: Doppelbodenstützen und Hohlraumbodenstützen: Stahl  [ND: 50]",352,912,"Doppelbodenstützen und Hohlraumbodenstützen: Stahl",50]
["352-921: Schwingböden: Holz, Kunststoff  [ND: 45]",352,921,"Schwingböden: Holz, Kunststoff",45]
["352-931: Sockelleisten: Naturstein, Kunststein, Klinker, Keramik, Holz  [ND: 50]",352,931,"Sockelleisten: Naturstein, Kunststein, Klinker, Keramik, Holz",50]
["352-941: Schmutzfangbeläge: Synthetikfaser, Kunststoff, Baumwolle, Sisal, Jute, Kokos  [ND: 8]",352,941,"Schmutzfangbeläge: Synthetikfaser, Kunststoff, Baumwolle, Sisal, Jute, Kokos",8]
["352-951: Oberflächenbehandlung: Versiegelung  [ND: 12]",352,951,"Oberflächenbehandlung: Versiegelung",12]
["352-952: Oberflächenbehandlung: Beschichtung auf Kunststoffbasis  [ND: 10]",352,952,"Oberflächenbehandlung: Beschichtung auf Kunststoffbasis",10]
["352-953: Oberflächenbehandlung: Beschichtung auf Wachsoder Ölbasis  [ND: 8]",352,953,"Oberflächenbehandlung: Beschichtung auf Wachsoder Ölbasis",8]
["353-111: Gipskartonbekleidungen  [ND: 50]",353,111,"Gipskartonbekleidungen",50]
["353-211: Metallbekeidungen: Aluminium, Stahl, Kupfer, Zink  [ND: 50]",353,211,"Metallbekeidungen: Aluminium, Stahl, Kupfer, Zink",50]
["353-311: Holzbekleidungen: Holz, Holzwerkstoffe und Mehrschichtleichtbauplatten  [ND: 50]",353,311,"Holzbekleidungen: Holz, Holzwerkstoffe und Mehrschichtleichtbauplatten",50]
["353-411: Sonderkonstruktionen inkl. Befestigung: Mineralfaserplatten, Kunststoffplatten, Glasplatten  [ND: 50]",353,411,"Sonderkonstruktionen inkl. Befestigung: Mineralfaserplatten, Kunststoffplatten, Glasplatten",50]
["353-412: Sonderkonstruktionen inkl. Befestigung: Brandschutz-Unterdecken  [ND: 40]",353,412,"Sonderkonstruktionen inkl. Befestigung: Brandschutz-Unterdecken",40]
["353-413: Sonderkonstruktionen inkl. Befestigung: Akustikdecken, Akustikelemente, Akustikschaum, Schallabsorber  [ND: 40]",353,413,"Sonderkonstruktionen inkl. Befestigung: Akustikdecken, Akustikelemente, Akustikschaum, Schallabsorber",40]
["353-414: Sonderkonstruktionen inkl. Befestigung: Lichtdecken  [ND: 25]",353,414,"Sonderkonstruktionen inkl. Befestigung: Lichtdecken",25]
["353-511: Tapeten: überstreichbar  [ND: 10]",353,511,"Tapeten: überstreichbar",10]
["353-512: Tapeten: Kunststoff, Texil, Webstoff, Papier nicht überstreichbar  [ND: 5]",353,512,"Tapeten: Kunststoff, Texil, Webstoff, Papier nicht überstreichbar",5]
["353-611: Unterkonstruktionen: Trockenbauprofile (Stahl, Holz)  [ND: 50]",353,611,"Unterkonstruktionen: Trockenbauprofile (Stahl, Holz)",50]
["359-111: Geländer, Gitter, Roste, Leitern: Stahl, Aluminium, Holz, Holzwerkstoff, Gusseisen  [ND: 50]",359,111,"Geländer, Gitter, Roste, Leitern: Stahl, Aluminium, Holz, Holzwerkstoff, Gusseisen",50]
["359-112: Gitter und Roste: Kunststoff  [ND: 40]",359,112,"Gitter und Roste: Kunststoff",40]
["361-111: Tragkonstruktion: Schrägdach  [ND: 50]",361,111,"Tragkonstruktion: Schrägdach",50]
["361-211: Tragkonstruktion: Flachdach  [ND: 50]",361,211,"Tragkonstruktion: Flachdach",50]
["362-111: Dachflächenfenster (Rahmen): Aluminium, Kunststoff, Aluminium-Holz-Komposit  [ND: 50]",362,111,"Dachflächenfenster (Rahmen): Aluminium, Kunststoff, Aluminium-Holz-Komposit",50]
[{"$f":"IF(AND(ISNUMBER(B195),ISNUMBER(E195)),CONCATENATE(B195,\"-\",C195,\": \",D195,\"  [ND: \",E195,\"]\"),\"\")","v":"362-112: Dachflächenfenster (Rahmen): Aluminium-Kunststoff-Komposit  [ND: 35]"},362,112,"Dachflächenfenster (Rahmen): Aluminium-Kunststoff-Komposit",35]
["362-113: Dachflächenfenster (Rahmen): Laubholz, behandelt  [ND: 40]",362,113,"Dachflächenfenster (Rahmen): Laubholz, behandelt",40]
["362-114: Dachflächenfenster (Rahmen): Nadelholz, behandelt  [ND: 25]",362,114,"Dachflächenfenster (Rahmen): Nadelholz, behandelt",25]
["362-211: Lichtkuppeln  [ND: 25]",362,211,"Lichtkuppeln",25]
["362-221: Lichtbänder  [ND: 20]",362,221,"Lichtbänder",20]
["362-311: Dachausstiege und Luken: Stahl feuerverzinkt (stückverzinkt)  [ND: 40]",362,311,"Dachausstiege und Luken: Stahl feuerverzinkt (stückverzinkt)",40]
["362-312: Dachausstiege und Luken: Kunststoff  [ND: 30]",362,312,"Dachausstiege und Luken: Kunststoff",30]
["362-411: Antriebe für Öffnungen: Handantrieb  [ND: 35]",362,411,"Antriebe für Öffnungen: Handantrieb",35]
["362-412: Antriebe für Öffnungen: elektrischer Antrieb  [ND: 25]",362,412,"Antriebe für Öffnungen: elektrischer Antrieb",25]
["362-413: Antriebe für Öffnungen: pneumatischer Antrieb  [ND: 20]",362,413,"Antriebe für Öffnungen: pneumatischer Antrieb",20]
["363-111: Abdichtungsbahnen: Elastomerbahnen, Kunststoffbahnen unterhalb der Dämmung   [ND: 40]",363,111,"Abdichtungsbahnen: Elastomerbahnen, Kunststoffbahnen unterhalb der Dämmung ",40]
["363-112: Abdichtungsbahnen: Bitumenbahnen unterhalb der Dämmung   [ND: 30]",363,112,"Abdichtungsbahnen: Bitumenbahnen unterhalb der Dämmung ",30]
["363-113: Abdichtungsbahnen: Bitumenbahnen, Elastomerbahnen, Kunststoffbahnen oberhalb Dämmung mit schwerer Schutzschicht   [ND: 30]",363,113,"Abdichtungsbahnen: Bitumenbahnen, Elastomerbahnen, Kunststoffbahnen oberhalb Dämmung mit schwerer Schutzschicht ",30]
["363-114: Abdichtungsbahnen: Bitumenbahnen, Elastomerbahnen, Kunststoffbahnen oberhalb Dämmung mit leichter Schutzschicht   [ND: 20]",363,114,"Abdichtungsbahnen: Bitumenbahnen, Elastomerbahnen, Kunststoffbahnen oberhalb Dämmung mit leichter Schutzschicht ",20]
["363-211: Abdichtmassen: Asphaltmastix, Flüssigabdichtung, Gussasphalt unterhalb der Dämmung   [ND: 40]",363,211,"Abdichtmassen: Asphaltmastix, Flüssigabdichtung, Gussasphalt unterhalb der Dämmung ",40]
["363-212: Abdichtmassen: Asphaltmastix, Flüssigabdichtung, Gussasphalt oberhalb Dämmung mit schwerer Schutzschicht   [ND: 30]",363,212,"Abdichtmassen: Asphaltmastix, Flüssigabdichtung, Gussasphalt oberhalb Dämmung mit schwerer Schutzschicht ",30]
["363-213: Abdichtmassen: Asphaltmastix, Flüssigabdichtung, Gussasphalt oberhalb Dämmung mit leichter Schutzschicht   [ND: 20]",363,213,"Abdichtmassen: Asphaltmastix, Flüssigabdichtung, Gussasphalt oberhalb Dämmung mit leichter Schutzschicht ",20]
["363-214: Abdichtmassen: Flüssigabdichtung oberhalb Dämmung ohne Schutzschicht   [ND: 20]",363,214,"Abdichtmassen: Flüssigabdichtung oberhalb Dämmung ohne Schutzschicht ",20]
["363-311: Schwere Schutzschicht: Extensive Begrünung   [ND: 40]",363,311,"Schwere Schutzschicht: Extensive Begrünung ",40]
["363-312: Schwere Schutzschicht: Bekiesung, Verlegeplatten, Intensive Begrünung   [ND: 30]",363,312,"Schwere Schutzschicht: Bekiesung, Verlegeplatten, Intensive Begrünung ",30]
["363-313: Leichte Schutzschicht: Besplitterung vor Ort, werkseitige Bestreuung   [ND: 15]",363,313,"Leichte Schutzschicht: Besplitterung vor Ort, werkseitige Bestreuung ",15]
["363-411: Beschichtungen: Metallanstrich   [ND: 12]",363,411,"Beschichtungen: Metallanstrich ",12]
["363-511: Deckungen: Schiefer  [ND: 50]",363,511,"Deckungen: Schiefer",50]
["363-512: Deckungen: Ziegel  [ND: 50]",363,512,"Deckungen: Ziegel",50]
["363-513: Deckungen: Beton  [ND: 50]",363,513,"Deckungen: Beton",50]
["363-514: Deckungen: Zink, Kupferblech, Stahl nicht rostend  [ND: 50]",363,514,"Deckungen: Zink, Kupferblech, Stahl nicht rostend",50]
["363-515: Deckungen: Holzschindeln  [ND: 50]",363,515,"Deckungen: Holzschindeln",50]
["363-516: Deckungen: Stahl galvanisch verzinkt und beschichtet  [ND: 45]",363,516,"Deckungen: Stahl galvanisch verzinkt und beschichtet",45]
["363-517: Deckungen: Stahl galvanisch verzinkt, Faserzement-Wellplatten, Aluminium  [ND: 40]",363,517,"Deckungen: Stahl galvanisch verzinkt, Faserzement-Wellplatten, Aluminium",40]
["363-518: Deckungen: Glas   [ND: 30]",363,518,"Deckungen: Glas ",30]
["363-519: Deckungen: Faserzement, Bitumenschindeln, Bitumen-Wellplatten   [ND: 25]",363,519,"Deckungen: Faserzement, Bitumenschindeln, Bitumen-Wellplatten ",25]
["363-521: Metallbanddeckungen: Stahl nicht rostend, Kupfer  [ND: 50]",363,521,"Metallbanddeckungen: Stahl nicht rostend, Kupfer",50]
["363-522: Metallbanddeckungen: Stahlblech galvanisch verzinkt und beschichtet   [ND: 45]",363,522,"Metallbanddeckungen: Stahlblech galvanisch verzinkt und beschichtet ",45]
["363-523: Metallbanddeckungen: Aluminiumblech, galvanisch verzinktes Stahlblech   [ND: 40]",363,523,"Metallbanddeckungen: Aluminiumblech, galvanisch verzinktes Stahlblech ",40]
["363-524: Deckungen: Reet   [ND: 30]",363,524,"Deckungen: Reet ",30]
["363-531: Dämmschicht als Aufund Zwischensparrendämmung: Schaumglasplatten, Steinwollplatten, extrudierte Polystyrolplatten, expandierte Polystyrolplatten, Glaswollplatten, Polyurethanplatten, Faserplatten aus Holz, Hanf, Zellulose  [ND: 40]",363,531,"Dämmschicht als Aufund Zwischensparrendämmung: Schaumglasplatten, Steinwollplatten, extrudierte Polystyrolplatten, expandierte Polystyrolplatten, Glaswollplatten, Polyurethanplatten, Faserplatten aus Holz, Hanf, Zellulose",40]
["363-611: Attikaabdeckungen: Naturstein, Klinker, Fliesen, Keramik, Kunststein, Beton, Betonfertigteil, Kupfer, Stahl nicht rostend, Zink  [ND: 50]",363,611,"Attikaabdeckungen: Naturstein, Klinker, Fliesen, Keramik, Kunststein, Beton, Betonfertigteil, Kupfer, Stahl nicht rostend, Zink",50]
["363-612: Attikaabdeckungen: Aluminium, Faserzement   [ND: 40]",363,612,"Attikaabdeckungen: Aluminium, Faserzement ",40]
["363-613: Attikaabdeckungen: Stahl galvanisch verzinkt   [ND: 30]",363,613,"Attikaabdeckungen: Stahl galvanisch verzinkt ",30]
["363-614: Attikaabdeckungen: Kunststoff   [ND: 20]",363,614,"Attikaabdeckungen: Kunststoff ",20]
["363-711: Entwässerung (Dachrinnen, Regenfallrohre, Dachabläufe): Stahl nicht rostend, Kupfer, Zink, Alu  [ND: 50]",363,711,"Entwässerung (Dachrinnen, Regenfallrohre, Dachabläufe): Stahl nicht rostend, Kupfer, Zink, Alu",50]
["363-712: Entwässerung (Dachrinnen, Regenfallrohre, Dachabläufe): Stahl galvanisch verzinkt und beschichtet   [ND: 40]",363,712,"Entwässerung (Dachrinnen, Regenfallrohre, Dachabläufe): Stahl galvanisch verzinkt und beschichtet ",40]
["363-713: Entwässerung (Dachrinnen, Regenfallrohre, Dachabläufe): Stahl galvanisch verzinkt   [ND: 30]",363,713,"Entwässerung (Dachrinnen, Regenfallrohre, Dachabläufe): Stahl galvanisch verzinkt ",30]
["363-714: Entwässerung (Dachrinnen, Regenfallrohre, Dachabläufe): Kunststoff   [ND: 20]",363,714,"Entwässerung (Dachrinnen, Regenfallrohre, Dachabläufe): Kunststoff ",20]
["364-111: Unterdach: Bitumen-Holzfaserplatten  [ND: 50]",364,111,"Unterdach: Bitumen-Holzfaserplatten",50]
["364-112: Unterdach: Imprägnierte Faserplatten aus Holz, Hanf, Zellulose   [ND: 30]",364,112,"Unterdach: Imprägnierte Faserplatten aus Holz, Hanf, Zellulose ",30]
["364-113: Unterdach: dampfdiffusionsoffene Kunststofffolien   [ND: 30]",364,113,"Unterdach: dampfdiffusionsoffene Kunststofffolien ",30]
["364-211: Zwischen-, Auf- und Untersparrendämmung: Glaswolle, Steinwolle, Holzwolle, Holzwolleleichtbauplatten, Holzfaserdämmplatten, Polystyrol, Polyurethan, Zellulose, Hanf, u.a.  [ND: 40]",364,211,"Zwischen-, Auf- und Untersparrendämmung: Glaswolle, Steinwolle, Holzwolle, Holzwolleleichtbauplatten, Holzfaserdämmplatten, Polystyrol, Polyurethan, Zellulose, Hanf, u.a.",40]
["369-111: Eingangsüberdachung: Stahlbaukonstruktion, Stahl-Glas-Konstruktion, Stahlbetonkonstruktion, Spannbetonkonstruktion, Holzkonstruktion (bekleidet)  [ND: 50]",369,111,"Eingangsüberdachung: Stahlbaukonstruktion, Stahl-Glas-Konstruktion, Stahlbetonkonstruktion, Spannbetonkonstruktion, Holzkonstruktion (bekleidet)",50]
["369-112: Eingangsüberdachung: Holzkonstruktion (unbekleidet), Holz-GlasKonstruktionen, Glaskonstruktion (tragend)   [ND: 40]",369,112,"Eingangsüberdachung: Holzkonstruktion (unbekleidet), Holz-GlasKonstruktionen, Glaskonstruktion (tragend) ",40]
["369-211: Hofüberdachung: Stahl-Glas-Konstruktionen  [ND: 50]",369,211,"Hofüberdachung: Stahl-Glas-Konstruktionen",50]
["369-212: Hofüberdachung: Holz-Glas-Konstruktionen, Seilnetzkonstruktionen   [ND: 40]",369,212,"Hofüberdachung: Holz-Glas-Konstruktionen, Seilnetzkonstruktionen ",40]
["369-213: Hofüberdachung: Textile Konstruktionen   [ND: 8]",369,213,"Hofüberdachung: Textile Konstruktionen ",8]
["369-311: Stahl nicht rostend, Stahl feuerverzinkt (stückverzinkt)  [ND: 50]",369,311,"Stahl nicht rostend, Stahl feuerverzinkt (stückverzinkt)",50]
["369-312: Aluminium, Laubholz behandelt   [ND: 45]",369,312,"Aluminium, Laubholz behandelt ",45]
["369-313: Laubholz unbehandelt, Nadelholz behandelt, Holzwerkstoff beschichtet   [ND: 30]",369,313,"Laubholz unbehandelt, Nadelholz behandelt, Holzwerkstoff beschichtet ",30]
["369-314: Nadelholz unbehandelt   [ND: 20]",369,314,"Nadelholz unbehandelt ",20]
["369-411: Absturzsicherung, Trittstufen, Laufflächen, Laubund Schneefangvorrichtungen, Blitzschutzanlagen: Stahl feuerverzinkt (stückverzinkt), Stahl nicht rostend  [ND: 50]",369,411,"Absturzsicherung, Trittstufen, Laufflächen, Laubund Schneefangvorrichtungen, Blitzschutzanlagen: Stahl feuerverzinkt (stückverzinkt), Stahl nicht rostend",50]
["369-412: Dachbeund Dachentlüftung Stahl galvanisch verzinkt   [ND: 25]",369,412,"Dachbeund Dachentlüftung Stahl galvanisch verzinkt ",25]
["369-413: Entlüftungsrohre Kunststoff   [ND: 25]",369,413,"Entlüftungsrohre Kunststoff ",25]
["371-111: Möblierungssysteme: Büros, Laboratorien   [ND: 30]",371,111,"Möblierungssysteme: Büros, Laboratorien ",30]
["371-112: Möblierungssysteme: Bildschirmarbeitsplätze, Konferenzräume   [ND: 10]",371,112,"Möblierungssysteme: Bildschirmarbeitsplätze, Konferenzräume ",10]
["371-113: Möblierungssysteme: Bibliotheken, Schutzräume   [ND: 40]",371,113,"Möblierungssysteme: Bibliotheken, Schutzräume ",40]
["371-114: Möblierungssysteme: Kantinen, Rechenzentren   [ND: 15]",371,114,"Möblierungssysteme: Kantinen, Rechenzentren ",15]
[{"$f":"IF(AND(ISNUMBER(B259),ISNUMBER(E259)),CONCATENATE(B259,\"-\",C259,\": \",D259,\"  [ND: \",E259,\"]\"),\"\")","v":"371-115: Möblierungssysteme: Schulungsräume, Schulen   [ND: 20]"},371,115,"Möblierungssysteme: Schulungsräume, Schulen ",20]
["371-116: Möblierungssysteme: Kontrollräume, Leitstellen   [ND: 25]",371,116,"Möblierungssysteme: Kontrollräume, Leitstellen ",25]
["371-121: Regale: Stahl, Aluminium, Holzwerkstoff, Kunststoff   [ND: 40]",371,121,"Regale: Stahl, Aluminium, Holzwerkstoff, Kunststoff ",40]
["371-122: Schrankmöbel: Stahl, Stahl nicht rostend, Aluminium, Holzwerkstoff, Kunststoff, Holz   [ND: 30]",371,122,"Schrankmöbel: Stahl, Stahl nicht rostend, Aluminium, Holzwerkstoff, Kunststoff, Holz ",30]
["371-311: Garderobeneinrichtungen: Stahl, Stahl nicht rostend, Messing, Holz, Aluminium   [ND: 20]",371,311,"Garderobeneinrichtungen: Stahl, Stahl nicht rostend, Messing, Holz, Aluminium ",20]
["371-312: Garderobeneinrichtungen: Kunststoff   [ND: 15]",371,312,"Garderobeneinrichtungen: Kunststoff ",15]
[{"$f":"IF(AND(ISNUMBER(B265),ISNUMBER(E265)),CONCATENATE(B265,\"-\",C265,\": \",D265,\"  [ND: \",E265,\"]\"),\"\")","v":"410-001: Gas-, Wasser- und Abwasseranlagen gesamt (AMEV)  [ND: 50]"},410,"001","Gas-, Wasser- und Abwasseranlagen gesamt (AMEV)",50]
["420-001: Wärmeversorgungsanlagen gesamt (AMEV)  [ND: 25]",420,"001","Wärmeversorgungsanlagen gesamt (AMEV)",25]
["421-001: Wärmeerzeugungsanlagen gesamt inkl TW (Anlage 3)  [ND: 25]",421,"001","Wärmeerzeugungsanlagen gesamt inkl TW (Anlage 3)",25]
["422-111: Wärmeverteilnetze Heizung gesamt (Anlage3)  [ND: 50]",422,"111","Wärmeverteilnetze Heizung gesamt (Anlage3)",50]
["422-112: Wärmeverteilnetze TW gesamt (Anlage3)  [ND: 25]",422,"112","Wärmeverteilnetze TW gesamt (Anlage3)",25]
["423-111: Raumheizflächen/ Nutzenübergabe Heizung gesamt (Anlage 3)  [ND: 25]",423,"111","Raumheizflächen/ Nutzenübergabe Heizung gesamt (Anlage 3)",25]
["423-112: Raumheizflächen/ Nutzenübergabe TW gesamt (Anlage 3)  [ND: 15]",423,"112","Raumheizflächen/ Nutzenübergabe TW gesamt (Anlage 3)",15]
["429-111: Wasseraufbereitungsanlagen  [ND: 15]",429,"111","Wasseraufbereitungsanlagen",15]
["430-001: Lufttechnische Anlagen gesamt (Anlage 3/ AMEV)  [ND: 25]",430,"001","Lufttechnische Anlagen gesamt (Anlage 3/ AMEV)",25]
["430-111: Nutzenübergabe allgemein (Anlage 3)  [ND: 25]",430,"111","Nutzenübergabe allgemein (Anlage 3)",25]
["430-112: Wärmerückgewinnung (Anlage 3)  [ND: 25]",430,"112","Wärmerückgewinnung (Anlage 3)",25]
[{"$f":"IF(AND(ISNUMBER(B276),ISNUMBER(E276)),CONCATENATE(B276,\"-\",C276,\": \",D276,\"  [ND: \",E276,\"]\"),\"\")","v":"430-113: Luftkühler (Anlage 3)  [ND: 25]"},430,"113","Luftkühler (Anlage 3)",25]
["430-114: Kühldecken (Anlage 3)  [ND: 25]",430,"114","Kühldecken (Anlage 3)",25]
["430-115: Be-/ Entfeuchter (Anlage 3)  [ND: 15]",430,"115","Be-/ Entfeuchter (Anlage 3)",15]
["430-116: Verteilung (Anlage 3)  [ND: 25]",430,"116","Verteilung (Anlage 3)",25]
["430-117: Erzeugung Kälte (Anlage 3)  [ND: 15]",430,"117","Erzeugung Kälte (Anlage 3)",15]
["430-118: Erzeugung Wärme (Anlage 3)  [ND: 25]",430,"118","Erzeugung Wärme (Anlage 3)",25]
["440-001: Starkstromanlagen gesamt (Anlage 3/ AMEV)  [ND: 25]",440,"001","Starkstromanlagen gesamt (Anlage 3/ AMEV)",25]
["450-001: Fernmeldetechnische Anlagen gesamt (Anlage 3/ AMEV)  [ND: 25]",450,"001","Fernmeldetechnische Anlagen gesamt (Anlage 3/ AMEV)",25]
["460-001: Aufzüge gesamt (Anlage 3/ AMEV)  [ND: 25]",460,"001","Aufzüge gesamt (Anlage 3/ AMEV)",25]
["470-111: Abfallentsorgungsanlagen (Anlage 3/ AMEV)  [ND: 25]",470,"111","Abfallentsorgungsanlagen (Anlage 3/ AMEV)",25]
[{"$f":"IF(AND(ISNUMBER(B286),ISNUMBER(E286)),CONCATENATE(B286,\"-\",C286,\": \",D286,\"  [ND: \",E286,\"]\"),\"\")","v":"480-001: Gebäudeautomation (FAQ)  [ND: 15]"},480,"001","Gebäudeautomation (FAQ)",15]
["490-001: Sonstige Maßnahmen für Technische Anlagen (FAQ)  [ND: 25]",490,"001","Sonstige Maßnahmen für Technische Anlagen (FAQ)",25]

{"sheet":"KT_DIN276","index":11,"n_rows":186,"n_cols":3,"rows_kept":186,"cut":false,"hidden":true,"merged":[]}
[{"$f":"CONCATENATE(B1,\": \",C1)","v":"300: Bauwerk - Baukonstruktionen"},300,"Bauwerk - Baukonstruktionen"]
["310: Baugrube",310,"Baugrube"]
["311: Baugrubenherstellung",311,"Baugrubenherstellung"]
["312: Baugrubenumschließung",312,"Baugrubenumschließung"]
["313: Wasserhaltung",313,"Wasserhaltung"]
["319: Baugrube, Sonstiges",319,"Baugrube, Sonstiges"]
["320: Gründung",320,"Gründung"]
["321: Baugrundverbesserung",321,"Baugrundverbesserung"]
["322: Flachgründungen",322,"Flachgründungen"]
["323: Tiefgründungen",323,"Tiefgründungen"]
["324: Unterböden und Bodenplatten",324,"Unterböden und Bodenplatten"]
["325: Bodenbeläge",325,"Bodenbeläge"]
["326: Bauwerksabdichtungen",326,"Bauwerksabdichtungen"]
["327: Dränagen",327,"Dränagen"]
["329: Gründungen, Sonstiges",329,"Gründungen, Sonstiges"]
["330: Außenwände",330,"Außenwände"]
["331: Tragende Außenwände",331,"Tragende Außenwände"]
["332: Nichttragende Außenwände",332,"Nichttragende Außenwände"]
["333: Außenstützen",333,"Außenstützen"]
["334: Außentüren und -fenster",334,"Außentüren und -fenster"]
["335: Außenwandbekleidungen, außen",335,"Außenwandbekleidungen, außen"]
["336: Außenwandbekleidungen, innen",336,"Außenwandbekleidungen, innen"]
["337: Elementierte Außenwände",337,"Elementierte Außenwände"]
["338: Sonnenschutz",338,"Sonnenschutz"]
["339: Außenwände, Sonstiges",339,"Außenwände, Sonstiges"]
["340: Innenwände",340,"Innenwände"]
["341: Tragende Innenwände",341,"Tragende Innenwände"]
["342: Nichttragende Innenwände",342,"Nichttragende Innenwände"]
["343: Innenstützen",343,"Innenstützen"]
["344: Innentüren und -fenster",344,"Innentüren und -fenster"]
["345: Innenwandbekleidungen",345,"Innenwandbekleidungen"]
["346: Elementierte Innenwände",346,"Elementierte Innenwände"]
[{"$f":"CONCATENATE(B33,\": \",C33)","v":"349: Innenwände, Sonstiges"},349,"Innenwände, Sonstiges"]
["350: Decken",350,"Decken"]
["351: Deckenkonstruktionen",351,"Deckenkonstruktionen"]
["352: Deckenbeläge",352,"Deckenbeläge"]
["353: Deckenbekleidungen",353,"Deckenbekleidungen"]
["359: Decken, Sonstiges",359,"Decken, Sonstiges"]
["360: Dächer",360,"Dächer"]
["361: Dachkonstruktionen",361,"Dachkonstruktionen"]
["362: Dachfenster, Dachöffnungen",362,"Dachfenster, Dachöffnungen"]
["363: Dachbeläge",363,"Dachbeläge"]
["364: Dachbekleidungen",364,"Dachbekleidungen"]
["369: Dächer, Sonstiges",369,"Dächer, Sonstiges"]
["370: Baukonstruktive Einbauten",370,"Baukonstruktive Einbauten"]
["371: Allgemeine Einbauten",371,"Allgemeine Einbauten"]
["372: Besondere Einbauten",372,"Besondere Einbauten"]
["379: Baukonstruktive Einbauten, Sonstiges",379,"Baukonstruktive Einbauten, Sonstiges"]
["390: Sonstige Maßnahmen für Baukonstruktionen",390,"Sonstige Maßnahmen für Baukonstruktionen"]
["391: Baustelleneinrichtung",391,"Baustelleneinrichtung"]
["392: Gerüste",392,"Gerüste"]
["393: Sicherungsmaßnahmen",393,"Sicherungsmaßnahmen"]
["394: Abbruchmaßnahmen",394,"Abbruchmaßnahmen"]
["395: Instandsetzungen",395,"Instandsetzungen"]
["396: Materialentsorgung",396,"Materialentsorgung"]
["397: Zusätzliche Maßnahmen",397,"Zusätzliche Maßnahmen"]
["398: Provisorische Baukonstruktionen",398,"Provisorische Baukonstruktionen"]
["399: Sonstige Maßnahmen für Baukonstruktionen, Sonstiges",399,"Sonstige Maßnahmen für Baukonstruktionen, Sonstiges"]
["400: Bauwerk - Technische Anlagen",400,"Bauwerk - Technische Anlagen"]
["410: Abwasser-, Wasser-, Gasanlagen",410,"Abwasser-, Wasser-, Gasanlagen"]
["411: Abwasseranlagen",411,"Abwasseranlagen"]
["412: Wasseranlagen",412,"Wasseranlagen"]
["413: Gasanlagen",413,"Gasanlagen"]
["419: Abwasser-, Wasser-, Gasanlagen, Sonstiges",419,"Abwasser-, Wasser-, Gasanlagen, Sonstiges"]
[{"$f":"CONCATENATE(B65,\": \",C65)","v":"420: Wärmeversorgungsanlagen"},420,"Wärmeversorgungsanlagen"]
["421: Wärmeerzeugungsanlagen",421,"Wärmeerzeugungsanlagen"]
["422: Wärmeverteilnetze",422,"Wärmeverteilnetze"]
["423: Raumheizflächen",423,"Raumheizflächen"]
["429: Wärmeversorgungsanlagen, Sonstiges",429,"Wärmeversorgungsanlagen, Sonstiges"]
["430: Lufttechnische Anlagen",430,"Lufttechnische Anlagen"]
["431: Lüftungsanlagen",431,"Lüftungsanlagen"]
["432: Teilklimaanlagen",432,"Teilklimaanlagen"]
["433: Klimaanlagen",433,"Klimaanlagen"]
["434: Kälteanlagen",434,"Kälteanlagen"]
["439: Lufttechnische Anlagen, Sonstiges",439,"Lufttechnische Anlagen, Sonstiges"]
["440: Starkstromanlagen",440,"Starkstromanlagen"]
["441: Hoch- und Mittelspannungsanlagen",441,"Hoch- und Mittelspannungsanlagen"]
["442: Eigenstromversorgungsanlagen",442,"Eigenstromversorgungsanlagen"]
["443: Niederspannungsschaltanlagen",443,"Niederspannungsschaltanlagen"]
["444: Niederspannungsinstallationsanlagen",444,"Niederspannungsinstallationsanlagen"]
["445: Beleuchtungsanlagen",445,"Beleuchtungsanlagen"]
["446: Blitzschutz- und Erdungsanlagen",446,"Blitzschutz- und Erdungsanlagen"]
["449: Starkstromanlagen, Sonstiges",449,"Starkstromanlagen, Sonstiges"]
["450: Fernmelde- und informationstechnische Anlagen",450,"Fernmelde- und informationstechnische Anlagen"]
["451: Telekommunikationsanlagen",451,"Telekommunikationsanlagen"]
["452: Such- und Signalanlagen",452,"Such- und Signalanlagen"]
["453: Zeitdienstanlagen",453,"Zeitdienstanlagen"]
["454: Elektroakustische Anlagen",454,"Elektroakustische Anlagen"]
["455: Fernseh- und Antennenanlagen",455,"Fernseh- und Antennenanlagen"]
["456: Gefahrenmelde- und Alarmanlagen",456,"Gefahrenmelde- und Alarmanlagen"]
["457: Übertragungsnetze",457,"Übertragungsnetze"]
["459: Fernmelde- und informationstechnische Anlagen, Sonst.",459,"Fernmelde- und informationstechnische Anlagen, Sonst."]
["460: Förderanlagen",460,"Förderanlagen"]
["461: Aufzugsanlagen",461,"Aufzugsanlagen"]
["462: Fahrtreppen, Fahrsteige",462,"Fahrtreppen, Fahrsteige"]
["463: Befahranlagen",463,"Befahranlagen"]
[{"$f":"CONCATENATE(B97,\": \",C97)","v":"464: Transportanlagen"},464,"Transportanlagen"]
["465: Krananlagen",465,"Krananlagen"]
["469: Förderanlagen, Sonstiges",469,"Förderanlagen, Sonstiges"]
["470: Nutzungsspezifische Anlagen",470,"Nutzungsspezifische Anlagen"]
["471: Küchentechnische Anlagen",471,"Küchentechnische Anlagen"]
["472: Wäscherei- und Reinigungsanlagen",472,"Wäscherei- und Reinigungsanlagen"]
["473: Medienversorgungsanlagen",473,"Medienversorgungsanlagen"]
["474: Medizin- und labortechnische Anlagen",474,"Medizin- und labortechnische Anlagen"]
["475: Feuerlöschanlagen",475,"Feuerlöschanlagen"]
["476: Badetechnische Anlagen",476,"Badetechnische Anlagen"]
["477: Prozesswärme-, kälte-, und luftanlagen",477,"Prozesswärme-, kälte-, und luftanlagen"]
["478: Entsorgungsanlagen",478,"Entsorgungsanlagen"]
["479: Nutzungsspezifische Anlagen, Sonstiges",479,"Nutzungsspezifische Anlagen, Sonstiges"]
["480: Gebäudeautomation",480,"Gebäudeautomation"]
["481: Automationssysteme",481,"Automationssysteme"]
["482: Schaltschränke",482,"Schaltschränke"]
["483: Management- und Bedieneinrichtungen",483,"Management- und Bedieneinrichtungen"]
["484: Raumautomationssysteme",484,"Raumautomationssysteme"]
["485: Übertragungsnetze",485,"Übertragungsnetze"]
["489: Gebäudeautomation, Sonstiges",489,"Gebäudeautomation, Sonstiges"]
["490: Sonstige Maßnahmen für technische Anlagen",490,"Sonstige Maßnahmen für technische Anlagen"]
["491: Baustelleneinrichtung",491,"Baustelleneinrichtung"]
["492: Gerüste",492,"Gerüste"]
["493: Sicherungsmaßnahmen",493,"Sicherungsmaßnahmen"]
["494: Abbruchmaßnahmen",494,"Abbruchmaßnahmen"]
["495: Instandsetzungen",495,"Instandsetzungen"]
["496: Materialentsorgung",496,"Materialentsorgung"]
["497: Zusätzliche Maßnahmen",497,"Zusätzliche Maßnahmen"]
["498: Provisorische technische Anlagen",498,"Provisorische technische Anlagen"]
["499: Sonstige Maßnahmen für technische Anlagen, Sonst.",499,"Sonstige Maßnahmen für technische Anlagen, Sonst."]
["500: Außenanlagen",500,"Außenanlagen"]
["510: Geländeflächen",510,"Geländeflächen"]
[{"$f":"CONCATENATE(B129,\": \",C129)","v":"511: Oberbodenarbeiten"},511,"Oberbodenarbeiten"]
["512: Bodenarbeiten",512,"Bodenarbeiten"]
["519: Geländeflächen, sonstiges",519,"Geländeflächen, sonstiges"]
["520: Befestigte Flächen",520,"Befestigte Flächen"]
["521: Wege",521,"Wege"]
["522: Straßen",522,"Straßen"]
["523: Plätze, Höfe",523,"Plätze, Höfe"]
["524: Stellplätze",524,"Stellplätze"]
["525: Sportplatzflächen",525,"Sportplatzflächen"]
["526: Spielplatzflächen",526,"Spielplatzflächen"]
["527: Gleisanlagen",527,"Gleisanlagen"]
["529: Befestigte Flächen, sonstiges",529,"Befestigte Flächen, sonstiges"]
["530: Baukonstruktionen in Außenanlagen",530,"Baukonstruktionen in Außenanlagen"]
["531: Einfriedungen",531,"Einfriedungen"]
["532: Schutzkonstruktionen",532,"Schutzkonstruktionen"]
["533: Mauern, Wände",533,"Mauern, Wände"]
["534: Rampen, Treppen, Tribünen",534,"Rampen, Treppen, Tribünen"]
["535: Überdachungen",535,"Überdachungen"]
["536: Brücken, Stege",536,"Brücken, Stege"]
["537: Kanal- und Schachtbauanlagen",537,"Kanal- und Schachtbauanlagen"]
["538: Wasserbauliche Anlagen",538,"Wasserbauliche Anlagen"]
["539: Baukonstruktionen in Außenanlagen, sonstiges",539,"Baukonstruktionen in Außenanlagen, sonstiges"]
["540: Technische Anlagen in Außenanlagen",540,"Technische Anlagen in Außenanlagen"]
["541: Abwasseranlagen",541,"Abwasseranlagen"]
["542: Wasseranlagen",542,"Wasseranlagen"]
["543: Gasanlagen",543,"Gasanlagen"]
["544: Wärmeversorgungsanlagen",544,"Wärmeversorgungsanlagen"]
["545: Lufttechnische Anlagen",545,"Lufttechnische Anlagen"]
["546: Starkstromanlagen",546,"Starkstromanlagen"]
["547: Fernmelde- und informationstechnische Anlagen",547,"Fernmelde- und informationstechnische Anlagen"]
["548: Nutzungsspezifische Anlagen",548,"Nutzungsspezifische Anlagen"]
["549: Technische Anlagen in Außenanlagen, sonstiges",549,"Technische Anlagen in Außenanlagen, sonstiges"]
[{"$f":"CONCATENATE(B161,\": \",C161)","v":"550: Einbauten in Außenanlagen"},550,"Einbauten in Außenanlagen"]
["551: Allgemeine Einbauten",551,"Allgemeine Einbauten"]
["552: Besondere Einbauten",552,"Besondere Einbauten"]
["559: Einbauten in Außenanlagen, sonstiges",559,"Einbauten in Außenanlagen, sonstiges"]
["560: Wasserflächen",560,"Wasserflächen"]
["561: Abdichtungen",561,"Abdichtungen"]
["562: Bepflanzungen",562,"Bepflanzungen"]
["569: Wasserflächen, sonstiges",569,"Wasserflächen, sonstiges"]
["570: Pflanz- und Saatflächen",570,"Pflanz- und Saatflächen"]
["571: Oberbodenarbeiten",571,"Oberbodenarbeiten"]
["572: Vegetationstechnische Bodenbearbeitung",572,"Vegetationstechnische Bodenbearbeitung"]
["573: Sicherungsbauweisen",573,"Sicherungsbauweisen"]
["574: Pflanzen",574,"Pflanzen"]
["575: Rasen und Ansaaten",575,"Rasen und Ansaaten"]
["576: Begrünung unterbauter Flächen",576,"Begrünung unterbauter Flächen"]
["579: Pflanz- und Saatflächen, sonstiges",579,"Pflanz- und Saatflächen, sonstiges"]
["590: Sonstige Außenanlagen",590,"Sonstige Außenanlagen"]
["591: Baustelleneinrichtung",591,"Baustelleneinrichtung"]
["592: Gerüste",592,"Gerüste"]
["593: Sicherungsmaßnahmen",593,"Sicherungsmaßnahmen"]
["594: Abbruchmaßnahmen",594,"Abbruchmaßnahmen"]
["595: Instandsetzungen",595,"Instandsetzungen"]
["596: Materialentsorgung",596,"Materialentsorgung"]
["597: Zusätzliche Maßnahmen",597,"Zusätzliche Maßnahmen"]
["598: Provisorische Außenanlagen",598,"Provisorische Außenanlagen"]
["599: Sonstige Maßnahmen für Außenanlagen, sonstiges",599,"Sonstige Maßnahmen für Außenanlagen, sonstiges"]

{"sheet":"KT_regNutzungskosten","index":12,"n_rows":31,"n_cols":8,"rows_kept":31,"cut":false,"hidden":true,"merged":[]}
[null,"Anzeige Auswahlfeld","Anzeige Auswahlfeld","DIN 276","Ebene 2","Bezeichnung Kostengruppe oder Bauteil/Material","Inspektion und Wartung","Instandsetzung"]
[{"$f":"CONCATENATE(D2,\"-\",E2,\": \",F2,\"  [IW: \",B2,\", IN: \",C2,\"]\")","v":"300-000: Baukonstruktion ohne Inspektion+Wartung  [IW: 0, IN: 0]"},{"$f":"G2","v":0},0,300,"000","Baukonstruktion ohne Inspektion+Wartung",0,0]
[{"$f":"CONCATENATE(D3,\"-\",E3,\": \",F3,\"  [IW: \",B3,\", IN: \",C3,\"]\")","v":"326-111: Bauwerksabdichtungen  [IW: 0,001, IN: 0]"},1E-3,0,326,"111","Bauwerksabdichtungen",1E-3,0]
["327-111: Drainagen  [IW: 0,001, IN: 0]",1E-3,0,327,"111","Drainagen",1E-3,0]
["334-111: Außentüren und -fenster  [IW: 0,001, IN: 0]",1E-3,0,334,"111","Außentüren und -fenster",1E-3,0]
["338-111: Sonnenschutz  [IW: 0,001, IN: 0]",1E-3,0,338,"111","Sonnenschutz",1E-3,0]
[{"$f":"CONCATENATE(D7,\"-\",E7,\": \",F7,\"  [IW: \",B7,\", IN: \",C7,\"]\")","v":"344-111: Innentüren und -fenster  [IW: 0,001, IN: 0]"},1E-3,0,344,"111","Innentüren und -fenster",1E-3,0]
["362-111: Dachfenster, Dachöffnungen  [IW: 0,001, IN: 0]",1E-3,0,362,"111","Dachfenster, Dachöffnungen",1E-3,0]
[{"$f":"CONCATENATE(D9,\"-\",E9,\": \",F9,\"  [IW: \",B9,\", IN: \",C9,\"]\")","v":"410-001: Abwasser-, Wasser-, Gasanlagen gesamt (Anlage3/ AMEV)  [IW: 0,007, IN: 0,0055]"},{"$f":"G9","v":7.0000000000000001E-3},{"$f":"H9","v":5.4999999999999997E-3},410,"001","Abwasser-, Wasser-, Gasanlagen gesamt (Anlage3/ AMEV)",7.0000000000000001E-3,5.4999999999999997E-3]
["420-001: Wärmeversorgungsanlagen gesamt (Anlage 3/ AMEV)  [IW: 0,009, IN: 0,005]",8.9999999999999993E-3,5.0000000000000001E-3,420,"001","Wärmeversorgungsanlagen gesamt (Anlage 3/ AMEV)",8.9999999999999993E-3,5.0000000000000001E-3]
["421-001: Wärmeerzeugungsanlagen gesamt inkl TW (Anlage 3)  [IW: 0,01, IN: 0,02]",0.01,0.02,421,"001","Wärmeerzeugungsanlagen gesamt inkl TW (Anlage 3)",0.01,0.02]
[{"$f":"CONCATENATE(D12,\"-\",E12,\": \",F12,\"  [IW: \",B12,\", IN: \",C12,\"]\")","v":"422-111: Wärmeverteilnetze Heizung gesamt (Anlage3)  [IW: 0, IN: 0,01]"},0,0.01,422,"111","Wärmeverteilnetze Heizung gesamt (Anlage3)",0,0.01]
[{"$f":"CONCATENATE(D13,\"-\",E13,\": \",F13,\"  [IW: \",B13,\", IN: \",C13,\"]\")","v":"422-112: Wärmeverteilnetze TW gesamt (Anlage 3)  [IW: 0, IN: 0,02]"},0,0.02,422,"112","Wärmeverteilnetze TW gesamt (Anlage 3)",0,0.02]
["423-111: Raumheizflächen/ Nutzenübergabe Heizung gesamt (Anlage 3)  [IW: 0, IN: 0,01]",0,0.01,423,"111","Raumheizflächen/ Nutzenübergabe Heizung gesamt (Anlage 3)",0,0.01]
["423-112: Nutzenübergabe TW gesamt (Anlage 3)  [IW: 0,01, IN: 0,01]",0.01,0.01,423,"112","Nutzenübergabe TW gesamt (Anlage 3)",0.01,0.01]
["429-111: Wasseraufbereitungsanlagen (Anlage 3)  [IW: 0,01, IN: 0,01]",0.01,0.01,429,"111","Wasseraufbereitungsanlagen (Anlage 3)",0.01,0.01]
["430-001: Lufttechnische Anlagen gesamt (Anlage 3/ AMEV)  [IW: 0,0205, IN: 0,024]",2.0500000000000001E-2,2.4E-2,430,"001","Lufttechnische Anlagen gesamt (Anlage 3/ AMEV)",2.0500000000000001E-2,2.4E-2]
[{"$f":"CONCATENATE(D18,\"-\",E18,\": \",F18,\"  [IW: \",B18,\", IN: \",C18,\"]\")","v":"430-111: Nutzenübergabe allgemein (Anlage 3)  [IW: 0,01, IN: 0,01]"},0.01,0.01,430,"111","Nutzenübergabe allgemein (Anlage 3)",0.01,0.01]
["430-112: Wärmerückgewinnung  [IW: 0,1, IN: 0,02]",0.1,0.02,430,"112","Wärmerückgewinnung",0.1,0.02]
["430-113: Luftkühler (Anlage 3)  [IW: 0,04, IN: 0,02]",0.04,0.02,430,"113","Luftkühler (Anlage 3)",0.04,0.02]
["430-114: Kühldecken (Anlage 3)  [IW: 0,01, IN: 0,01]",0.01,0.01,430,"114","Kühldecken (Anlage 3)",0.01,0.01]
[{"$f":"CONCATENATE(D22,\"-\",E22,\": \",F22,\"  [IW: \",B22,\", IN: \",C22,\"]\")","v":"430-115: Be-/ Entfeuchter (Anlage 3)  [IW: 0,02, IN: 0,03]"},0.02,0.03,430,"115","Be-/ Entfeuchter (Anlage 3)",0.02,0.03]
["430-116: Verteilung (Anlage 3)  [IW: 0, IN: 0,01]",0,0.01,430,"116","Verteilung (Anlage 3)",0,0.01]
["430-117: Erzeugung Kälte (Anlage 3)  [IW: 0,01, IN: 0,02]",0.01,0.02,430,"117","Erzeugung Kälte (Anlage 3)",0.01,0.02]
["430-118: Erzeugung Wärme (Anlage 3)  [IW: 0,01, IN: 0,02]",0.01,0.02,430,"118","Erzeugung Wärme (Anlage 3)",0.01,0.02]
["440-001: Starkstromanlagen gesamt (Anlage 3/ AMEV)  [IW: 0,0125, IN: 0,0065]",1.2500000000000001E-2,6.4999999999999997E-3,440,"001","Starkstromanlagen gesamt (Anlage 3/ AMEV)",1.2500000000000001E-2,6.4999999999999997E-3]
[{"$f":"CONCATENATE(D27,\"-\",E27,\": \",F27,\"  [IW: \",B27,\", IN: \",C27,\"]\")","v":"450-001: Fernmeldetechnische Anlagen gesamt (Anlage 3/ AMEV)  [IW: 0,007, IN: 0,0025]"},7.0000000000000001E-3,2.5000000000000001E-3,450,"001","Fernmeldetechnische Anlagen gesamt (Anlage 3/ AMEV)",7.0000000000000001E-3,2.5000000000000001E-3]
[{"$f":"CONCATENATE(D28,\"-\",E28,\": \",F28,\"  [IW: \",B28,\", IN: \",C28,\"]\")","v":"460-001: Aufzüge gesamt (Anlage 3/ AMEV)  [IW: 0,0205, IN: 0,011]"},2.0500000000000001E-2,1.0999999999999999E-2,460,"001","Aufzüge gesamt (Anlage 3/ AMEV)",2.0500000000000001E-2,1.0999999999999999E-2]
["470-111: Abfallentsorgungsanlagen (Anlage 3/ AMEV)  [IW: 0,016, IN: 0,014]",1.6E-2,1.4E-2,470,"111","Abfallentsorgungsanlagen (Anlage 3/ AMEV)",1.6E-2,1.4E-2]
[{"$f":"CONCATENATE(D30,\"-\",E30,\": \",F30,\"  [IW: \",B30,\", IN: \",C30,\"]\")","v":"480-111: Gebäudeautomation (FAQ)  [IW: 0,01, IN: 0,015]"},0.01,1.4999999999999999E-2,480,"111","Gebäudeautomation (FAQ)",0.01,1.4999999999999999E-2]
["490-111: Sonstige Maßnahmen für Technische Anlagen (FAQ)  [IW: 0,005, IN: 0,005]",5.0000000000000001E-3,5.0000000000000001E-3,490,"111","Sonstige Maßnahmen für Technische Anlagen (FAQ)",5.0000000000000001E-3,5.0000000000000001E-3]

{"sheet":"KT Energieträger","index":13,"n_rows":18,"n_cols":11,"rows_kept":18,"cut":false,"hidden":true,"merged":[[14,9,14,10],[6,9,6,10],[6,6,6,8],[0,9,0,10],[0,6,0,8],[10,9,10,10]]}
["Nr.","Energieträger","Faktor Hs/Hi\nnach DIN 18599","Euro je kWh",null,null,"Heizöl",null,null,"Erdgas"]
[1,"Elektroenergie - Strom-Mix - Arbeit",1,0.17,null,null,"Heizwert",11.9,"kWh/kg",10,"kWh/m³"]
[2,"Elektroenergie - Strom-Mix - Wärme",1,0.11,null,null,"Dichte",0.84,"kg/l"]
[3,"Gas - Erdgas",1.1100000000000001,{"$f":"J6","v":6.2E-2},null,null,"Heizwert",{"$f":"H2*H3","v":9.9960000000000004},"kWh/l"]
[4,"Holz - Pellets",1.08,{"$f":"J10","v":4.0909090909090902E-2},null,null,"Preis",0.85,"€/l",0.62,"€/m³"]
[5,"Fernwärme/ KWK - erneuerbar",1,7.0000000000000007E-2,null,null,"Preis",{"$f":"H5/H4","v":8.5034013605442174E-2},"€/kWh",{"$f":"J5/J2","v":6.2E-2},"€/kWh"]
[6,"Fernwärme/ KWK - fossil",1,0.09,null,null,"Fernwärme",null,null,"Pellets"]
[7,"Öl - Heizöl",1.06,{"$f":"H6","v":8.5034013605442174E-2},null,null,"fossil",0.09,"€/kWh",4.4000000000000004,"kWh/kg"]
[8,"Braunkohle",1.07,{"$f":"J14","v":7.0921985815602842E-2},null,null,"erneuerbar",7.0000000000000007E-2,"€/kWh",0.18,"€/kg"]
[9,"Steinkohle",1.02,{"$f":"J18","v":7.8828828828828815E-2},null,null,null,null,null,{"$f":"J9/J8","v":4.0909090909090902E-2},"€/kWh"]
[null,null,null,null,null,null,null,null,null,"Braunkohle"]
[null,null,null,null,null,null,null,null,null,7.05,"kWh/kg"]
[null,null,null,null,null,null,null,null,null,0.5,"€/kg"]
[null,null,null,null,null,null,null,null,null,{"$f":"J13/J12","v":7.0921985815602842E-2},"€/kWh"]
[null,null,null,null,null,null,null,null,null,"Steinkohle"]
[null,null,null,null,null,null,null,null,null,8.8800000000000008,"kWh/kg"]
[null,null,null,null,null,null,null,null,null,0.7,"€/kg"]
[null,null,null,null,null,null,null,null,null,{"$f":"J17/J16","v":7.8828828828828815E-2},"€/kWh"]

{"sheet":"Konfiguration","index":14,"n_rows":19,"n_cols":5,"rows_kept":19,"cut":false,"hidden":false,"merged":[[7,1,7,2],[8,1,8,2],[12,0,12,2],[6,0,6,2],[1,0,1,2],[11,1,11,2],[18,1,18,2],[16,0,16,2],[17,1,17,2],[13,1,13,2],[14,1,14,2],[15,1,15,2]]}
["Regelungsbereich","Vorgabewert BNB","Berechnungsgrundlage"]
["Allgemeine Berechnungsgrundlagen"]
["Betrachtungszeitraum in Jahren",50,50]
["Allg. Preissteigerung in %",0.02,0.02]
["Preissteigerung Energie in %",0.04,0.04]
["Kalkulationszins in %",5.5E-2,5.5E-2]
["Preisindizierung"]
["Basisjahr Preisindizierung","2010"]
["Preisstand Basisjahr in %",1]
["Preisstand Projekt",null,"2. Quartal 2014"]
["Preisindex Projekt (zu Basisjahr)  in %",null,1.0940000000000001,null,"Baupreisindex siehe statistisches Bundesamt:\nhttps://www.destatis.de/DE/ZahlenFakten/Indikatoren/Konjunkturindikatoren/Preise/bpr110.html"]
["Faktor Preisindizierung",{"$f":"B9/C11","v":0.91407678244972568}]
["Berechnungsgrundlagen Kosten der Wasserver- und entsorgung"]
["Kosten Frischwasser in €",2.0099999999999998]
["Kosten Niederschlagswasser in €",1.1000000000000001]
["Kosten Abwasser aus Brauchwasser in €",2.14]
["Projektdaten"]
["Kategorie der Lebenszykluskosten\nnach Kriteriensteckbrief BNB_BN 2.1.1 v2011_1",1]
["Bruttogrundfläche (BGFabc)"]

{"sheet":"Gültigkeiten","index":15,"n_rows":36,"n_cols":1,"rows_kept":36,"cut":false,"hidden":true,"merged":[]}
["Ja/Nein"]
["Ja"]
["Nein"]
[]
["Einheiten"]
["d"]
["h"]
["kg"]
["km"]
["KW"]
["KWh"]
["l"]
["l/h"]
["liter"]
["m"]
["m²"]
["m³"]
["MW"]
["MWh"]
["Pers"]
["pschl."]
["Stk"]
["t"]
["t"]
["Wo"]
[]
[]
["Seiten"]
[1]
[2]
[]
[]
[]
["LCC_Kategorie"]
[1]
[2]

{"sheet":"Tabelle2","index":16,"n_rows":44,"n_cols":8,"rows_kept":44,"cut":false,"hidden":true,"merged":[]}
[]
[311,"311: Baugrubenherstellung","Ja","Nein",null,157578.99159663866,{"$f":"LEFT(A2,2) & \"0\"","v":"310"},550154.62184873957]
[312,"312: Baugrubenumschließung","Ja","Nein",null,159443.69747899161]
[313,"313: Wasserhaltung","Ja","Nein",null,195520.16806722691]
[319,"319: Baugrube, Sonstiges","Ja","Nein",null,37611.764705882357]
[321,"321: Baugrundverbesserung","Ja","Nein",null,44023.529411764706,{"$f":"LEFT(A6,2) & \"0\"","v":"320"},298700]
[324,"324: Unterböden und Bodenplatten","Ja","Nein",null,170235.29411764708]
[325,"325: Bodenbeläge","Ja","Nein",null,11926.050420168067]
[326,"326: Bauwerksabdichtungen","Ja","Nein",null,64239.495798319331]
[329,"329: Gründungen, Sonstiges","Ja","Nein",null,8275.6302521008402]
[331,"331: Tragende Außenwände","Ja","Nein",null,304150.42016806721,"330",2029994.9579831932]
[334,"334: Außentüren und -fenster","Ja","Nein",null,714758.82352941181]
[335,"335: Außenwandbekleidungen, außen","Ja","Nein",null,871488.23529411771]
[336,"336: Außenwandbekleidungen, innen","Ja","Nein",null,32942.016806722691]
[338,"338: Sonnenschutz","Ja","Nein",null,106655.46218487395]
[341,"341: Tragende Innenwände","Ja","Nein",null,150701.68067226891,"340",1067725.2100840337]
[342,"342: Nichttragende Innenwände","Ja","Nein",null,264642.85714285716]
[343,"343: Innenstützen","Ja","Nein",null,25915.966386554624]
[344,"344: Innentüren und -fenster","Ja","Nein",null,396193.27731092437]
[345,"345: Innenwandbekleidungen","Ja","Nein",null,97473.109243697487]
[349,"349: Innenwände, Sonstiges","Ja","Nein",null,132798.31932773109]
[351,"351: Deckenkonstruktionen","Ja","Nein",null,502252.10084033618,"350",1352342.0168067226]
[352,"352: Deckenbeläge","Ja","Nein",null,646893.27731092437]
[353,"353: Deckenbekleidungen","Ja","Nein",null,174121.00840336134]
[359,"359: Decken, Sonstiges","Ja","Nein",null,29075.63025210084]
[361,"361: Dachkonstruktionen","Ja","Nein",null,153487.3949579832,"360",357843.69747899158]
[362,"362: Dachfenster, Dachöffnungen","Ja","Nein",null,3000]
[363,"363: Dachbeläge","Ja","Nein",null,137062.18487394959]
[364,"364: Dachbekleidungen","Ja","Nein",null,23550.420168067227]
[369,"369: Dächer, Sonstiges","Ja","Nein",null,40743.697478991598]
[371,"371: Allgemeine Einbauten","Ja","Nein",null,63865.546218487398,"370",63865.546218487398]
[390,"390: Sonstige Maßnahmen für Baukonstruktionen","Ja","Nein",null,307923.5294117647,"390",307923.5294117647]
[410,"410: Abwasser-, Wasser-, Gasanlagen","Ja","Nein",null,308900,"410",308900]
[421,"421: Wärmeerzeugungsanlagen","Ja","Nein",null,43152.100840336134,"420",287012.60504201677]
[422,"422: Wärmeverteilnetze","Ja","Nein",null,129169.74789915967]
[423,"423: Raumheizflächen","Ja","Nein",null,94040.336134453784]
[429,"429: Wärmeversorgungsanlagen, Sonstiges","Ja","Nein",null,20650.420168067227]
[430,"430: Lufttechnische Anlagen","Ja","Nein",null,420790.91596638656,"430",420790.91596638656]
[440,"440: Starkstromanlagen","Ja","Nein",null,727358.82352941181,"440",727358.82352941181]
[450,"450: Fernmelde- und informationstechnische Anlagen","Ja","Nein",null,358240.92436974793,"450",358240.92436974793]
[460,"460: Förderanlagen","Ja","Nein",null,100500,"460",100500]
[479,"479: Nutzungsspezifische Anlagen, Sonstiges","Ja","Nein",null,34060,"470",34060]
[480,"480: Gebäudeautomation","Ja","Nein",null,139825,"480",139825]
[490,"490: Sonstige Maßnahmen für technische Anlagen","Ja","Nein",null,38114.285714285717,"490",38114.285714285717]